TRANSACTION DATE,SUPPLIER NAME (Beneficiary) ,DIRECTORATE,COST CENTRE DESCRIPTION,GROSS AMOUNT,SUBJECTIVE DESCRIPTION,MERCHANT CATEGORY CODE
01 Jul 2014,ARTHUR BRETT CATER,NEIGHBOURHOOD SERVICES,CA CALDMORE COMMUNITY PRIMARY SCHOOL,78.06,FRUIT & VEGETABLES OTHER-PROVISIONS,MISCELLANEOUS FOOD STORES & CONVENIENCE STORES (5499)
01 Jul 2014,WWW.OFFICESTATIONERY.CO.,CHILDRENS SERVICES,EDUCATION BUSINESS PARTNERSHIP (EBP),37.15,STATIONERY & GENERAL SUPPLIES-OFFICE EXP,"STATIONERY, OFFICE SUPPLIES AND WRITING PAPER (5111)"
01 Jul 2014,POUNDLAND LTD 1055,REGENERATION,BLOXWICH DISTRICT CENTRE,4.00,MISCELLANEOUS SUPPLIES,DISCOUNT STORES (5310)
01 Jul 2014,POUNDLAND LTD 1055,REGENERATION,BROWNHILLS DISTRICT CENTRE,4.00,MISCELLANEOUS SUPPLIES,DISCOUNT STORES (5310)
01 Jul 2014,TESCO STORES 6161,CHILDRENS SERVICES,FOOD TECH,25.99,GENERAL MATERIALS,GROCERY STORES AND SUPERMARKETS (5411)
01 Jul 2014,TRAINLINE.COM,REGENERATION,REGENERATION MANAGEMENT,55.90,OFFICER/STAFF-PUBLIC TRANSPORT,PASSENGER RAILWAYS (4112)
01 Jul 2014,OFFICE DEPOT,CHILDRENS SERVICES,CLUSTER 5 DARLASTON,122.63,STATIONERY & GENERAL SUPPLIES-OFFICE EXP,"STATIONERY, OFFICE SUPPLIES AND WRITING PAPER (5111)"
01 Jul 2014,ARTHUR BRETT CATER,NEIGHBOURHOOD SERVICES,CA RADLEYS PRIMARY SCHOOL,105.10,FRUIT & VEGETABLES OTHER-PROVISIONS,MISCELLANEOUS FOOD STORES & CONVENIENCE STORES (5499)
01 Jul 2014,ARTHUR BRETT CATER,NEIGHBOURHOOD SERVICES,CA ST GILES C.E. PRIMARY SCHOOL,33.01,FRUIT & VEGETABLES OTHER-PROVISIONS,MISCELLANEOUS FOOD STORES & CONVENIENCE STORES (5499)
01 Jul 2014,WM MORRISON 063,CHILDRENS SERVICES,REDRUTH ROAD,11.88,GENERAL PROVISIONS-PROVISIONS,GROCERY STORES AND SUPERMARKETS (5411)
01 Jul 2014,WM MORRISON 063,CHILDRENS SERVICES,REDRUTH ROAD,1.48,GENERAL PROVISIONS-PROVISIONS,GROCERY STORES AND SUPERMARKETS (5411)
01 Jul 2014,CANNON RACEWAY,CHILDRENS SERVICES,POSITIVE ACTIVITIES SUMMER PROGRAMMES,150.00,HIRE OF ROOM-SERVICES-FEES,OTHER SERVICES (7299)
01 Jul 2014,ARTHUR BRETT CATER,NEIGHBOURHOOD SERVICES,CA DELVES JUNIOR SCHOOL,113.84,FRUIT & VEGETABLES OTHER-PROVISIONS,MISCELLANEOUS FOOD STORES & CONVENIENCE STORES (5499)
01 Jul 2014,WELSH BROS FOODS LTD,NEIGHBOURHOOD SERVICES,CA LINDENS PRIMARY SCHOOL,8.89,MEAT-PROVISIONS,FREEZER AND LOCKER MEAT PROVISIONERS (5422)
01 Jul 2014,ASDA HOME DELIVERY,CHILDRENS SERVICES,ALUMWELL NURSERY,37.70,FOOD AND BEVERAGES-PROVISIONS,GROCERY STORES AND SUPERMARKETS (5411)
01 Jul 2014,ASDA HOME DELIVERY,CHILDRENS SERVICES,ALUMWELL NURSERY,3.50,FOOD AND BEVERAGES-PROVISIONS,GROCERY STORES AND SUPERMARKETS (5411)
01 Jul 2014,ASDA SUPERSTORE,CHILDRENS SERVICES,HOSPITALITY & CATERING,8.88,GENERAL MATERIALS,GROCERY STORES AND SUPERMARKETS (5411)
01 Jul 2014,AMAZON *MKTPLCE EU-UK,CHILDRENS SERVICES,G. SCIENCE,128.44,GENERAL MATERIALS,BOOK STORES (5942)
01 Jul 2014,ARTHUR BRETT CATER,NEIGHBOURHOOD SERVICES,CA ST FRANCIS CATHOLIC PRIMARY SCHOOL,40.87,FRUIT & VEGETABLES OTHER-PROVISIONS,MISCELLANEOUS FOOD STORES & CONVENIENCE STORES (5499)
01 Jul 2014,ARTHUR BRETT CATER,NEIGHBOURHOOD SERVICES,CA BUSILL JONES PRIMARY SCHOOL,107.86,FRUIT & VEGETABLES OTHER-PROVISIONS,MISCELLANEOUS FOOD STORES & CONVENIENCE STORES (5499)
01 Jul 2014,WALSALL MANOR HOSPITAL,CHILDRENS SERVICES,57 LICHFIELD ROAD,2.30,RESIDENTS PERSONAL EXPENSES-ALLOWANCES TO S/S CLIENTS,CATERERS (5811)
01 Jul 2014,WILKO.COM,RESOURCES,WALSALL CRISIS SUPPORT SCHEME,290.35,CRISIS SUPPORT PAYMENTS,HOUSEHOLD APPLIANCE STORES (5722)
01 Jul 2014,WEST MID TRAVEL,CHILDRENS SERVICES,SAFEGUARDING & FAMILY SUPPORT,200.00,OFFICER/STAFF-PUBLIC TRANSPORT,BUS LINES (4131)
01 Jul 2014,WEST MID TRAVEL,CHILDRENS SERVICES,SAFEGUARDING & FAMILY SUPPORT,6.75,OFFICER/STAFF-PUBLIC TRANSPORT,BUS LINES (4131)
01 Jul 2014,ARTHUR BRETT CATER,NEIGHBOURHOOD SERVICES,CA BLUE COAT C.E. INFANT SCHOOL,48.09,FRUIT & VEGETABLES OTHER-PROVISIONS,MISCELLANEOUS FOOD STORES & CONVENIENCE STORES (5499)
01 Jul 2014,ASDA HOME DELIVERY,CHILDRENS SERVICES,"CLUSTER 1 BROWNHILLS,GREENFIELDS,PELSALL",25.60,FOOD AND BEVERAGES-PROVISIONS,GROCERY STORES AND SUPERMARKETS (5411)
01 Jul 2014,ASDA HOME DELIVERY,CHILDRENS SERVICES,"CLUSTER 1 BROWNHILLS,GREENFIELDS,PELSALL",66.27,FOOD AND BEVERAGES-PROVISIONS,GROCERY STORES AND SUPERMARKETS (5411)
01 Jul 2014,WILKINSON,RESOURCES,WALSALL CRISIS SUPPORT SCHEME,65.04,CRISIS SUPPORT PAYMENTS,HOUSEHOLD APPLIANCE STORES (5722)
01 Jul 2014,W M MORRISON PLC,CHILDRENS SERVICES,SPINDLETREE,19.88,GENERAL PROVISIONS-PROVISIONS,GROCERY STORES AND SUPERMARKETS (5411)
01 Jul 2014,W M MORRISON PLC,CHILDRENS SERVICES,SPINDLETREE,144.50,FOOD AND BEVERAGES-PROVISIONS,GROCERY STORES AND SUPERMARKETS (5411)
01 Jul 2014,ARTHUR BRETT CATER,NEIGHBOURHOOD SERVICES,CA CROFT COMMUNITY PRIMARY SCHOOL,56.55,FRUIT & VEGETABLES OTHER-PROVISIONS,MISCELLANEOUS FOOD STORES & CONVENIENCE STORES (5499)
01 Jul 2014,PLUMB CENTER JEB,NEIGHBOURHOOD SERVICES,BLOXWICH LEISURE CENTRE,16.78,PLUMBING-OP MTCE,"AIR CONDITIONING, HEATING, PLUMBING CONTRACTORS (1711)"
01 Jul 2014,HIGH STREET VOUCHE,CHILDRENS SERVICES,GIFTED AND TALENTED,50.00,GENERAL MATERIALS,"CARD, GIFT, NOVELTY, AND SOUVENIR SHOPS (5947)"
01 Jul 2014,HIGH STREET VOUCHE,CHILDRENS SERVICES,GIFTED AND TALENTED,3.50,GENERAL MATERIALS,"CARD, GIFT, NOVELTY, AND SOUVENIR SHOPS (5947)"
01 Jul 2014,ARTHUR BRETT CATER,NEIGHBOURHOOD SERVICES,CA MOORCROFT WOOD,69.48,FRUIT & VEGETABLES OTHER-PROVISIONS,MISCELLANEOUS FOOD STORES & CONVENIENCE STORES (5499)
01 Jul 2014,ARTHUR BRETT CATER,NEIGHBOURHOOD SERVICES,CA RUSHALL JMI SCHOOL,32.21,FRUIT & VEGETABLES OTHER-PROVISIONS,MISCELLANEOUS FOOD STORES & CONVENIENCE STORES (5499)
01 Jul 2014,BT BILL PAYMENT 2,NEIGHBOURHOOD SERVICES,WALSALL CANAL BOATS,27.70,COSTS (NOT INTERNAL RECHARGES)-TELEPHONES,TELECOMMUNICATION EQUIPMENT & SALES (4812)
01 Jul 2014,LINENS DIRECT LTD,RESOURCES,WALSALL CRISIS SUPPORT SCHEME,99.94,CRISIS SUPPORT PAYMENTS,"DRAPERY, UPHOLSTERY, AND WINDOW COVERINGS STORES (5714)"
01 Jul 2014,ARTHUR BRETT CATER,NEIGHBOURHOOD SERVICES,CA TOWN HALL RESTAURANT - CATERING,63.72,FRUIT & VEGETABLES OTHER-PROVISIONS,MISCELLANEOUS FOOD STORES & CONVENIENCE STORES (5499)
01 Jul 2014,ARTHUR BRETT CATER,NEIGHBOURHOOD SERVICES,CA JOSEPH LECKIE COMMUNITY TECHNOLOGY COLLEGE,157.12,FRUIT & VEGETABLES OTHER-PROVISIONS,MISCELLANEOUS FOOD STORES & CONVENIENCE STORES (5499)
01 Jul 2014,CURRYS ONLINE,CHILDRENS SERVICES,"43A HILTON ROAD, WILLENHALL",579.99,FURNITURE & EQUIPMENT,ELECTRONIC SALES (5732)
01 Jul 2014,OFFICE DEPOT,SOCIAL CARE & INCLUSION,INTEGRATED BUSINESS PROCESSES & SERVICES,42.58,STATIONERY & GENERAL SUPPLIES-OFFICE EXP,"STATIONERY, OFFICE SUPPLIES AND WRITING PAPER (5111)"
01 Jul 2014,ASDA SUPERSTORE,CHILDRENS SERVICES,FOOD TECHNOLOGY,6.87,GENERAL MATERIALS,GROCERY STORES AND SUPERMARKETS (5411)
01 Jul 2014,THE EDGE ADVENTURE ACTIVI,CHILDRENS SERVICES,ENRICHMENT,420.00,GENERAL MATERIALS,OTHER RECREATION SERVICES (7999)
01 Jul 2014,STAPLES UK,CHILDRENS SERVICES,"ELDON STREET, WALSALL",60.98,STATIONERY & GENERAL SUPPLIES-OFFICE EXP,"OFFICE, SCHOOL SUPPLY, AND STATIONERY STORES (5943)"
01 Jul 2014,ARTHUR BRETT CATER,NEIGHBOURHOOD SERVICES,CA ELMORE GREEN PRIMARY SCHOOL,147.16,FRUIT & VEGETABLES OTHER-PROVISIONS,MISCELLANEOUS FOOD STORES & CONVENIENCE STORES (5499)
01 Jul 2014,WALSALL CARPETS,RESOURCES,WALSALL CRISIS SUPPORT SCHEME,165.00,CRISIS SUPPORT PAYMENTS,FLOOR COVERING STORES (5713)
01 Jul 2014,ARTHUR BRETT CATER,NEIGHBOURHOOD SERVICES,CA BLOXWICH C.E. JMI PRIMARY SCHOOL,6.39,FRUIT & VEGETABLES OTHER-PROVISIONS,MISCELLANEOUS FOOD STORES & CONVENIENCE STORES (5499)
01 Jul 2014,OFFICE DEPOT,CHILDRENS SERVICES,LOOKED AFTER CHILDRENS SOCIAL WORK TEAM,141.55,STATIONERY & GENERAL SUPPLIES-OFFICE EXP,"STATIONERY, OFFICE SUPPLIES AND WRITING PAPER (5111)"
01 Jul 2014,THE CARPET MAN,RESOURCES,WALSALL CRISIS SUPPORT SCHEME,318.00,CRISIS SUPPORT PAYMENTS,FLOOR COVERING STORES (5713)
01 Jul 2014,TESCO STORES 6161,RESOURCES,WALSALL CRISIS SUPPORT SCHEME,4.88,CRISIS SUPPORT PAYMENTS,GROCERY STORES AND SUPERMARKETS (5411)
01 Jul 2014,AMAZON EU,CHILDRENS SERVICES,ICT CAPITATION,24.87,EXTERNAL TRAINING,OTHER DIRECT MARKETING-OTHER DIRECT MARKETERS (5969)
01 Jul 2014,ARTHUR BRETT CATER,NEIGHBOURHOOD SERVICES,CA ABBEY PRIMARY SCHOOL,61.61,FOOD AND BEVERAGES-PROVISIONS,MISCELLANEOUS FOOD STORES & CONVENIENCE STORES (5499)
01 Jul 2014,WWW.HIGHFIELDABC.COM,NEIGHBOURHOOD SERVICES,AP FINANCE & RESOURCES STAFF DEVELOPMENT,42.50,EXTERNAL TRAINING,OTHER SERVICES (7299)
01 Jul 2014,WWW.HIGHFIELDABC.COM,NEIGHBOURHOOD SERVICES,AP FINANCE & RESOURCES STAFF DEVELOPMENT,136.80,EXTERNAL TRAINING,OTHER SERVICES (7299)
01 Jul 2014,WWW.HIGHFIELDABC.COM,NEIGHBOURHOOD SERVICES,AP FINANCE & RESOURCES STAFF DEVELOPMENT,9.60,EXTERNAL TRAINING,OTHER SERVICES (7299)
01 Jul 2014,ARTHUR BRETT CATER,NEIGHBOURHOOD SERVICES,CA BLAKENALL HEATH JUNIOR SCHOOL,56.94,FRUIT & VEGETABLES OTHER-PROVISIONS,MISCELLANEOUS FOOD STORES & CONVENIENCE STORES (5499)
01 Jul 2014,ARTHUR BRETT CATER,NEIGHBOURHOOD SERVICES,CA GREEN ROCK PRIMARY,74.38,FRUIT & VEGETABLES OTHER-PROVISIONS,MISCELLANEOUS FOOD STORES & CONVENIENCE STORES (5499)
01 Jul 2014,WM MORRISONS,CHILDRENS SERVICES,57 LICHFIELD ROAD,1.50,GENERAL PROVISIONS-PROVISIONS,GROCERY STORES AND SUPERMARKETS (5411)
01 Jul 2014,WM MORRISONS,CHILDRENS SERVICES,57 LICHFIELD ROAD,5.57,GENERAL PROVISIONS-PROVISIONS,GROCERY STORES AND SUPERMARKETS (5411)
01 Jul 2014,TRAINLINE.COM,SOCIAL CARE & INCLUSION,SENIOR MANAGEMENT TEAM,182.27,OFFICER/STAFF-PUBLIC TRANSPORT,PASSENGER RAILWAYS (4112)
01 Jul 2014,ASDA STORES,CHILDRENS SERVICES,CLUSTER 5 DARLASTON,8.68,FOOD AND BEVERAGES-PROVISIONS,GROCERY STORES AND SUPERMARKETS (5411)
01 Jul 2014,ARTHUR BRETT CATER,NEIGHBOURHOOD SERVICES,CA JANE LANE SPECIAL SCHOOL,40.55,FRUIT & VEGETABLES OTHER-PROVISIONS,MISCELLANEOUS FOOD STORES & CONVENIENCE STORES (5499)
01 Jul 2014,ARTHUR BRETT CATER,NEIGHBOURHOOD SERVICES,CA OLD HALL SPECIAL SCHOOL,26.03,FRUIT & VEGETABLES OTHER-PROVISIONS,MISCELLANEOUS FOOD STORES & CONVENIENCE STORES (5499)
01 Jul 2014,THE CARPET MAN,RESOURCES,WALSALL CRISIS SUPPORT SCHEME,228.00,CRISIS SUPPORT PAYMENTS,FLOOR COVERING STORES (5713)
01 Jul 2014,ASDA HOME DELIVERY,NEIGHBOURHOOD SERVICES,AP FINANCE & RESOURCES ADMINISTRATION,58.23,CATERING,GROCERY STORES AND SUPERMARKETS (5411)
01 Jul 2014,ASDA HOME DELIVERY,NEIGHBOURHOOD SERVICES,AP QUALITY & PERFORMANCE DISCRETIONARY LEARNER SUP,295.58,CATERING,GROCERY STORES AND SUPERMARKETS (5411)
01 Jul 2014,ARTHUR BRETT CATER,NEIGHBOURHOOD SERVICES,CA BARCROFT D/C,42.54,FRUIT & VEGETABLES OTHER-PROVISIONS,MISCELLANEOUS FOOD STORES & CONVENIENCE STORES (5499)
01 Jul 2014,ARTHUR BRETT CATER,NEIGHBOURHOOD SERVICES,CA BEACON PRIMARY SCHOOL,110.80,FRUIT & VEGETABLES OTHER-PROVISIONS,MISCELLANEOUS FOOD STORES & CONVENIENCE STORES (5499)
01 Jul 2014,ARTHUR BRETT CATER,NEIGHBOURHOOD SERVICES,CA LITTLE BLOXWICH CE PRIMARY SCHOOL,25.40,FRUIT & VEGETABLES OTHER-PROVISIONS,MISCELLANEOUS FOOD STORES & CONVENIENCE STORES (5499)
01 Jul 2014,"BOOTS,WALSALL",RESOURCES,WALSALL CRISIS SUPPORT SCHEME,0.98,CRISIS SUPPORT PAYMENTS,"DRUG STORES, PHARMACIES (5912)"
01 Jul 2014,ARTHUR BRETT CATER,NEIGHBOURHOOD SERVICES,CA FIBBERSLEY PARK PRIMARY SCHOOL,63.09,FRUIT & VEGETABLES OTHER-PROVISIONS,MISCELLANEOUS FOOD STORES & CONVENIENCE STORES (5499)
01 Jul 2014,ARTHUR BRETT CATER,NEIGHBOURHOOD SERVICES,CA ST MICHAELS C.E. PRIMARY SCHOOL,31.02,FRUIT & VEGETABLES OTHER-PROVISIONS,MISCELLANEOUS FOOD STORES & CONVENIENCE STORES (5499)
01 Jul 2014,ARTHUR BRETT CATER,NEIGHBOURHOOD SERVICES,CA HARDEN PRIMARY SCHOOL,108.74,FRUIT & VEGETABLES OTHER-PROVISIONS,MISCELLANEOUS FOOD STORES & CONVENIENCE STORES (5499)
01 Jul 2014,ASDA STORES,CHILDRENS SERVICES,STANLEYS NURSERY,7.00,FOOD AND BEVERAGES-PROVISIONS,GROCERY STORES AND SUPERMARKETS (5411)
01 Jul 2014,ASDA STORES,CHILDRENS SERVICES,STANLEYS NURSERY,12.00,CLEANING MATERIALS,GROCERY STORES AND SUPERMARKETS (5411)
01 Jul 2014,OFFICE DEPOT,CHILDRENS SERVICES,EARLY YEARS SERVICE,74.81,STATIONERY & GENERAL SUPPLIES-OFFICE EXP,"STATIONERY, OFFICE SUPPLIES AND WRITING PAPER (5111)"
01 Jul 2014,IKEA ONLINE,CHILDRENS SERVICES,"ELDON STREET, WALSALL",37.50,FURNITURE & EQUIPMENT,MISCELLANEOUS HOUSE FURNISHING SPECIALTY SHOPS (5719)
01 Jul 2014,IKEA ONLINE,CHILDRENS SERVICES,"ELDON STREET, WALSALL",187.50,FURNITURE & EQUIPMENT,MISCELLANEOUS HOUSE FURNISHING SPECIALTY SHOPS (5719)
01 Jul 2014,ARTHUR BRETT CATER,NEIGHBOURHOOD SERVICES,CA BIRCHILLS CE PRIMARY COMMUNITY SCHOOL,23.84,FRUIT & VEGETABLES OTHER-PROVISIONS,MISCELLANEOUS FOOD STORES & CONVENIENCE STORES (5499)
01 Jul 2014,WILKINSON,SOCIAL CARE & INCLUSION,RESPONSE SERVICES,110.00,FURNITURE & EQUIPMENT,HOUSEHOLD APPLIANCE STORES (5722)
01 Jul 2014,ARTHUR BRETT CATER,NEIGHBOURHOOD SERVICES,CA PALFREY JUNIOR SCHOOL,89.69,FRUIT & VEGETABLES OTHER-PROVISIONS,MISCELLANEOUS FOOD STORES & CONVENIENCE STORES (5499)
01 Jul 2014,POUNDLAND LTD 1055,REGENERATION,ALDRIDGE DISTRICT CENTRE,18.00,MISCELLANEOUS SUPPLIES,DISCOUNT STORES (5310)
01 Jul 2014,ARTHUR BRETT CATER,NEIGHBOURHOOD SERVICES,CA BLUE COAT C.E. JUNIOR SCHOOL,122.29,FRUIT & VEGETABLES OTHER-PROVISIONS,MISCELLANEOUS FOOD STORES & CONVENIENCE STORES (5499)
01 Jul 2014,TESCO STORES 5503,CHILDRENS SERVICES,REDRUTH ROAD,27.10,CLEANING-MATERIALS (INC LIGHT BULBS),GROCERY STORES AND SUPERMARKETS (5411)
01 Jul 2014,ASDA STORES LTD 4225,RESOURCES,LINK SERVICE,145.49,FOOD AND BEVERAGES-PROVISIONS,GROCERY STORES AND SUPERMARKETS (5411)
01 Jul 2014,SMART FOOD UK LIMITED,NEIGHBOURHOOD SERVICES,CA PALFREY JUNIOR SCHOOL,305.60,FROZEN FOODS-PROVISIONS,CATERERS (5811)
01 Jul 2014,SMART FOOD UK LIMITED,NEIGHBOURHOOD SERVICES,CA PALFREY JUNIOR SCHOOL,37.20,FROZEN FOODS-PROVISIONS,CATERERS (5811)
01 Jul 2014,ARTHUR BRETT CATER,NEIGHBOURHOOD SERVICES,CA ELMWOOD SPECIAL SCHOOL,34.04,FRUIT & VEGETABLES OTHER-PROVISIONS,MISCELLANEOUS FOOD STORES & CONVENIENCE STORES (5499)
01 Jul 2014,WM MORRISONS,CHILDRENS SERVICES,"43A HILTON ROAD, WILLENHALL",24.81,FOOD AND BEVERAGES-PROVISIONS,GROCERY STORES AND SUPERMARKETS (5411)
01 Jul 2014,WWW.HIGHFIELDABC.COM,NEIGHBOURHOOD SERVICES,AP FINANCE & RESOURCES STAFF DEVELOPMENT,136.80,EXTERNAL TRAINING,OTHER SERVICES (7299)
01 Jul 2014,WWW.HIGHFIELDABC.COM,NEIGHBOURHOOD SERVICES,AP FINANCE & RESOURCES STAFF DEVELOPMENT,42.50,EXTERNAL TRAINING,OTHER SERVICES (7299)
01 Jul 2014,WWW.HIGHFIELDABC.COM,NEIGHBOURHOOD SERVICES,AP FINANCE & RESOURCES STAFF DEVELOPMENT,9.60,EXTERNAL TRAINING,OTHER SERVICES (7299)
01 Jul 2014,ARTHUR BRETT CATER,NEIGHBOURHOOD SERVICES,CA LEAMORE PRIMARY SCHOOL,37.65,FRUIT & VEGETABLES OTHER-PROVISIONS,MISCELLANEOUS FOOD STORES & CONVENIENCE STORES (5499)
01 Jul 2014,ARTHUR BRETT CATER,NEIGHBOURHOOD SERVICES,CA LEIGHSWOOD PRIMARY SCHOOL,39.75,FRUIT & VEGETABLES OTHER-PROVISIONS,MISCELLANEOUS FOOD STORES & CONVENIENCE STORES (5499)
01 Jul 2014,B&M RETAIL LTD,RESOURCES,LINK SERVICE,12.49,FOOD AND BEVERAGES-PROVISIONS,DISCOUNT STORES (5310)
01 Jul 2014,ARTHUR BRETT CATER,NEIGHBOURHOOD SERVICES,CA BIRCHILLS CE PRIMARY COMMUNITY SCHOOL,82.48,FRUIT & VEGETABLES OTHER-PROVISIONS,MISCELLANEOUS FOOD STORES & CONVENIENCE STORES (5499)
01 Jul 2014,ESPECIALLY FOR YOU,REGENERATION,ALDRIDGE DISTRICT CENTRE,25.00,MISCELLANEOUS SUPPLIES,BAKERIES (5462)
01 Jul 2014,ASDA STORES,CHILDRENS SERVICES,PARENTING TEAM,4.20,FOOD AND BEVERAGES-PROVISIONS,GROCERY STORES AND SUPERMARKETS (5411)
01 Jul 2014,ASDA STORES,CHILDRENS SERVICES,PARENTING TEAM,0.29,FOOD AND BEVERAGES-PROVISIONS,GROCERY STORES AND SUPERMARKETS (5411)
01 Jul 2014,OFFICE DEPOT,SOCIAL CARE & INCLUSION,INTEGRATED BUSINESS PROCESSES & SERVICES,231.35,STATIONERY & GENERAL SUPPLIES-OFFICE EXP,"STATIONERY, OFFICE SUPPLIES AND WRITING PAPER (5111)"
01 Jul 2014,ARTHUR BRETT CATER,NEIGHBOURHOOD SERVICES,CA GREENFIELD PRIMARY,62.26,FRUIT & VEGETABLES OTHER-PROVISIONS,MISCELLANEOUS FOOD STORES & CONVENIENCE STORES (5499)
01 Jul 2014,ASDA HOME DELIVERY,NEIGHBOURHOOD SERVICES,AP QUALITY & PERFORMANCE DISCRETIONARY LEARNER SUP,-4.00,CATERING,GROCERY STORES AND SUPERMARKETS (5411)
01 Jul 2014,PREMIER INN44010840,CHILDRENS SERVICES,ADOPTION TEAM,572.50,OTHER EXPENSES-EXPENSES,PREMIER INN (3811)
01 Jul 2014,ALLPAY.NET VISA AND MAST,RESOURCES,HOMELESS PREVENTION GRANT,137.93,RENTS-OTHER,REAL ESTATE MANAGERS - RENTALS (6513)
01 Jul 2014,MSFT *ONLINE,CHILDRENS SERVICES,EDUCATION BUSINESS PARTNERSHIP (EBP),23.40,COMPUTER EQUIPMENT AND SUPPLIES,COMPUTER NETWORK/INFORMATION SERVICES (4816)
01 Jul 2014,ARTHUR BRETT CATER,NEIGHBOURHOOD SERVICES,CA GREENFIELD PRIMARY,-16.74,FRUIT & VEGETABLES OTHER-PROVISIONS,MISCELLANEOUS FOOD STORES & CONVENIENCE STORES (5499)
01 Jul 2014,ARTHUR BRETT CATER,NEIGHBOURHOOD SERVICES,CA BLUE COAT C.E. JUNIOR SCHOOL,-2.27,FRUIT & VEGETABLES OTHER-PROVISIONS,MISCELLANEOUS FOOD STORES & CONVENIENCE STORES (5499)
01 Jul 2014,WWW.GIROFOOD.COM,NEIGHBOURHOOD SERVICES,TOWN HALL RESTAURANT BISTRO,-37.91,DISPOSABLES-PROVISIONS,WHOLESALE CLUBS (5300)
01 Jul 2014,WWW.GIROFOOD.COM,NEIGHBOURHOOD SERVICES,CA JOSEPH LECKIE COMMUNITY TECHNOLOGY COLLEGE,-8.63,DISPOSABLES-PROVISIONS,WHOLESALE CLUBS (5300)
01 Jul 2014,WWW.GIROFOOD.COM,NEIGHBOURHOOD SERVICES,TOWN HALL RESTAURANT BISTRO,37.91,DISPOSABLES-PROVISIONS,WHOLESALE CLUBS (5300)
02 Jul 2014,MNA LTD CARDCHARGE,REGENERATION,DEVELOPMENT MANAGEMENT,211.20,PERIODICALS/MAGAZINES/NEWSPAPERS-SUBSCRIPTIONS,NEWS DEALERS AND NEWSSTANDS (5994)
02 Jul 2014,WELSH BROS FOODS LTD,NEIGHBOURHOOD SERVICES,CA ST MICHAELS C.E. PRIMARY SCHOOL,104.34,MEAT-PROVISIONS,FREEZER AND LOCKER MEAT PROVISIONERS (5422)
02 Jul 2014,WELSH BROS FOODS LTD,NEIGHBOURHOOD SERVICES,CA WATLING STREET PRIMARY SCHOOL,29.90,MEAT-PROVISIONS,FREEZER AND LOCKER MEAT PROVISIONERS (5422)
02 Jul 2014,BLAKEMORE FOODSERVICE,NEIGHBOURHOOD SERVICES,CA LEIGHSWOOD PRIMARY SCHOOL,125.99,FROZEN FOODS-PROVISIONS,CATERERS (5811)
02 Jul 2014,ASDA,RESOURCES,WALSALL CRISIS SUPPORT SCHEME,40.00,CRISIS SUPPORT PAYMENTS,GROCERY STORES AND SUPERMARKETS (5411)
02 Jul 2014,WELSH BROS FOODS LTD,NEIGHBOURHOOD SERVICES,CA WATLING STREET PRIMARY SCHOOL,43.53,MEAT-PROVISIONS,FREEZER AND LOCKER MEAT PROVISIONERS (5422)
02 Jul 2014,BLAKEMORE FOODSERVICE,NEIGHBOURHOOD SERVICES,CA LINDENS PRIMARY SCHOOL,86.70,FROZEN FOODS-PROVISIONS,CATERERS (5811)
02 Jul 2014,BLAKEMORE FOODSERVICE,NEIGHBOURHOOD SERVICES,CA HARDEN PRIMARY SCHOOL,160.27,FROZEN FOODS-PROVISIONS,CATERERS (5811)
02 Jul 2014,BLAKEMORE FOODSERVICE,NEIGHBOURHOOD SERVICES,CA HARDEN PRIMARY SCHOOL,23.04,FROZEN FOODS-PROVISIONS,CATERERS (5811)
02 Jul 2014,SAINSBURYS S/MKT,CHILDRENS SERVICES,EDUCATION BUSINESS PARTNERSHIP (EBP),4.58,CATERING,GROCERY STORES AND SUPERMARKETS (5411)
02 Jul 2014,LONDON MIDLAND TIC,CHILDRENS SERVICES,TRANSITION AND LEAVING CARE,275.00,OFFICER/STAFF-PUBLIC TRANSPORT,PASSENGER RAILWAYS (4112)
02 Jul 2014,AMAZON EU,NEIGHBOURHOOD SERVICES,NAG - TEMPORARY EXHIBITIONS,57.12,LIBRARY BOOKS,OTHER DIRECT MARKETING-OTHER DIRECT MARKETERS (5969)
02 Jul 2014,BLAKEMORE FOODSERVICE,NEIGHBOURHOOD SERVICES,CA BLUE COAT C.E. INFANT SCHOOL,239.90,DRY FOODS-PROVISIONS,CATERERS (5811)
02 Jul 2014,BLAKEMORE FOODSERVICE,NEIGHBOURHOOD SERVICES,CA BLUE COAT C.E. INFANT SCHOOL,8.06,DRY FOODS-PROVISIONS,CATERERS (5811)
02 Jul 2014,WILKINSON,RESOURCES,WALSALL CRISIS SUPPORT SCHEME,34.50,CRISIS SUPPORT PAYMENTS,HOUSEHOLD APPLIANCE STORES (5722)
02 Jul 2014,GO OUTDOORS LTD,NEIGHBOURHOOD SERVICES,COMMUNITY LIAISON,119.94,CLOTHING & LAUNDRY,"SPORTS APPAREL, RIDING APPAREL STORES (5655)"
02 Jul 2014,FARMFOODS- BLOXWIC,CHILDRENS SERVICES,MARY ELLIOTT SPECIAL SCHOOL,22.00,BREAD-GENERAL-PROVISIONS,GROCERY STORES AND SUPERMARKETS (5411)
02 Jul 2014,BLAKEMORE FOODSERVICE,NEIGHBOURHOOD SERVICES,CA RADLEYS PRIMARY SCHOOL,48.25,FROZEN FOODS-PROVISIONS,CATERERS (5811)
02 Jul 2014,BLAKEMORE FOODSERVICE,NEIGHBOURHOOD SERVICES,CA FIBBERSLEY PARK PRIMARY SCHOOL,37.78,FROZEN FOODS-PROVISIONS,CATERERS (5811)
02 Jul 2014,OFFICE DEPOT,CHILDRENS SERVICES,ADOPTION TEAM,197.28,STATIONERY & GENERAL SUPPLIES-OFFICE EXP,"STATIONERY, OFFICE SUPPLIES AND WRITING PAPER (5111)"
02 Jul 2014,BLAKEMORE FOODSERVICE,NEIGHBOURHOOD SERVICES,CA ST MICHAELS C.E. PRIMARY SCHOOL,114.73,FROZEN FOODS-PROVISIONS,CATERERS (5811)
02 Jul 2014,BLAKEMORE FOODSERVICE,NEIGHBOURHOOD SERVICES,CA ST MICHAELS C.E. PRIMARY SCHOOL,7.68,FROZEN FOODS-PROVISIONS,CATERERS (5811)
02 Jul 2014,WELSH BROS FOODS LTD,NEIGHBOURHOOD SERVICES,CA GREEN ROCK PRIMARY,95.13,MEAT-PROVISIONS,FREEZER AND LOCKER MEAT PROVISIONERS (5422)
02 Jul 2014,BLAKEMORE FOODSERVICE,NEIGHBOURHOOD SERVICES,CA OLD HALL SPECIAL SCHOOL,157.44,DRY FOODS-PROVISIONS,CATERERS (5811)
02 Jul 2014,THE TRAINLINE.COM,SOCIAL CARE & INCLUSION,SENIOR MANAGEMENT TEAM,174.93,OFFICER/STAFF-PUBLIC TRANSPORT,PASSENGER RAILWAYS (4112)
02 Jul 2014,WILKINSON,NEIGHBOURHOOD SERVICES,LIBRARY DEVELOPMENT 2,17.19,FURNITURE & EQUIPMENT,HOUSEHOLD APPLIANCE STORES (5722)
02 Jul 2014,CRAZYDOMAINS.COM,CHILDRENS SERVICES,ICT LEARNING RESOURCES,2.99,GENERAL MATERIALS,COMPUTER NETWORK/INFORMATION SERVICES (4816)
02 Jul 2014,BORSHCH ELECTRIC,RESOURCES,WALSALL CRISIS SUPPORT SCHEME,515.00,CRISIS SUPPORT PAYMENTS,HOUSEHOLD APPLIANCE STORES (5722)
02 Jul 2014,BLAKEMORE FOODSERVICE,NEIGHBOURHOOD SERVICES,CA OAKWOOD SPECIAL SCHOOL,55.47,FROZEN FOODS-PROVISIONS,CATERERS (5811)
02 Jul 2014,TRAVEL WEST MIDLAN,CHILDRENS SERVICES,PARENTING TEAM,73.60,OFFICER/STAFF-PUBLIC TRANSPORT,BUS LINES (4131)
02 Jul 2014,BLAKEMORE FOODSERVICE,NEIGHBOURHOOD SERVICES,CA BUSILL JONES PRIMARY SCHOOL,408.74,DRY FOODS-PROVISIONS,CATERERS (5811)
02 Jul 2014,BLAKEMORE FOODSERVICE,NEIGHBOURHOOD SERVICES,CA BUSILL JONES PRIMARY SCHOOL,30.22,DRY FOODS-PROVISIONS,CATERERS (5811)
02 Jul 2014,BLAKEMORE FOODSERVICE,NEIGHBOURHOOD SERVICES,CA BLUE COAT C OF E PERFORMING ARTS COLLEGE,252.20,DRY FOODS-PROVISIONS,CATERERS (5811)
02 Jul 2014,BLAKEMORE FOODSERVICE,NEIGHBOURHOOD SERVICES,CA BLUE COAT C OF E PERFORMING ARTS COLLEGE,94.82,DRY FOODS-PROVISIONS,CATERERS (5811)
02 Jul 2014,WALSALL CARPETS,RESOURCES,WALSALL CRISIS SUPPORT SCHEME,363.00,CRISIS SUPPORT PAYMENTS,FLOOR COVERING STORES (5713)
02 Jul 2014,BLAKEMORE FOODSERVICE,NEIGHBOURHOOD SERVICES,CA BUSILL JONES PRIMARY SCHOOL,122.39,FROZEN FOODS-PROVISIONS,CATERERS (5811)
02 Jul 2014,BORSHCH ELECTRIC,RESOURCES,WALSALL CRISIS SUPPORT SCHEME,-520.00,CRISIS SUPPORT PAYMENTS,HOUSEHOLD APPLIANCE STORES (5722)
02 Jul 2014,BLAKEMORE FOODSERVICE,NEIGHBOURHOOD SERVICES,CA BROWNHILLS WEST PRIMARY SCHOOL,129.59,FROZEN FOODS-PROVISIONS,CATERERS (5811)
02 Jul 2014,BLAKEMORE FOODSERVICE,NEIGHBOURHOOD SERVICES,CA BROWNHILLS WEST PRIMARY SCHOOL,7.68,FROZEN FOODS-PROVISIONS,CATERERS (5811)
02 Jul 2014,BORSHCH ELECTRIC,RESOURCES,WALSALL CRISIS SUPPORT SCHEME,270.00,CRISIS SUPPORT PAYMENTS,HOUSEHOLD APPLIANCE STORES (5722)
02 Jul 2014,WELSH BROS FOODS LTD,NEIGHBOURHOOD SERVICES,CA COOPER JORDAN CE PRIMARY SCHOOL,74.17,MEAT-PROVISIONS,FREEZER AND LOCKER MEAT PROVISIONERS (5422)
02 Jul 2014,BLAKEMORE FOODSERVICE,NEIGHBOURHOOD SERVICES,CA ST JOHNS C.E. PRIMARY SCHOOL,122.26,FROZEN FOODS-PROVISIONS,CATERERS (5811)
02 Jul 2014,WM MORRISON 063,CHILDRENS SERVICES,LOOKED AFTER CHILDRENS SOCIAL WORK TEAM,10.69,TRANSFER PAYMENTS - SOCIAL SERVICES CLIENTS,GROCERY STORES AND SUPERMARKETS (5411)
02 Jul 2014,WM MORRISON 063,CHILDRENS SERVICES,LOOKED AFTER CHILDRENS SOCIAL WORK TEAM,1.90,TRANSFER PAYMENTS - SOCIAL SERVICES CLIENTS,GROCERY STORES AND SUPERMARKETS (5411)
02 Jul 2014,OFFICE DEPOT,NEIGHBOURHOOD SERVICES,LEISURE & CULTURE SUPPORT BUDGET,10.28,STATIONERY & GENERAL SUPPLIES-OFFICE EXP,"STATIONERY, OFFICE SUPPLIES AND WRITING PAPER (5111)"
02 Jul 2014,BORSHCH ELECTRIC,RESOURCES,WALSALL CRISIS SUPPORT SCHEME,200.00,CRISIS SUPPORT PAYMENTS,HOUSEHOLD APPLIANCE STORES (5722)
02 Jul 2014,SCREWFIX,NEIGHBOURHOOD SERVICES,POOLFITTERS,48.96,NEW-FURNITURE & EQUIPMENT,LUMBER & BUILDING MATERIALS STORES (5211)
02 Jul 2014,OFFICE DEPOT,CHILDRENS SERVICES,UNIVERSAL EDUCATION CLIENT UNIT,11.69,STATIONERY & GENERAL SUPPLIES-OFFICE EXP,"STATIONERY, OFFICE SUPPLIES AND WRITING PAPER (5111)"
02 Jul 2014,WELSH BROS FOODS LTD,NEIGHBOURHOOD SERVICES,CA RADLEYS PRIMARY SCHOOL,80.61,MEAT-PROVISIONS,FREEZER AND LOCKER MEAT PROVISIONERS (5422)
02 Jul 2014,BLAKEMORE FOODSERVICE,NEIGHBOURHOOD SERVICES,CA MEADOW VIEW JMI PRIMARY SCHOOL,148.11,FROZEN FOODS-PROVISIONS,CATERERS (5811)
02 Jul 2014,BLAKEMORE FOODSERVICE,NEIGHBOURHOOD SERVICES,CA PALFREY JUNIOR SCHOOL,353.08,DRY FOODS-PROVISIONS,CATERERS (5811)
02 Jul 2014,BLAKEMORE FOODSERVICE,NEIGHBOURHOOD SERVICES,CA PALFREY JUNIOR SCHOOL,34.36,DRY FOODS-PROVISIONS,CATERERS (5811)
02 Jul 2014,WELSH BROS FOODS LTD,NEIGHBOURHOOD SERVICES,CA MILLFIELD PRIMARY SCHOOL,60.18,MEAT-PROVISIONS,FREEZER AND LOCKER MEAT PROVISIONERS (5422)
02 Jul 2014,BLAKEMORE FOODSERVICE,NEIGHBOURHOOD SERVICES,CA GREEN ROCK PRIMARY,31.07,FROZEN FOODS-PROVISIONS,CATERERS (5811)
02 Jul 2014,BLAKEMORE FOODSERVICE,NEIGHBOURHOOD SERVICES,CA BLUE COAT C OF E PERFORMING ARTS COLLEGE,270.92,FROZEN FOODS-PROVISIONS,CATERERS (5811)
02 Jul 2014,BLAKEMORE FOODSERVICE,NEIGHBOURHOOD SERVICES,CA BLUE COAT C OF E PERFORMING ARTS COLLEGE,10.27,FROZEN FOODS-PROVISIONS,CATERERS (5811)
02 Jul 2014,WILKINSON,CHILDRENS SERVICES,57 LICHFIELD ROAD,15.32,RESIDENTS PERSONAL EXPENSES-ALLOWANCES TO S/S CLIENTS,HOUSEHOLD APPLIANCE STORES (5722)
02 Jul 2014,BLAKEMORE FOODSERVICE,NEIGHBOURHOOD SERVICES,CA BEACON PRIMARY SCHOOL,249.36,DRY FOODS-PROVISIONS,CATERERS (5811)
02 Jul 2014,BLAKEMORE FOODSERVICE,NEIGHBOURHOOD SERVICES,CA BEACON PRIMARY SCHOOL,85.12,DRY FOODS-PROVISIONS,CATERERS (5811)
02 Jul 2014,CANNON RACEWAY,CHILDRENS SERVICES,ENRICHMENT,88.00,GENERAL MATERIALS,OTHER SERVICES (7299)
02 Jul 2014,WILKINSON,RESOURCES,WALSALL CRISIS SUPPORT SCHEME,18.50,CRISIS SUPPORT PAYMENTS,HOUSEHOLD APPLIANCE STORES (5722)
02 Jul 2014,WELSH BROS FOODS LTD,NEIGHBOURHOOD SERVICES,CA BUSILL JONES PRIMARY SCHOOL,348.74,MEAT-PROVISIONS,FREEZER AND LOCKER MEAT PROVISIONERS (5422)
02 Jul 2014,THE TRAINLINE.COM,SOCIAL CARE & INCLUSION,SENIOR MANAGEMENT TEAM,96.90,OFFICER/STAFF-PUBLIC TRANSPORT,PASSENGER RAILWAYS (4112)
02 Jul 2014,BLAKEMORE FOODSERVICE,NEIGHBOURHOOD SERVICES,CA ELMWOOD SPECIAL SCHOOL,58.01,DRY FOODS-PROVISIONS,CATERERS (5811)
02 Jul 2014,BORSHCH ELECTRIC,RESOURCES,WALSALL CRISIS SUPPORT SCHEME,195.00,CRISIS SUPPORT PAYMENTS,HOUSEHOLD APPLIANCE STORES (5722)
02 Jul 2014,BORSHCH ELECTRIC,RESOURCES,WALSALL CRISIS SUPPORT SCHEME,195.00,CRISIS SUPPORT PAYMENTS,HOUSEHOLD APPLIANCE STORES (5722)
02 Jul 2014,WELSH BROS FOODS LTD,NEIGHBOURHOOD SERVICES,CA ELMORE GREEN PRIMARY SCHOOL,280.16,MEAT-PROVISIONS,FREEZER AND LOCKER MEAT PROVISIONERS (5422)
02 Jul 2014,ARTHUR BRETT CATER,NEIGHBOURHOOD SERVICES,CA FIBBERSLEY PARK PRIMARY SCHOOL,11.24,FRUIT & VEGETABLES OTHER-PROVISIONS,MISCELLANEOUS FOOD STORES & CONVENIENCE STORES (5499)
02 Jul 2014,BLAKEMORE FOODSERVICE,NEIGHBOURHOOD SERVICES,CA ELMWOOD SPECIAL SCHOOL,12.36,DRY FOODS-PROVISIONS,CATERERS (5811)
02 Jul 2014,WELSH BROS FOODS LTD,NEIGHBOURHOOD SERVICES,CA HARDEN PRIMARY SCHOOL,84.67,MEAT-PROVISIONS,FREEZER AND LOCKER MEAT PROVISIONERS (5422)
02 Jul 2014,OFFICE DEPOT,NEIGHBOURHOOD SERVICES,RESOURCE MANAGEMENT,63.49,STATIONERY & GENERAL SUPPLIES-OFFICE EXP,"STATIONERY, OFFICE SUPPLIES AND WRITING PAPER (5111)"
02 Jul 2014,BORSHCH ELECTRIC,RESOURCES,WALSALL CRISIS SUPPORT SCHEME,195.00,CRISIS SUPPORT PAYMENTS,HOUSEHOLD APPLIANCE STORES (5722)
02 Jul 2014,BLAKEMORE FOODSERVICE,NEIGHBOURHOOD SERVICES,CA WATLING STREET PRIMARY SCHOOL,70.48,FROZEN FOODS-PROVISIONS,CATERERS (5811)
02 Jul 2014,BLAKEMORE FOODSERVICE,NEIGHBOURHOOD SERVICES,CA BLUE COAT C.E. JUNIOR SCHOOL,976.29,DRY FOODS-PROVISIONS,CATERERS (5811)
02 Jul 2014,BLAKEMORE FOODSERVICE,NEIGHBOURHOOD SERVICES,CA BLUE COAT C.E. JUNIOR SCHOOL,298.65,DRY FOODS-PROVISIONS,CATERERS (5811)
02 Jul 2014,WELSH BROS FOODS LTD,NEIGHBOURHOOD SERVICES,CA BLUE COAT C.E. INFANT SCHOOL,15.05,MEAT-PROVISIONS,FREEZER AND LOCKER MEAT PROVISIONERS (5422)
02 Jul 2014,BLAKEMORE FOODSERVICE,NEIGHBOURHOOD SERVICES,CA BLACKWOOD PRIMARY SCHOOL,75.85,FROZEN FOODS-PROVISIONS,CATERERS (5811)
02 Jul 2014,WELSH BROS FOODS LTD,NEIGHBOURHOOD SERVICES,CA RUSHALL JMI SCHOOL,72.81,MEAT-PROVISIONS,FREEZER AND LOCKER MEAT PROVISIONERS (5422)
02 Jul 2014,WELSH BROS FOODS LTD,NEIGHBOURHOOD SERVICES,CA BEACON PRIMARY SCHOOL,138.59,MEAT-PROVISIONS,FREEZER AND LOCKER MEAT PROVISIONERS (5422)
02 Jul 2014,TESCO STORES 6161,RESOURCES,WALSALL CRISIS SUPPORT SCHEME,29.50,CRISIS SUPPORT PAYMENTS,GROCERY STORES AND SUPERMARKETS (5411)
02 Jul 2014,IBIS LINCOLN,REGENERATION,CAPITAL-REGENERATION STRATEGIC TRANSPORTATION,95.00,HOTEL ACCOMMODATION-EMPLOYEES,"HOTELS, MOTELS, RESORTS (7011)"
02 Jul 2014,BLAKEMORE FOODSERVICE,NEIGHBOURHOOD SERVICES,CA BEACON PRIMARY SCHOOL,108.56,FROZEN FOODS-PROVISIONS,CATERERS (5811)
02 Jul 2014,WALSALL CARPETS,RESOURCES,WALSALL CRISIS SUPPORT SCHEME,553.20,CRISIS SUPPORT PAYMENTS,FLOOR COVERING STORES (5713)
02 Jul 2014,BLAKEMORE FOODSERVICE,NEIGHBOURHOOD SERVICES,CA GREEN ROCK PRIMARY,111.08,FROZEN FOODS-PROVISIONS,CATERERS (5811)
02 Jul 2014,BLAKEMORE FOODSERVICE,NEIGHBOURHOOD SERVICES,CA ELMWOOD SPECIAL SCHOOL,41.78,DRY FOODS-PROVISIONS,CATERERS (5811)
02 Jul 2014,WM MORRISON 063,CHILDRENS SERVICES,REDRUTH ROAD,8.41,GENERAL PROVISIONS-PROVISIONS,GROCERY STORES AND SUPERMARKETS (5411)
02 Jul 2014,BLAKEMORE FOODSERVICE,NEIGHBOURHOOD SERVICES,CA BUSILL JONES PRIMARY SCHOOL,6.67,DRY FOODS-PROVISIONS,CATERERS (5811)
02 Jul 2014,B & Q,CHILDRENS SERVICES,CLUSTER 5 DARLASTON,37.98,GENERAL MATERIALS,LUMBER & BUILDING MATERIALS STORES (5211)
02 Jul 2014,REGISTRATION SERVICES,CHILDRENS SERVICES,LOOKED AFTER CHILDRENS SOCIAL WORK TEAM,20.00,SECTION 34 (CONTACT),OTHER RECREATION SERVICES (7999)
02 Jul 2014,TESCO STORES 6161,CHILDRENS SERVICES,PARENTING TEAM,5.30,FOOD AND BEVERAGES-PROVISIONS,GROCERY STORES AND SUPERMARKETS (5411)
02 Jul 2014,TESCO STORES 6161,CHILDRENS SERVICES,PARENTING TEAM,1.70,FOOD AND BEVERAGES-PROVISIONS,GROCERY STORES AND SUPERMARKETS (5411)
02 Jul 2014,MAUDESPORT LIMITED,NEIGHBOURHOOD SERVICES,COMMUNITY LIAISON,101.15,FURNITURE & EQUIPMENT,SPORTING GOODS STORES (5941)
02 Jul 2014,BLAKEMORE FOODSERVICE,NEIGHBOURHOOD SERVICES,CA FIBBERSLEY PARK PRIMARY SCHOOL,286.79,DRY FOODS-PROVISIONS,CATERERS (5811)
02 Jul 2014,BLAKEMORE FOODSERVICE,NEIGHBOURHOOD SERVICES,CA FIBBERSLEY PARK PRIMARY SCHOOL,48.86,DRY FOODS-PROVISIONS,CATERERS (5811)
02 Jul 2014,ASDA SUPERSTORE,CHILDRENS SERVICES,MARY ELLIOTT SPECIAL SCHOOL,18.60,BREAD-GENERAL-PROVISIONS,GROCERY STORES AND SUPERMARKETS (5411)
02 Jul 2014,ASDA STORES LTD 4225,CHILDRENS SERVICES,CLUSTER 4 ALUMWELL & BIRCHILLS,23.20,HEALTH & SAFETY-MATERIALS,GROCERY STORES AND SUPERMARKETS (5411)
02 Jul 2014,ASDA STORES LTD 4225,CHILDRENS SERVICES,STANLEYS NURSERY,5.80,HEALTH & SAFETY-MATERIALS,GROCERY STORES AND SUPERMARKETS (5411)
02 Jul 2014,TESCO STORES 5503,CHILDRENS SERVICES,CLUSTER 4 ALUMWELL & BIRCHILLS,5.58,FOOD AND BEVERAGES-PROVISIONS,GROCERY STORES AND SUPERMARKETS (5411)
02 Jul 2014,BLAKEMORE FOODSERVICE,NEIGHBOURHOOD SERVICES,CA COOPER JORDAN CE PRIMARY SCHOOL,67.23,FROZEN FOODS-PROVISIONS,CATERERS (5811)
02 Jul 2014,BLAKEMORE FOODSERVICE,NEIGHBOURHOOD SERVICES,CA BLUE COAT C.E. JUNIOR SCHOOL,180.50,FROZEN FOODS-PROVISIONS,CATERERS (5811)
02 Jul 2014,TESCO STORE 3351,CHILDRENS SERVICES,PARENTING TEAM,9.43,FOOD AND BEVERAGES-PROVISIONS,GROCERY STORES AND SUPERMARKETS (5411)
02 Jul 2014,WWW.CARTRIDGESAVE.CO.U,CHILDRENS SERVICES,ADOPTION TEAM,50.39,STATIONERY & GENERAL SUPPLIES-OFFICE EXP,"OFFICE, SCHOOL SUPPLY, AND STATIONERY STORES (5943)"
02 Jul 2014,BLAKEMORE FOODSERVICE,NEIGHBOURHOOD SERVICES,CA ELMORE GREEN PRIMARY SCHOOL,217.11,DRY FOODS-PROVISIONS,CATERERS (5811)
02 Jul 2014,BLAKEMORE FOODSERVICE,NEIGHBOURHOOD SERVICES,CA BROWNHILLS COMMUNITY TECHNOLOGY COLLEGE,387.28,FROZEN FOODS-PROVISIONS,CATERERS (5811)
02 Jul 2014,BLAKEMORE FOODSERVICE,NEIGHBOURHOOD SERVICES,CA ST ANNES CATHOLIC PRIMARY SCHOOL,83.01,FROZEN FOODS-PROVISIONS,CATERERS (5811)
02 Jul 2014,BLAKEMORE FOODSERVICE,NEIGHBOURHOOD SERVICES,CA ST ANNES CATHOLIC PRIMARY SCHOOL,15.36,FROZEN FOODS-PROVISIONS,CATERERS (5811)
02 Jul 2014,WELSH BROS FOODS LTD,NEIGHBOURHOOD SERVICES,CA LEIGHSWOOD PRIMARY SCHOOL,52.31,MEAT-PROVISIONS,FREEZER AND LOCKER MEAT PROVISIONERS (5422)
02 Jul 2014,BLAKEMORE FOODSERVICE,NEIGHBOURHOOD SERVICES,CA JOSEPH LECKIE COMMUNITY TECHNOLOGY COLLEGE,521.68,DRY FOODS-PROVISIONS,CATERERS (5811)
02 Jul 2014,BLAKEMORE FOODSERVICE,NEIGHBOURHOOD SERVICES,CA JOSEPH LECKIE COMMUNITY TECHNOLOGY COLLEGE,148.04,DRY FOODS-PROVISIONS,CATERERS (5811)
02 Jul 2014,ARTHUR BRETT CATER,NEIGHBOURHOOD SERVICES,CA BROWNHILLS WEST PRIMARY SCHOOL,12.60,FRUIT & VEGETABLES OTHER-PROVISIONS,MISCELLANEOUS FOOD STORES & CONVENIENCE STORES (5499)
02 Jul 2014,BLAKEMORE FOODSERVICE,NEIGHBOURHOOD SERVICES,CA WHETSTONE FIELD PRIMARY SCHOOL,38.67,FROZEN FOODS-PROVISIONS,CATERERS (5811)
02 Jul 2014,POUNDWORLD RETAIL LTD,CHILDRENS SERVICES,CLUSTER 5 DARLASTON,10.00,GENERAL MATERIALS,DISCOUNT STORES (5310)
02 Jul 2014,AMAZON *MKTPLCE EU-UK,REGENERATION,CENTRALISED STATIONERY,5.02,GENERAL MATERIALS,BOOK STORES (5942)
02 Jul 2014,WWW.NISBETS.COM,CHILDRENS SERVICES,CLUSTER 5 DARLASTON,70.20,FOOD AND BEVERAGES-PROVISIONS,DIRECT MARKETING CATALOG MERCHANTS (5964)
02 Jul 2014,ARTHUR BRETT CATER,NEIGHBOURHOOD SERVICES,CA GREENFIELD PRIMARY,9.75,FRUIT & VEGETABLES OTHER-PROVISIONS,MISCELLANEOUS FOOD STORES & CONVENIENCE STORES (5499)
02 Jul 2014,WELSH BROS FOODS LTD,NEIGHBOURHOOD SERVICES,CA ELMWOOD SPECIAL SCHOOL,38.13,MEAT-PROVISIONS,FREEZER AND LOCKER MEAT PROVISIONERS (5422)
02 Jul 2014,BLAKEMORE FOODSERVICE,NEIGHBOURHOOD SERVICES,CA RUSHALL JMI SCHOOL,34.62,FROZEN FOODS-PROVISIONS,CATERERS (5811)
02 Jul 2014,AVIEMORE,CHILDRENS SERVICES,SAFEGUARDING & FAMILY SUPPORT,104.00,HOTEL ACCOMMODATION-EMPLOYEES,"HOTELS, MOTELS, RESORTS (7011)"
02 Jul 2014,PEARSON ED LTD,CHILDRENS SERVICES,PUPIL PREMIUM,82.60,GENERAL MATERIALS,OTHER SCHOOLS AND EDUCATIONAL SERVICES (8299)
02 Jul 2014,PEARSON ED LTD,CHILDRENS SERVICES,PUPIL PREMIUM,88.20,GENERAL MATERIALS,OTHER SCHOOLS AND EDUCATIONAL SERVICES (8299)
02 Jul 2014,ARTHUR BRETT CATER,NEIGHBOURHOOD SERVICES,CA BROWNHILLS WEST PRIMARY SCHOOL,-12.60,FRUIT & VEGETABLES OTHER-PROVISIONS,MISCELLANEOUS FOOD STORES & CONVENIENCE STORES (5499)
03 Jul 2014,ARTHUR BRETT CATER,NEIGHBOURHOOD SERVICES,CA LEIGHSWOOD PRIMARY SCHOOL,22.48,FRUIT & VEGETABLES OTHER-PROVISIONS,MISCELLANEOUS FOOD STORES & CONVENIENCE STORES (5499)
03 Jul 2014,TRAINLINE.COM,CHILDRENS SERVICES,CHILDREN'S RESOURCES MANAGEMENT,54.06,OFFICER/STAFF-PUBLIC TRANSPORT,PASSENGER RAILWAYS (4112)
03 Jul 2014,TRAINLINE.COM,CHILDRENS SERVICES,CHILD PROTECTION & REVIEW SERVICES,54.06,OFFICER/STAFF-PUBLIC TRANSPORT,PASSENGER RAILWAYS (4112)
03 Jul 2014,REGISTRATION SERVICES,CHILDRENS SERVICES,LOOKED AFTER CHILDRENS SOCIAL WORK TEAM,-35.00,SUPPORT UNDER SECTION 23 OF THE CHILDRENS ACT,OTHER RECREATION SERVICES (7999)
03 Jul 2014,BELVOIR BIRMINGHAM CEN,RESOURCES,HOMELESS PREVENTION GRANT,214.80,RENTS-OTHER,PROFESSIONAL SERVICES (8999)
03 Jul 2014,OFFICE DEPOT,NEIGHBOURHOOD SERVICES,AP FINANCE & RESOURCES ADMINISTRATION,451.80,EXTERNAL PRINTING SERVICES,"STATIONERY, OFFICE SUPPLIES AND WRITING PAPER (5111)"
03 Jul 2014,SCREWFIX DIRECT,RESOURCES,ACCOMMODATION SERVICES MANAGEMENT,204.99,GENERAL MATERIALS,LUMBER & BUILDING MATERIALS STORES (5211)
03 Jul 2014,ASDA HOME DELIVERY,NEIGHBOURHOOD SERVICES,JK LEARNING FOR LIVING & WORK,3.00,CATERING,GROCERY STORES AND SUPERMARKETS (5411)
03 Jul 2014,ASDA HOME DELIVERY,NEIGHBOURHOOD SERVICES,JK LEARNING FOR LIVING & WORK,36.34,CATERING,GROCERY STORES AND SUPERMARKETS (5411)
03 Jul 2014,THE TRAINLINE.COM,RESOURCES,RISK & INSURANCE,53.55,OFFICER/STAFF-PUBLIC TRANSPORT,PASSENGER RAILWAYS (4112)
03 Jul 2014,CRAZY HOUSE (BROWNHILL,RESOURCES,WALSALL CRISIS SUPPORT SCHEME,135.00,CRISIS SUPPORT PAYMENTS,"EQUIPMENT, FURNITURE, AND HOME FURNISHINGS STORES  (5712)"
03 Jul 2014,SAINSBURYS S/MKT,NEIGHBOURHOOD SERVICES,EXTL FUNDED ARTS & REGENERATION,1076.00,BEVERAGES-PROVISIONS,GROCERY STORES AND SUPERMARKETS (5411)
03 Jul 2014,ARTHUR BRETT CATER,NEIGHBOURHOOD SERVICES,CA MILLFIELD PRIMARY SCHOOL,22.48,FRUIT & VEGETABLES OTHER-PROVISIONS,MISCELLANEOUS FOOD STORES & CONVENIENCE STORES (5499)
03 Jul 2014,SANDWELL M.B.C.,CHILDRENS SERVICES,SAFEGUARDING & FAMILY SUPPORT,10.00,REGISTRAR OF BIRTHS/DEATHS/MARRIAGES/CIVIL PARTNERSHIPS-SERV-FEES/CHARGES,GOVERNMENT SERVICES (9399)
03 Jul 2014,OFFICE DEPOT,CHILDRENS SERVICES,VIRTUAL SCHOOL,44.06,STATIONERY & GENERAL SUPPLIES-OFFICE EXP,"STATIONERY, OFFICE SUPPLIES AND WRITING PAPER (5111)"
03 Jul 2014,REGISTRATION SERVICES,CHILDRENS SERVICES,LOOKED AFTER CHILDRENS SOCIAL WORK TEAM,60.00,SUPPORT UNDER SECTION 23 OF THE CHILDRENS ACT,OTHER RECREATION SERVICES (7999)
03 Jul 2014,OFFICE DEPOT,NEIGHBOURHOOD SERVICES,LIBRARY OPERATIONS CENTRAL,698.92,STATIONERY & GENERAL SUPPLIES-OFFICE EXP,"STATIONERY, OFFICE SUPPLIES AND WRITING PAPER (5111)"
03 Jul 2014,SCREWFIX,NEIGHBOURHOOD SERVICES,POOLFITTERS,30.97,NEW-FURNITURE & EQUIPMENT,LUMBER & BUILDING MATERIALS STORES (5211)
03 Jul 2014,AMAZON *MKTPLCE EU-UK,CHILDRENS SERVICES,ADMINISTRATIVE SUPPLIES,6.37,STATIONERY & GENERAL SUPPLIES-OFFICE EXP,BOOK STORES (5942)
03 Jul 2014,REGISTRATION SERVICES,CHILDRENS SERVICES,LOOKED AFTER CHILDRENS SOCIAL WORK TEAM,60.00,SUPPORT UNDER SECTION 23 OF THE CHILDRENS ACT,OTHER RECREATION SERVICES (7999)
03 Jul 2014,WM MORRISONS,CHILDRENS SERVICES,"43A HILTON ROAD, WILLENHALL",3.70,FOOD AND BEVERAGES-PROVISIONS,GROCERY STORES AND SUPERMARKETS (5411)
03 Jul 2014,OFFICE DEPOT,NEIGHBOURHOOD SERVICES,CA CENTRAL SUPPORT SERVICES,11.11,STATIONERY & GENERAL SUPPLIES-OFFICE EXP,"STATIONERY, OFFICE SUPPLIES AND WRITING PAPER (5111)"
03 Jul 2014,WELSH BROS FOODS LTD,NEIGHBOURHOOD SERVICES,CA MEADOW VIEW JMI PRIMARY SCHOOL,85.46,MEAT-PROVISIONS,FREEZER AND LOCKER MEAT PROVISIONERS (5422)
03 Jul 2014,CROSS COUNTRY,NEIGHBOURHOOD SERVICES,EXHIBITIONS - SPECIAL PROJECTS/PARTNERSHIPS,55.30,OTHER/VOLUNTEERS-PUBLIC TRANSPORT,PASSENGER RAILWAYS (4112)
03 Jul 2014,TESCO STORES 5503,CHILDRENS SERVICES,CLUSTER 5 DARLASTON,4.00,FOOD AND BEVERAGES-PROVISIONS,GROCERY STORES AND SUPERMARKETS (5411)
03 Jul 2014,WM MORRISON 063,CHILDRENS SERVICES,LOOKED AFTER CHILDRENS SOCIAL WORK TEAM,6.68,TRANSFER PAYMENTS - SOCIAL SERVICES CLIENTS,GROCERY STORES AND SUPERMARKETS (5411)
03 Jul 2014,TRAINLINE.COM,CHILDRENS SERVICES,SEN,-91.00,OFFICER/STAFF-PUBLIC TRANSPORT,PASSENGER RAILWAYS (4112)
03 Jul 2014,BORSHCH ELECTRIC,RESOURCES,WALSALL CRISIS SUPPORT SCHEME,595.00,CRISIS SUPPORT PAYMENTS,HOUSEHOLD APPLIANCE STORES (5722)
03 Jul 2014,BITEBACK PUBLISHING,NEIGHBOURHOOD SERVICES,NAG - NEW ART GALLERY SHOP STOCK,142.89,SHOP STOCK-MATERIALS,MISCELLANEOUS PUBLISHING AND PRINTING (2741)
03 Jul 2014,POST OFFICE COUNTER,CHILDRENS SERVICES,ADMINISTRATIVE SUPPLIES,9.99,POSTAGES AND COURIER SERVICES,POSTAL SERVICES - GOVERNMENT ONLY (9402)
03 Jul 2014,MARSTON BOOK LTD,NEIGHBOURHOOD SERVICES,NAG - NEW ART GALLERY SHOP STOCK,84.72,SHOP STOCK-MATERIALS,OTHER DIRECT MARKETING-OTHER DIRECT MARKETERS (5969)
03 Jul 2014,OFFICE DEPOT,CHILDRENS SERVICES,YOUTH JUSTICE SERVICE,60.78,STATIONERY & GENERAL SUPPLIES-OFFICE EXP,"STATIONERY, OFFICE SUPPLIES AND WRITING PAPER (5111)"
03 Jul 2014,CO-OPERATIVE FOOD,CHILDRENS SERVICES,"43A HILTON ROAD, WILLENHALL",2.95,GENERAL PROVISIONS-PROVISIONS,GROCERY STORES AND SUPERMARKETS (5411)
03 Jul 2014,BSS PTS,NEIGHBOURHOOD SERVICES,OAK PARK,17.34,PLUMBING-OP MTCE,LUMBER & BUILDING MATERIALS STORES (5211)
03 Jul 2014,OFFICE DEPOT,SOCIAL CARE & INCLUSION,REABLEMENT TEAM - HOLLY BANK,58.98,STATIONERY & GENERAL SUPPLIES-OFFICE EXP,"STATIONERY, OFFICE SUPPLIES AND WRITING PAPER (5111)"
03 Jul 2014,SANDWELL M.B.C.,CHILDRENS SERVICES,SAFEGUARDING & FAMILY SUPPORT,20.00,REGISTRAR OF BIRTHS/DEATHS/MARRIAGES/CIVIL PARTNERSHIPS-SERV-FEES/CHARGES,GOVERNMENT SERVICES (9399)
03 Jul 2014,GRO HM PASSPORT OFFICE,CHILDRENS SERVICES,LOOKED AFTER CHILDRENS SOCIAL WORK TEAM,46.80,SUPPORT UNDER SECTION 23 OF THE CHILDRENS ACT,GOVERNMENT SERVICES (9399)
03 Jul 2014,ARTHUR BRETT CATER,NEIGHBOURHOOD SERVICES,CA ST JOHNS C.E. PRIMARY SCHOOL,36.44,FRUIT & VEGETABLES OTHER-PROVISIONS,MISCELLANEOUS FOOD STORES & CONVENIENCE STORES (5499)
03 Jul 2014,B & Q,CHILDRENS SERVICES,SHEPWELL GREEN PUPIL REFERRAL UNIT,167.37,INTERNAL DECORATING,LUMBER & BUILDING MATERIALS STORES (5211)
03 Jul 2014,WELSH BROS FOODS LTD,NEIGHBOURHOOD SERVICES,CA BUSILL JONES PRIMARY SCHOOL,233.77,MEAT-PROVISIONS,FREEZER AND LOCKER MEAT PROVISIONERS (5422)
03 Jul 2014,STONE COMPUTERS,RESOURCES,RECHARGEABLE EQUIPMENT,240.00,COMPUTER EQUIPMENT AND SUPPLIES,"COMPUTER PROGRAM, SYSTEM DESIGN (7372)"
03 Jul 2014,BORSHCH ELECTRIC,RESOURCES,WALSALL CRISIS SUPPORT SCHEME,195.00,CRISIS SUPPORT PAYMENTS,HOUSEHOLD APPLIANCE STORES (5722)
03 Jul 2014,TESCO STORES 6161,RESOURCES,WALSALL CRISIS SUPPORT SCHEME,2.98,CRISIS SUPPORT PAYMENTS,GROCERY STORES AND SUPERMARKETS (5411)
03 Jul 2014,AMAZON EU,NEIGHBOURHOOD SERVICES,NAG - TEMPORARY EXHIBITIONS,13.35,LIBRARY BOOKS,OTHER DIRECT MARKETING-OTHER DIRECT MARKETERS (5969)
03 Jul 2014,GREETINGS HOUSE LTD,NEIGHBOURHOOD SERVICES,LIBRARY DEVELOPMENT 2,19.37,GENERAL MATERIALS,MISCELLANEOUS AND SPECIALTY RETAIL STORES (5999)
03 Jul 2014,ARTHUR BRETT CATER,NEIGHBOURHOOD SERVICES,CA LITTLE BLOXWICH CE PRIMARY SCHOOL,23.91,FRUIT & VEGETABLES OTHER-PROVISIONS,MISCELLANEOUS FOOD STORES & CONVENIENCE STORES (5499)
03 Jul 2014,ARTHUR BRETT CATER,NEIGHBOURHOOD SERVICES,CA BLACKWOOD PRIMARY SCHOOL,88.53,FRUIT & VEGETABLES OTHER-PROVISIONS,MISCELLANEOUS FOOD STORES & CONVENIENCE STORES (5499)
03 Jul 2014,YORKSHIRE PURCHASING O,CHILDRENS SERVICES,CLUSTER 4 ALUMWELL & BIRCHILLS,46.60,STATIONERY & GENERAL SUPPLIES-OFFICE EXP,"STATIONERY, OFFICE SUPPLIES AND WRITING PAPER (5111)"
03 Jul 2014,WALSALL CARPETS,RESOURCES,WALSALL CRISIS SUPPORT SCHEME,213.00,CRISIS SUPPORT PAYMENTS,FLOOR COVERING STORES (5713)
03 Jul 2014,MARKS & SPENCER,NEIGHBOURHOOD SERVICES,NAG - TEMPORARY EXHIBITIONS,18.20,MISC DAIRY PRODUCTS-PROVISIONS,GROCERY STORES AND SUPERMARKETS (5411)
03 Jul 2014,OFFICE DEPOT,SOCIAL CARE & INCLUSION,REABLEMENT TEAM - HOLLY BANK,45.40,STATIONERY & GENERAL SUPPLIES-OFFICE EXP,"STATIONERY, OFFICE SUPPLIES AND WRITING PAPER (5111)"
03 Jul 2014,ARTHUR BRETT CATER,NEIGHBOURHOOD SERVICES,CA BUSILL JONES PRIMARY SCHOOL,117.15,FRUIT & VEGETABLES OTHER-PROVISIONS,MISCELLANEOUS FOOD STORES & CONVENIENCE STORES (5499)
03 Jul 2014,ARTHUR BRETT CATER,NEIGHBOURHOOD SERVICES,CA GREEN ROCK PRIMARY,50.63,FRUIT & VEGETABLES OTHER-PROVISIONS,MISCELLANEOUS FOOD STORES & CONVENIENCE STORES (5499)
03 Jul 2014,CRAZY HOUSE (BROWNHILL,RESOURCES,WALSALL CRISIS SUPPORT SCHEME,125.00,CRISIS SUPPORT PAYMENTS,"EQUIPMENT, FURNITURE, AND HOME FURNISHINGS STORES  (5712)"
03 Jul 2014,TRAVEL WEST MIDLAN,CHILDRENS SERVICES,LOOKED AFTER CHILDRENS SOCIAL WORK TEAM,74.00,TRANSFER PAYMENTS - SOCIAL SERVICES CLIENTS,BUS LINES (4131)
03 Jul 2014,TESCO STORES 6161,RESOURCES,WALSALL CRISIS SUPPORT SCHEME,10.85,CRISIS SUPPORT PAYMENTS,GROCERY STORES AND SUPERMARKETS (5411)
03 Jul 2014,ARTHUR BRETT CATER,NEIGHBOURHOOD SERVICES,CA BROWNHILLS WEST PRIMARY SCHOOL,11.24,FRUIT & VEGETABLES OTHER-PROVISIONS,MISCELLANEOUS FOOD STORES & CONVENIENCE STORES (5499)
03 Jul 2014,GRO HM PASSPORT OFFICE,CHILDRENS SERVICES,LOOKED AFTER CHILDRENS SOCIAL WORK TEAM,23.40,SUPPORT UNDER SECTION 23 OF THE CHILDRENS ACT,GOVERNMENT SERVICES (9399)
03 Jul 2014,MAPLIN WALSALL WS2,NEIGHBOURHOOD SERVICES,NAG - TEMPORARY EXHIBITIONS,39.99,NEW-FURNITURE & EQUIPMENT,ELECTRONIC SALES (5732)
03 Jul 2014,GRO HM PASSPORT OFFICE,CHILDRENS SERVICES,LOOKED AFTER CHILDRENS SOCIAL WORK TEAM,-46.80,SUPPORT UNDER SECTION 23 OF THE CHILDRENS ACT,GOVERNMENT SERVICES (9399)
03 Jul 2014,GRO HM PASSPORT OFFICE,CHILDRENS SERVICES,LOOKED AFTER CHILDRENS SOCIAL WORK TEAM,-23.40,SUPPORT UNDER SECTION 23 OF THE CHILDRENS ACT,GOVERNMENT SERVICES (9399)
03 Jul 2014,ARTHUR BRETT CATER,NEIGHBOURHOOD SERVICES,CA BUSILL JONES PRIMARY SCHOOL,-2.10,FRUIT & VEGETABLES OTHER-PROVISIONS,MISCELLANEOUS FOOD STORES & CONVENIENCE STORES (5499)
03 Jul 2014,WWW.GIROFOOD.COM,NEIGHBOURHOOD SERVICES,CA BLACKWOOD PRIMARY SCHOOL,39.08,DISPOSABLES-PROVISIONS,WHOLESALE CLUBS (5300)
03 Jul 2014,WWW.GIROFOOD.COM,NEIGHBOURHOOD SERVICES,CA MEADOW VIEW JMI PRIMARY SCHOOL,144.10,DISPOSABLES-PROVISIONS,WHOLESALE CLUBS (5300)
03 Jul 2014,WWW.GIROFOOD.COM,NEIGHBOURHOOD SERVICES,CA ST JOHNS C.E. PRIMARY SCHOOL,7.02,DISPOSABLES-PROVISIONS,WHOLESALE CLUBS (5300)
04 Jul 2014,AMAZON *MKTPLCE EU-UK,NEIGHBOURHOOD SERVICES,ACTIVE ENGLAND,10.82,NEW-FURNITURE & EQUIPMENT,BOOK STORES (5942)
04 Jul 2014,JOHAL DAIRIES LTD,NEIGHBOURHOOD SERVICES,CA ELMWOOD SPECIAL SCHOOL,18.93,MISC DAIRY PRODUCTS-PROVISIONS,OTHER NONDURABLE GOODS (5199)
04 Jul 2014,JOHAL DAIRIES LTD,NEIGHBOURHOOD SERVICES,CA BEACON PRIMARY SCHOOL,75.45,MISC DAIRY PRODUCTS-PROVISIONS,OTHER NONDURABLE GOODS (5199)
04 Jul 2014,JOHAL DAIRIES LTD,NEIGHBOURHOOD SERVICES,CA POOL HAYES PRIMARY SCHOOL,30.81,MISC DAIRY PRODUCTS-PROVISIONS,OTHER NONDURABLE GOODS (5199)
04 Jul 2014,WWW.CIM.CO.UK,CHILDRENS SERVICES,EARLY YEARS SERVICE,80.00,LANGUAGES & INTERPRETATION-SERVICES,PROFESSIONAL SERVICES (8999)
04 Jul 2014,AMAZON *MKTPLCE EU-UK,NEIGHBOURHOOD SERVICES,NEW ART GALLERY - ADMIN,9.98,GENERAL MATERIALS,BOOK STORES (5942)
04 Jul 2014,WALSALL COUNCIL,RESOURCES,WALSALL CRISIS SUPPORT SCHEME,27.00,CRISIS SUPPORT PAYMENTS,GOVERNMENT SERVICES (9399)
04 Jul 2014,GRO HM PASSPORT OFFICE,CHILDRENS SERVICES,LOOKED AFTER CHILDRENS SOCIAL WORK TEAM,41.90,SUPPORT UNDER SECTION 23 OF THE CHILDRENS ACT,GOVERNMENT SERVICES (9399)
04 Jul 2014,WWW.HIGHFIELDABC.COM,NEIGHBOURHOOD SERVICES,PRINCIPAL MARKETING,-136.80,EXTERNAL TRAINING,OTHER SERVICES (7299)
04 Jul 2014,WWW.HIGHFIELDABC.COM,NEIGHBOURHOOD SERVICES,AP FINANCE & RESOURCES STAFF DEVELOPMENT,-42.50,EXTERNAL TRAINING,OTHER SERVICES (7299)
04 Jul 2014,WWW.HIGHFIELDABC.COM,NEIGHBOURHOOD SERVICES,AP FINANCE & RESOURCES STAFF DEVELOPMENT,-9.60,EXTERNAL TRAINING,OTHER SERVICES (7299)
04 Jul 2014,JOHAL DAIRIES LTD,NEIGHBOURHOOD SERVICES,CA LITTLE BLOXWICH CE PRIMARY SCHOOL,32.30,MISC DAIRY PRODUCTS-PROVISIONS,OTHER NONDURABLE GOODS (5199)
04 Jul 2014,THE CARPET MAN,RESOURCES,WALSALL CRISIS SUPPORT SCHEME,354.00,CRISIS SUPPORT PAYMENTS,FLOOR COVERING STORES (5713)
04 Jul 2014,AMAZON *MKTPLCE EU-UK,NEIGHBOURHOOD SERVICES,RESOURCE MANAGEMENT,88.92,STATIONERY & GENERAL SUPPLIES-OFFICE EXP,BOOK STORES (5942)
04 Jul 2014,WWW.NEOPOST.CO.UK,CHILDRENS SERVICES,UNIVERSAL EDUCATION CLIENT UNIT,800.00,POSTAGES AND COURIER SERVICES,"STATIONERY, OFFICE SUPPLIES AND WRITING PAPER (5111)"
04 Jul 2014,WWW.NEOPOST.CO.UK,CHILDRENS SERVICES,UNIVERSAL EDUCATION CLIENT UNIT,24.00,POSTAGES AND COURIER SERVICES,"STATIONERY, OFFICE SUPPLIES AND WRITING PAPER (5111)"
04 Jul 2014,AMAZON *MKTPLCE EU-UK,NEIGHBOURHOOD SERVICES,ACTIVE ENGLAND,5.11,NEW-FURNITURE & EQUIPMENT,BOOK STORES (5942)
04 Jul 2014,OFFICE DEPOT,CHILDRENS SERVICES,INITIAL RESPONSE SERVICE,247.24,STATIONERY & GENERAL SUPPLIES-OFFICE EXP,"STATIONERY, OFFICE SUPPLIES AND WRITING PAPER (5111)"
04 Jul 2014,GRO HM PASSPORT OFFICE,CHILDRENS SERVICES,LOOKED AFTER CHILDRENS SOCIAL WORK TEAM,9.25,SUPPORT UNDER SECTION 23 OF THE CHILDRENS ACT,GOVERNMENT SERVICES (9399)
04 Jul 2014,JOHAL DAIRIES LTD,NEIGHBOURHOOD SERVICES,CA ST ANNES CATHOLIC PRIMARY SCHOOL,17.45,MISC DAIRY PRODUCTS-PROVISIONS,OTHER NONDURABLE GOODS (5199)
04 Jul 2014,ARTHUR BRETT CATER,NEIGHBOURHOOD SERVICES,TOWN HALL RESTAURANT BISTRO,38.88,FRUIT & VEGETABLES OTHER-PROVISIONS,MISCELLANEOUS FOOD STORES & CONVENIENCE STORES (5499)
04 Jul 2014,COMPLETESAVE.CO.UK,NEIGHBOURHOOD SERVICES,PUBLIC HEALTH BUSINESS SUPPORT,10.00,EXTERNAL TRAINING,DIRECT MARKETING CONTINUITY SUBSCRIPTION MERCHANTS (5968)
04 Jul 2014,REGISTRATION SERVICES,CHILDRENS SERVICES,LOOKED AFTER CHILDRENS SOCIAL WORK TEAM,-25.00,SUPPORT UNDER SECTION 23 OF THE CHILDRENS ACT,OTHER RECREATION SERVICES (7999)
04 Jul 2014,ARTHUR BRETT CATER,NEIGHBOURHOOD SERVICES,CA POOL HAYES PRIMARY SCHOOL,38.34,FRUIT & VEGETABLES OTHER-PROVISIONS,MISCELLANEOUS FOOD STORES & CONVENIENCE STORES (5499)
04 Jul 2014,W M MORRISON PLC,CHILDRENS SERVICES,"43A HILTON ROAD, WILLENHALL",39.69,GENERAL PROVISIONS-PROVISIONS,GROCERY STORES AND SUPERMARKETS (5411)
04 Jul 2014,W M MORRISON PLC,CHILDRENS SERVICES,"43A HILTON ROAD, WILLENHALL",106.59,GENERAL PROVISIONS-PROVISIONS,GROCERY STORES AND SUPERMARKETS (5411)
04 Jul 2014,JOHAL DAIRIES LTD,NEIGHBOURHOOD SERVICES,CA TOWN HALL RESTAURANT - CATERING,18.51,MISC DAIRY PRODUCTS-PROVISIONS,OTHER NONDURABLE GOODS (5199)
04 Jul 2014,ARTHUR BRETT CATER,NEIGHBOURHOOD SERVICES,CA BLUE COAT C.E. INFANT SCHOOL,15.69,FRUIT & VEGETABLES OTHER-PROVISIONS,MISCELLANEOUS FOOD STORES & CONVENIENCE STORES (5499)
04 Jul 2014,TESCO STORES 6161,RESOURCES,WALSALL CRISIS SUPPORT SCHEME,9.99,CRISIS SUPPORT PAYMENTS,GROCERY STORES AND SUPERMARKETS (5411)
04 Jul 2014,TRAVEL WEST MIDLAN,CHILDRENS SERVICES,PELSALL CHILDRENS CENTRE,74.00,OFFICER/STAFF-PUBLIC TRANSPORT,BUS LINES (4131)
04 Jul 2014,JOHAL DAIRIES LTD,NEIGHBOURHOOD SERVICES,CA DELVES JUNIOR SCHOOL,57.92,MISC DAIRY PRODUCTS-PROVISIONS,OTHER NONDURABLE GOODS (5199)
04 Jul 2014,ALLPAY.NET VISA AND MAST,RESOURCES,HOMELESS PREVENTION GRANT,7.30,RENTS,REAL ESTATE MANAGERS - RENTALS (6513)
04 Jul 2014,JOHAL DAIRIES LTD,NEIGHBOURHOOD SERVICES,CA ST FRANCIS CATHOLIC PRIMARY SCHOOL,16.67,MISC DAIRY PRODUCTS-PROVISIONS,OTHER NONDURABLE GOODS (5199)
04 Jul 2014,OFFICE DEPOT,NEIGHBOURHOOD SERVICES,RESOURCE MANAGEMENT,338.94,STATIONERY & GENERAL SUPPLIES-OFFICE EXP,"STATIONERY, OFFICE SUPPLIES AND WRITING PAPER (5111)"
04 Jul 2014,BORSHCH ELECTRIC,RESOURCES,WALSALL CRISIS SUPPORT SCHEME,520.00,CRISIS SUPPORT PAYMENTS,HOUSEHOLD APPLIANCE STORES (5722)
04 Jul 2014,ARTHUR BRETT CATER,NEIGHBOURHOOD SERVICES,CA BLUE COAT C.E. INFANT SCHOOL,49.03,FRUIT & VEGETABLES OTHER-PROVISIONS,MISCELLANEOUS FOOD STORES & CONVENIENCE STORES (5499)
04 Jul 2014,INT LABMATE LTD,NEIGHBOURHOOD SERVICES,POLLUTION DIVISION,129.00,STATIONERY & GENERAL SUPPLIES-OFFICE EXP,MISCELLANEOUS PUBLISHING AND PRINTING (2741)
04 Jul 2014,OYSTER COMMUNICATIONS,CHILDRENS SERVICES,UNIVERSAL EDUCATION CLIENT UNIT,120.00,"REPAIRS,ALTERATIONS & MAINTENANCE-PREM",PROFESSIONAL SERVICES (8999)
04 Jul 2014,WM MORRISONS,CHILDRENS SERVICES,57 LICHFIELD ROAD,18.49,GENERAL PROVISIONS-PROVISIONS,GROCERY STORES AND SUPERMARKETS (5411)
04 Jul 2014,JOHAL DAIRIES LTD,NEIGHBOURHOOD SERVICES,CA ST GILES C.E. PRIMARY SCHOOL,60.61,MISC DAIRY PRODUCTS-PROVISIONS,OTHER NONDURABLE GOODS (5199)
04 Jul 2014,OFFICE DEPOT,CHILDRENS SERVICES,CHILDRENS RESIDENTIAL SVCS,58.98,STATIONERY & GENERAL SUPPLIES-OFFICE EXP,"STATIONERY, OFFICE SUPPLIES AND WRITING PAPER (5111)"
04 Jul 2014,ARTHUR BRETT CATER,NEIGHBOURHOOD SERVICES,CA ST MICHAELS C.E. PRIMARY SCHOOL,11.24,FRUIT & VEGETABLES OTHER-PROVISIONS,MISCELLANEOUS FOOD STORES & CONVENIENCE STORES (5499)
04 Jul 2014,JOHAL DAIRIES LTD,NEIGHBOURHOOD SERVICES,CA BARCROFT D/C,95.28,MISC DAIRY PRODUCTS-PROVISIONS,OTHER NONDURABLE GOODS (5199)
04 Jul 2014,A F BLAKEMORE & SON LTD,CHILDRENS SERVICES,MARY ELLIOTT SPECIAL SCHOOL,261.11,BREAD-GENERAL-PROVISIONS,GROCERY STORES AND SUPERMARKETS (5411)
04 Jul 2014,A F BLAKEMORE & SON LTD,CHILDRENS SERVICES,MARY ELLIOTT SPECIAL SCHOOL,8.45,BREAD-GENERAL-PROVISIONS,GROCERY STORES AND SUPERMARKETS (5411)
04 Jul 2014,AMAZON *MKTPLCE EU-UK,NEIGHBOURHOOD SERVICES,ACTIVE ENGLAND,10.47,NEW-FURNITURE & EQUIPMENT,BOOK STORES (5942)
04 Jul 2014,JOHAL DAIRIES LTD,NEIGHBOURHOOD SERVICES,CA BUSILL JONES PRIMARY SCHOOL,68.20,MISC DAIRY PRODUCTS-PROVISIONS,OTHER NONDURABLE GOODS (5199)
04 Jul 2014,WM MORRISON 063,CHILDRENS SERVICES,REDRUTH ROAD,9.00,GENERAL PROVISIONS-PROVISIONS,GROCERY STORES AND SUPERMARKETS (5411)
04 Jul 2014,WM MORRISON 063,CHILDRENS SERVICES,REDRUTH ROAD,35.24,GENERAL PROVISIONS-PROVISIONS,GROCERY STORES AND SUPERMARKETS (5411)
04 Jul 2014,OFFICE DEPOT,CHILDRENS SERVICES,SAFEGUARDING & FAMILY SUPPORT,172.28,STATIONERY & GENERAL SUPPLIES-OFFICE EXP,"STATIONERY, OFFICE SUPPLIES AND WRITING PAPER (5111)"
04 Jul 2014,ARTHUR BRETT CATER,NEIGHBOURHOOD SERVICES,CA PALFREY JUNIOR SCHOOL,60.27,FRUIT & VEGETABLES OTHER-PROVISIONS,MISCELLANEOUS FOOD STORES & CONVENIENCE STORES (5499)
04 Jul 2014,WWW.BAKERROSS.CO.UK,CHILDRENS SERVICES,CENTRAL SUPPORT,120.18,GENERAL MATERIALS,"ARTIST SUPPLY STORES, CRAFT SHOPS (5970)"
04 Jul 2014,JOHAL DAIRIES LTD,NEIGHBOURHOOD SERVICES,CA CROFT COMMUNITY PRIMARY SCHOOL,31.54,MISC DAIRY PRODUCTS-PROVISIONS,OTHER NONDURABLE GOODS (5199)
04 Jul 2014,REGISTRATION SERVICES,CHILDRENS SERVICES,LOOKED AFTER CHILDRENS SOCIAL WORK TEAM,25.00,SUPPORT UNDER SECTION 23 OF THE CHILDRENS ACT,OTHER RECREATION SERVICES (7999)
04 Jul 2014,WALSALL COUNCIL,RESOURCES,WALSALL CRISIS SUPPORT SCHEME,-27.00,CRISIS SUPPORT PAYMENTS,GOVERNMENT SERVICES (9399)
04 Jul 2014,CALDERFIELDS GOLF AND COU,NEIGHBOURHOOD SERVICES,PUBLIC HEALTH BUSINESS SUPPORT,50.00,COURSE/CONFERENCE EXPENSES,"EATING PLACES, RESTAURANTS (5812)"
04 Jul 2014,OFFICE DEPOT,CHILDRENS SERVICES,CHILD PROTECTION & REVIEW SERVICES,249.30,STATIONERY & GENERAL SUPPLIES-OFFICE EXP,"STATIONERY, OFFICE SUPPLIES AND WRITING PAPER (5111)"
04 Jul 2014,OFFICE DEPOT,CHILDRENS SERVICES,ADMINISTRATIVE SUPPLIES,84.88,STATIONERY & GENERAL SUPPLIES-OFFICE EXP,"STATIONERY, OFFICE SUPPLIES AND WRITING PAPER (5111)"
04 Jul 2014,MARKS & SPENCER SACAT,NEIGHBOURHOOD SERVICES,NAG - TEMPORARY EXHIBITIONS,17.05,MISC DAIRY PRODUCTS-PROVISIONS,GROCERY STORES AND SUPERMARKETS (5411)
04 Jul 2014,JOHAL DAIRIES LTD,NEIGHBOURHOOD SERVICES,CA RUSHALL JMI SCHOOL,60.30,MISC DAIRY PRODUCTS-PROVISIONS,OTHER NONDURABLE GOODS (5199)
04 Jul 2014,JOHAL DAIRIES LTD,NEIGHBOURHOOD SERVICES,CA BLOXWICH C.E. JMI PRIMARY SCHOOL,49.60,MISC DAIRY PRODUCTS-PROVISIONS,OTHER NONDURABLE GOODS (5199)
04 Jul 2014,OFFICE DEPOT,NEIGHBOURHOOD SERVICES,RESOURCE MANAGEMENT,113.06,STATIONERY & GENERAL SUPPLIES-OFFICE EXP,"STATIONERY, OFFICE SUPPLIES AND WRITING PAPER (5111)"
04 Jul 2014,JOHAL DAIRIES LTD,SOCIAL CARE & INCLUSION,FALLINGS HEATH,38.20,MISC DAIRY PRODUCTS-PROVISIONS,OTHER NONDURABLE GOODS (5199)
04 Jul 2014,HOPWELLS LTD,CHILDRENS SERVICES,MARY ELLIOTT SPECIAL SCHOOL,79.80,BREAD-GENERAL-PROVISIONS,CATERERS (5811)
04 Jul 2014,WALSALL COUNCIL,RESOURCES,WALSALL CRISIS SUPPORT SCHEME,27.00,CRISIS SUPPORT PAYMENTS,GOVERNMENT SERVICES (9399)
04 Jul 2014,OFFICE DEPOT,SOCIAL CARE & INCLUSION,EMPLOYMENT LINKS TO WORK,-1.32,STATIONERY & GENERAL SUPPLIES-OFFICE EXP,"STATIONERY, OFFICE SUPPLIES AND WRITING PAPER (5111)"
04 Jul 2014,ARGOS LTD,NEIGHBOURHOOD SERVICES,ACTIVE ENGLAND,92.44,NEW-FURNITURE & EQUIPMENT,DISCOUNT STORES (5310)
04 Jul 2014,AMAZON EU,NEIGHBOURHOOD SERVICES,ACTIVE ENGLAND,24.99,NEW-FURNITURE & EQUIPMENT,OTHER DIRECT MARKETING-OTHER DIRECT MARKETERS (5969)
04 Jul 2014,CRAZY HOUSE (BROWNHILL,RESOURCES,WALSALL CRISIS SUPPORT SCHEME,285.00,CRISIS SUPPORT PAYMENTS,"EQUIPMENT, FURNITURE, AND HOME FURNISHINGS STORES  (5712)"
04 Jul 2014,ARTHUR BRETT CATER,NEIGHBOURHOOD SERVICES,CA TOWN HALL RESTAURANT - CATERING,31.51,FRUIT & VEGETABLES OTHER-PROVISIONS,MISCELLANEOUS FOOD STORES & CONVENIENCE STORES (5499)
04 Jul 2014,ALLPAY.NET VISA AND MAST,RESOURCES,ACCOMMODATION SERVICES MANAGEMENT,205.56,RENTS,REAL ESTATE MANAGERS - RENTALS (6513)
04 Jul 2014,CRAZY HOUSE (BROWNHILL,RESOURCES,WALSALL CRISIS SUPPORT SCHEME,165.00,CRISIS SUPPORT PAYMENTS,"EQUIPMENT, FURNITURE, AND HOME FURNISHINGS STORES  (5712)"
04 Jul 2014,JOHAL DAIRIES LTD,NEIGHBOURHOOD SERVICES,CA LEIGHSWOOD PRIMARY SCHOOL,34.04,MISC DAIRY PRODUCTS-PROVISIONS,OTHER NONDURABLE GOODS (5199)
04 Jul 2014,TRAINLINE.COM,CHILDRENS SERVICES,LOOKED AFTER CHILDRENS SOCIAL WORK TEAM,47.99,OFFICER/STAFF-PUBLIC TRANSPORT,PASSENGER RAILWAYS (4112)
04 Jul 2014,OFFICE DEPOT,REGENERATION,CENTRALISED STATIONERY,323.02,STATIONERY & GENERAL SUPPLIES-OFFICE EXP,"STATIONERY, OFFICE SUPPLIES AND WRITING PAPER (5111)"
04 Jul 2014,ARTHUR BRETT CATER,NEIGHBOURHOOD SERVICES,CA BLUE COAT C.E. JUNIOR SCHOOL,59.63,FRUIT & VEGETABLES OTHER-PROVISIONS,MISCELLANEOUS FOOD STORES & CONVENIENCE STORES (5499)
04 Jul 2014,JOHAL DAIRIES LTD,CHILDRENS SERVICES,57 LICHFIELD ROAD,19.05,MISC DAIRY PRODUCTS-PROVISIONS,OTHER NONDURABLE GOODS (5199)
04 Jul 2014,JOHAL DAIRIES LTD,NEIGHBOURHOOD SERVICES,CA MEADOW VIEW JMI PRIMARY SCHOOL,17.94,MISC DAIRY PRODUCTS-PROVISIONS,OTHER NONDURABLE GOODS (5199)
04 Jul 2014,ARGOS LTD,NEIGHBOURHOOD SERVICES,ACTIVE ENGLAND,69.98,NEW-FURNITURE & EQUIPMENT,DISCOUNT STORES (5310)
04 Jul 2014,WWW.TROPHYSTORE.CO.UK,CHILDRENS SERVICES,YOUTH OPINIONS UNITE,27.95,STATIONERY & GENERAL SUPPLIES-OFFICE EXP,"CARD, GIFT, NOVELTY, AND SOUVENIR SHOPS (5947)"
04 Jul 2014,ARTHUR BRETT CATER,NEIGHBOURHOOD SERVICES,CA CALDMORE COMMUNITY PRIMARY SCHOOL,36.44,FRUIT & VEGETABLES OTHER-PROVISIONS,MISCELLANEOUS FOOD STORES & CONVENIENCE STORES (5499)
04 Jul 2014,THE CARPET MAN,RESOURCES,WALSALL CRISIS SUPPORT SCHEME,324.00,CRISIS SUPPORT PAYMENTS,FLOOR COVERING STORES (5713)
04 Jul 2014,JOHAL DAIRIES LTD,NEIGHBOURHOOD SERVICES,CA LINDENS PRIMARY SCHOOL,32.30,MISC DAIRY PRODUCTS-PROVISIONS,OTHER NONDURABLE GOODS (5199)
04 Jul 2014,OFFICE DEPOT,CHILDRENS SERVICES,"CLUSTER 6 BENTLEY,LIGHTHOUSE,FIBBERSLEY",87.72,STATIONERY & GENERAL SUPPLIES-OFFICE EXP,"STATIONERY, OFFICE SUPPLIES AND WRITING PAPER (5111)"
04 Jul 2014,CATCH 22,CHILDRENS SERVICES,TRANSITION AND LEAVING CARE,120.00,INTERNAL TRAINING,"ORGANIZATIONS, CHARITABLE AND SOCIAL SERVICE (8398)"
04 Jul 2014,GRO HM PASSPORT OFFICE,CHILDRENS SERVICES,LOOKED AFTER CHILDRENS SOCIAL WORK TEAM,-23.40,SUPPORT UNDER SECTION 23 OF THE CHILDRENS ACT,GOVERNMENT SERVICES (9399)
04 Jul 2014,PEARSON ED LTD,CHILDRENS SERVICES,PUPIL PREMIUM,35.90,GENERAL MATERIALS,OTHER SCHOOLS AND EDUCATIONAL SERVICES (8299)
04 Jul 2014,GRO HM PASSPORT OFFICE,CHILDRENS SERVICES,LOOKED AFTER CHILDRENS SOCIAL WORK TEAM,-9.25,SUPPORT UNDER SECTION 23 OF THE CHILDRENS ACT,GOVERNMENT SERVICES (9399)
04 Jul 2014,WWW.GIROFOOD.COM,NEIGHBOURHOOD SERVICES,CA BARCROFT D/C,78.56,DISPOSABLES-PROVISIONS,WHOLESALE CLUBS (5300)
04 Jul 2014,WWW.GIROFOOD.COM,NEIGHBOURHOOD SERVICES,CA JANE LANE SPECIAL SCHOOL,59.73,DISPOSABLES-PROVISIONS,WHOLESALE CLUBS (5300)
04 Jul 2014,WWW.GIROFOOD.COM,NEIGHBOURHOOD SERVICES,TOWN HALL RESTAURANT BISTRO,55.90,DISPOSABLES-PROVISIONS,WHOLESALE CLUBS (5300)
04 Jul 2014,WWW.GIROFOOD.COM,NEIGHBOURHOOD SERVICES,CA BIRCHILLS CE PRIMARY COMMUNITY SCHOOL,44.93,DISPOSABLES-PROVISIONS,WHOLESALE CLUBS (5300)
05 Jul 2014,JOHAL DAIRIES LTD,NEIGHBOURHOOD SERVICES,CA FIBBERSLEY PARK PRIMARY SCHOOL,47.55,MISC DAIRY PRODUCTS-PROVISIONS,OTHER NONDURABLE GOODS (5199)
05 Jul 2014,JOHAL DAIRIES LTD,NEIGHBOURHOOD SERVICES,CA DELVES INFANTS SCHOOL,19.76,MISC DAIRY PRODUCTS-PROVISIONS,OTHER NONDURABLE GOODS (5199)
05 Jul 2014,JOHAL DAIRIES LTD,NEIGHBOURHOOD SERVICES,CA BROWNHILLS WEST PRIMARY SCHOOL,62.42,MISC DAIRY PRODUCTS-PROVISIONS,OTHER NONDURABLE GOODS (5199)
05 Jul 2014,JOHAL DAIRIES LTD,NEIGHBOURHOOD SERVICES,CA BLOXWICH C.E. JMI PRIMARY SCHOOL,-49.60,MISC DAIRY PRODUCTS-PROVISIONS,OTHER NONDURABLE GOODS (5199)
05 Jul 2014,JOHAL DAIRIES LTD,NEIGHBOURHOOD SERVICES,CA PALFREY JUNIOR SCHOOL,51.60,MISC DAIRY PRODUCTS-PROVISIONS,OTHER NONDURABLE GOODS (5199)
05 Jul 2014,JOHAL DAIRIES LTD,NEIGHBOURHOOD SERVICES,CA CALDMORE COMMUNITY PRIMARY SCHOOL,36.03,MISC DAIRY PRODUCTS-PROVISIONS,OTHER NONDURABLE GOODS (5199)
05 Jul 2014,JOHAL DAIRIES LTD,NEIGHBOURHOOD SERVICES,CA ABBEY PRIMARY SCHOOL,62.65,MISC DAIRY PRODUCTS-PROVISIONS,OTHER NONDURABLE GOODS (5199)
05 Jul 2014,JOHAL DAIRIES LTD,CHILDRENS SERVICES,STROUD FAMILY CENTRE,5.97,MISC DAIRY PRODUCTS-PROVISIONS,OTHER NONDURABLE GOODS (5199)
05 Jul 2014,JOHAL DAIRIES LTD,NEIGHBOURHOOD SERVICES,CA WHETSTONE FIELD PRIMARY SCHOOL,7.95,MISC DAIRY PRODUCTS-PROVISIONS,OTHER NONDURABLE GOODS (5199)
05 Jul 2014,JOHAL DAIRIES LTD,SOCIAL CARE & INCLUSION,REABLEMENT TEAM - HOLLY BANK,96.56,MISC DAIRY PRODUCTS-PROVISIONS,OTHER NONDURABLE GOODS (5199)
05 Jul 2014,JOHAL DAIRIES LTD,NEIGHBOURHOOD SERVICES,CA OAKWOOD SPECIAL SCHOOL,13.95,MISC DAIRY PRODUCTS-PROVISIONS,OTHER NONDURABLE GOODS (5199)
05 Jul 2014,JOHAL DAIRIES LTD,NEIGHBOURHOOD SERVICES,CA ST MICHAELS C.E. PRIMARY SCHOOL,24.55,MISC DAIRY PRODUCTS-PROVISIONS,OTHER NONDURABLE GOODS (5199)
05 Jul 2014,JOHAL DAIRIES LTD,NEIGHBOURHOOD SERVICES,CA RADLEYS PRIMARY SCHOOL,48.84,MISC DAIRY PRODUCTS-PROVISIONS,OTHER NONDURABLE GOODS (5199)
05 Jul 2014,JOHAL DAIRIES LTD,NEIGHBOURHOOD SERVICES,CA BLOXWICH C.E. JMI PRIMARY SCHOOL,49.60,MISC DAIRY PRODUCTS-PROVISIONS,OTHER NONDURABLE GOODS (5199)
05 Jul 2014,JOHAL DAIRIES LTD,NEIGHBOURHOOD SERVICES,CA WATLING STREET PRIMARY SCHOOL,25.84,MISC DAIRY PRODUCTS-PROVISIONS,OTHER NONDURABLE GOODS (5199)
05 Jul 2014,JOHAL DAIRIES LTD,NEIGHBOURHOOD SERVICES,CA BIRCHILLS CE PRIMARY COMMUNITY SCHOOL,71.04,MISC DAIRY PRODUCTS-PROVISIONS,OTHER NONDURABLE GOODS (5199)
05 Jul 2014,JOHAL DAIRIES LTD,NEIGHBOURHOOD SERVICES,CA ST BERNADETTES CATHOLIC PRIMARY SCHOOL,25.44,MISC DAIRY PRODUCTS-PROVISIONS,OTHER NONDURABLE GOODS (5199)
05 Jul 2014,JOHAL DAIRIES LTD,NEIGHBOURHOOD SERVICES,CA GREENFIELD PRIMARY,67.21,MISC DAIRY PRODUCTS-PROVISIONS,OTHER NONDURABLE GOODS (5199)
05 Jul 2014,JOHAL DAIRIES LTD,NEIGHBOURHOOD SERVICES,CA CASTLEFORT JMI SCHOOL,37.06,MISC DAIRY PRODUCTS-PROVISIONS,OTHER NONDURABLE GOODS (5199)
05 Jul 2014,JOHAL DAIRIES LTD,NEIGHBOURHOOD SERVICES,CA WALSALL WOOD PRIMARY SCHOOL,15.31,MISC DAIRY PRODUCTS-PROVISIONS,OTHER NONDURABLE GOODS (5199)
05 Jul 2014,JOHAL DAIRIES LTD,NEIGHBOURHOOD SERVICES,CA HARDEN PRIMARY SCHOOL,101.85,MISC DAIRY PRODUCTS-PROVISIONS,OTHER NONDURABLE GOODS (5199)
05 Jul 2014,JOHAL DAIRIES LTD,NEIGHBOURHOOD SERVICES,CA COOPER JORDAN CE PRIMARY SCHOOL,20.03,MISC DAIRY PRODUCTS-PROVISIONS,OTHER NONDURABLE GOODS (5199)
05 Jul 2014,AMAZON *MKTPLCE EU-UK,NEIGHBOURHOOD SERVICES,NEW ART GALLERY - ADMIN,27.99,NEW-FURNITURE & EQUIPMENT,BOOK STORES (5942)
05 Jul 2014,JOHAL DAIRIES LTD,NEIGHBOURHOOD SERVICES,CA OLD HALL SPECIAL SCHOOL,22.09,MISC DAIRY PRODUCTS-PROVISIONS,OTHER NONDURABLE GOODS (5199)
05 Jul 2014,POUNDSTRETCHER 348,CHILDRENS SERVICES,SPINDLETREE,15.45,GENERAL PROVISIONS-PROVISIONS,"DRAPERY, UPHOLSTERY, AND WINDOW COVERINGS STORES (5714)"
05 Jul 2014,JOHAL DAIRIES LTD,NEIGHBOURHOOD SERVICES,CA PALFREY INFANT SCHOOL,8.37,MISC DAIRY PRODUCTS-PROVISIONS,OTHER NONDURABLE GOODS (5199)
05 Jul 2014,JOHAL DAIRIES LTD,NEIGHBOURHOOD SERVICES,CA BLAKENALL HEATH JUNIOR SCHOOL,58.59,MISC DAIRY PRODUCTS-PROVISIONS,OTHER NONDURABLE GOODS (5199)
05 Jul 2014,JOHAL DAIRIES LTD,NEIGHBOURHOOD SERVICES,CA BLUE COAT C.E. JUNIOR SCHOOL,68.76,MISC DAIRY PRODUCTS-PROVISIONS,OTHER NONDURABLE GOODS (5199)
05 Jul 2014,JOHAL DAIRIES LTD,NEIGHBOURHOOD SERVICES,CA MILLFIELD PRIMARY SCHOOL,48.25,MISC DAIRY PRODUCTS-PROVISIONS,OTHER NONDURABLE GOODS (5199)
05 Jul 2014,JOHAL DAIRIES LTD,NEIGHBOURHOOD SERVICES,CA LEAMORE PRIMARY SCHOOL,30.49,MISC DAIRY PRODUCTS-PROVISIONS,OTHER NONDURABLE GOODS (5199)
05 Jul 2014,JOHAL DAIRIES LTD,NEIGHBOURHOOD SERVICES,CA ST JOHNS C.E. PRIMARY SCHOOL,32.25,MISC DAIRY PRODUCTS-PROVISIONS,OTHER NONDURABLE GOODS (5199)
05 Jul 2014,JOHAL DAIRIES LTD,NEIGHBOURHOOD SERVICES,CA JOSEPH LECKIE COMMUNITY TECHNOLOGY COLLEGE,28.78,MISC DAIRY PRODUCTS-PROVISIONS,OTHER NONDURABLE GOODS (5199)
05 Jul 2014,JOHAL DAIRIES LTD,NEIGHBOURHOOD SERVICES,CA BLACKWOOD PRIMARY SCHOOL,44.80,MISC DAIRY PRODUCTS-PROVISIONS,OTHER NONDURABLE GOODS (5199)
05 Jul 2014,JOHAL DAIRIES LTD,NEIGHBOURHOOD SERVICES,CA GREEN ROCK PRIMARY,47.58,MISC DAIRY PRODUCTS-PROVISIONS,OTHER NONDURABLE GOODS (5199)
05 Jul 2014,JOHAL DAIRIES LTD,NEIGHBOURHOOD SERVICES,CA ELMORE GREEN PRIMARY SCHOOL,33.47,MISC DAIRY PRODUCTS-PROVISIONS,OTHER NONDURABLE GOODS (5199)
05 Jul 2014,JOHAL DAIRIES LTD,NEIGHBOURHOOD SERVICES,CA BLUE COAT C.E. INFANT SCHOOL,46.90,MISC DAIRY PRODUCTS-PROVISIONS,OTHER NONDURABLE GOODS (5199)
05 Jul 2014,JOHAL DAIRIES LTD,NEIGHBOURHOOD SERVICES,TOWN HALL RESTAURANT BISTRO,35.52,MISC DAIRY PRODUCTS-PROVISIONS,OTHER NONDURABLE GOODS (5199)
05 Jul 2014,JOHAL DAIRIES LTD,NEIGHBOURHOOD SERVICES,CA JANE LANE SPECIAL SCHOOL,33.08,MISC DAIRY PRODUCTS-PROVISIONS,OTHER NONDURABLE GOODS (5199)
05 Jul 2014,JOHAL DAIRIES LTD,NEIGHBOURHOOD SERVICES,CA MOORCROFT WOOD,39.05,MISC DAIRY PRODUCTS-PROVISIONS,OTHER NONDURABLE GOODS (5199)
06 Jul 2014,TESCO STORES 6161,CHILDRENS SERVICES,FOOD TECHNOLOGY,3.00,GENERAL MATERIALS,GROCERY STORES AND SUPERMARKETS (5411)
07 Jul 2014,WELSH BROS FOODS LTD,NEIGHBOURHOOD SERVICES,CA BLACKWOOD PRIMARY SCHOOL,67.11,MEAT-PROVISIONS,FREEZER AND LOCKER MEAT PROVISIONERS (5422)
07 Jul 2014,CHICKEN JOES LTD,NEIGHBOURHOOD SERVICES,CA ST JOHNS C.E. PRIMARY SCHOOL,55.25,FROZEN FOODS-PROVISIONS,CATERERS (5811)
07 Jul 2014,CHICKEN JOES LTD,NEIGHBOURHOOD SERVICES,CA MEADOW VIEW JMI PRIMARY SCHOOL,33.30,FROZEN FOODS-PROVISIONS,CATERERS (5811)
07 Jul 2014,ARTHUR BRETT CATER,NEIGHBOURHOOD SERVICES,CA MILLFIELD PRIMARY SCHOOL,61.71,FRUIT & VEGETABLES OTHER-PROVISIONS,MISCELLANEOUS FOOD STORES & CONVENIENCE STORES (5499)
07 Jul 2014,BLAKEMORE FOODSERVICE,NEIGHBOURHOOD SERVICES,CA MOORCROFT WOOD,46.98,FROZEN FOODS-PROVISIONS,CATERERS (5811)
07 Jul 2014,BLAKEMORE FOODSERVICE,NEIGHBOURHOOD SERVICES,CA MOORCROFT WOOD,7.44,FROZEN FOODS-PROVISIONS,CATERERS (5811)
07 Jul 2014,AMAZON *MKTPLCE EU-UK,NEIGHBOURHOOD SERVICES,JK ESOL,19.99,GENERAL MATERIALS,BOOK STORES (5942)
07 Jul 2014,WELSH BROS FOODS LTD,NEIGHBOURHOOD SERVICES,CA ELMORE GREEN PRIMARY SCHOOL,151.01,MEAT-PROVISIONS,FREEZER AND LOCKER MEAT PROVISIONERS (5422)
07 Jul 2014,BLAKEMORE FOODSERVICE,NEIGHBOURHOOD SERVICES,CA BEACON PRIMARY SCHOOL,265.94,FROZEN FOODS-PROVISIONS,CATERERS (5811)
07 Jul 2014,BLAKEMORE FOODSERVICE,NEIGHBOURHOOD SERVICES,CA RADLEYS PRIMARY SCHOOL,253.85,DRY FOODS-PROVISIONS,CATERERS (5811)
07 Jul 2014,BLAKEMORE FOODSERVICE,NEIGHBOURHOOD SERVICES,CA RADLEYS PRIMARY SCHOOL,60.60,DRY FOODS-PROVISIONS,CATERERS (5811)
07 Jul 2014,BT BILL PAYMENT 2,SOCIAL CARE & INCLUSION,INTEGRATED BUSINESS PROCESSES & SERVICES,128.60,COSTS (NOT INTERNAL RECHARGES)-TELEPHONES,TELECOMMUNICATION EQUIPMENT & SALES (4812)
07 Jul 2014,BLAKEMORE FOODSERVICE,NEIGHBOURHOOD SERVICES,CA CROFT COMMUNITY PRIMARY SCHOOL,139.32,FROZEN FOODS-PROVISIONS,CATERERS (5811)
07 Jul 2014,OFFICE DEPOT,NEIGHBOURHOOD SERVICES,WALSALL MUSEUM,8.83,STATIONERY & GENERAL SUPPLIES-OFFICE EXP,"STATIONERY, OFFICE SUPPLIES AND WRITING PAPER (5111)"
07 Jul 2014,OFFICE DEPOT,NEIGHBOURHOOD SERVICES,PRINCIPAL MARKETING,104.76,STATIONERY & GENERAL SUPPLIES-OFFICE EXP,"STATIONERY, OFFICE SUPPLIES AND WRITING PAPER (5111)"
07 Jul 2014,CHICKEN JOES LTD,NEIGHBOURHOOD SERVICES,CA LEIGHSWOOD PRIMARY SCHOOL,43.70,FROZEN FOODS-PROVISIONS,CATERERS (5811)
07 Jul 2014,BLAKEMORE FOODSERVICE,NEIGHBOURHOOD SERVICES,CA PALFREY JUNIOR SCHOOL,164.31,FROZEN FOODS-PROVISIONS,CATERERS (5811)
07 Jul 2014,BLAKEMORE FOODSERVICE,NEIGHBOURHOOD SERVICES,CA PALFREY JUNIOR SCHOOL,7.68,FROZEN FOODS-PROVISIONS,CATERERS (5811)
07 Jul 2014,COLUMBUS TRAINLINE,CHILDRENS SERVICES,LOOKED AFTER CHILDRENS SOCIAL WORK TEAM,1.00,SUPPORT UNDER SECTION 23 OF THE CHILDRENS ACT,"INSURANCE SALES, UNDERWRITING, AND PREMIUMS (6300)"
07 Jul 2014,BLAKEMORE FOODSERVICE,NEIGHBOURHOOD SERVICES,CA BLACKWOOD PRIMARY SCHOOL,293.84,DRY FOODS-PROVISIONS,CATERERS (5811)
07 Jul 2014,BLAKEMORE FOODSERVICE,NEIGHBOURHOOD SERVICES,CA BLACKWOOD PRIMARY SCHOOL,161.28,DRY FOODS-PROVISIONS,CATERERS (5811)
07 Jul 2014,ARTHUR BRETT CATER,NEIGHBOURHOOD SERVICES,CA BROWNHILLS WEST PRIMARY SCHOOL,75.65,FRUIT & VEGETABLES OTHER-PROVISIONS,MISCELLANEOUS FOOD STORES & CONVENIENCE STORES (5499)
07 Jul 2014,ARTHUR BRETT CATER,NEIGHBOURHOOD SERVICES,CA BLACKWOOD PRIMARY SCHOOL,59.18,FRUIT & VEGETABLES OTHER-PROVISIONS,MISCELLANEOUS FOOD STORES & CONVENIENCE STORES (5499)
07 Jul 2014,BLAKEMORE FOODSERVICE,NEIGHBOURHOOD SERVICES,CA BUSILL JONES PRIMARY SCHOOL,204.37,FROZEN FOODS-PROVISIONS,CATERERS (5811)
07 Jul 2014,BLAKEMORE FOODSERVICE,NEIGHBOURHOOD SERVICES,CA JOSEPH LECKIE COMMUNITY TECHNOLOGY COLLEGE,338.11,DRY FOODS-PROVISIONS,CATERERS (5811)
07 Jul 2014,BLAKEMORE FOODSERVICE,NEIGHBOURHOOD SERVICES,CA JOSEPH LECKIE COMMUNITY TECHNOLOGY COLLEGE,180.38,DRY FOODS-PROVISIONS,CATERERS (5811)
07 Jul 2014,SAINSBURYS S/MKT,NEIGHBOURHOOD SERVICES,EXTL FUNDED ARTS & REGENERATION,-649.90,BEVERAGES-PROVISIONS,GROCERY STORES AND SUPERMARKETS (5411)
07 Jul 2014,CHICKEN JOES LTD,NEIGHBOURHOOD SERVICES,CA MOORCROFT WOOD,30.65,FROZEN FOODS-PROVISIONS,CATERERS (5811)
07 Jul 2014,ARTHUR BRETT CATER,NEIGHBOURHOOD SERVICES,CA OAKWOOD SPECIAL SCHOOL,41.33,FRUIT & VEGETABLES OTHER-PROVISIONS,MISCELLANEOUS FOOD STORES & CONVENIENCE STORES (5499)
07 Jul 2014,ARTHUR BRETT CATER,NEIGHBOURHOOD SERVICES,CA ST BERNADETTES CATHOLIC PRIMARY SCHOOL,25.01,FRUIT & VEGETABLES OTHER-PROVISIONS,MISCELLANEOUS FOOD STORES & CONVENIENCE STORES (5499)
07 Jul 2014,CHICKEN JOES LTD,NEIGHBOURHOOD SERVICES,CA COOPER JORDAN CE PRIMARY SCHOOL,33.30,FROZEN FOODS-PROVISIONS,CATERERS (5811)
07 Jul 2014,WELSH BROS FOODS LTD,NEIGHBOURHOOD SERVICES,CA FIBBERSLEY PARK PRIMARY SCHOOL,90.15,MEAT-PROVISIONS,FREEZER AND LOCKER MEAT PROVISIONERS (5422)
07 Jul 2014,CHICKEN JOES LTD,NEIGHBOURHOOD SERVICES,CA ST MICHAELS C.E. PRIMARY SCHOOL,52.85,FROZEN FOODS-PROVISIONS,CATERERS (5811)
07 Jul 2014,BLAKEMORE FOODSERVICE,NEIGHBOURHOOD SERVICES,CA JANE LANE SPECIAL SCHOOL,68.36,DRY FOODS-PROVISIONS,CATERERS (5811)
07 Jul 2014,WELSH BROS FOODS LTD,NEIGHBOURHOOD SERVICES,CA BROWNHILLS COMMUNITY TECHNOLOGY COLLEGE,98.46,MEAT-PROVISIONS,FREEZER AND LOCKER MEAT PROVISIONERS (5422)
07 Jul 2014,ARTHUR BRETT CATER,NEIGHBOURHOOD SERVICES,CA ST JOHNS C.E. PRIMARY SCHOOL,111.59,FRUIT & VEGETABLES OTHER-PROVISIONS,MISCELLANEOUS FOOD STORES & CONVENIENCE STORES (5499)
07 Jul 2014,BLAKEMORE FOODSERVICE,NEIGHBOURHOOD SERVICES,CA RADLEYS PRIMARY SCHOOL,141.83,DRY FOODS-PROVISIONS,CATERERS (5811)
07 Jul 2014,BLAKEMORE FOODSERVICE,NEIGHBOURHOOD SERVICES,CA RADLEYS PRIMARY SCHOOL,15.36,DRY FOODS-PROVISIONS,CATERERS (5811)
07 Jul 2014,W M MORRISON PLC,CHILDRENS SERVICES,"43A HILTON ROAD, WILLENHALL",2.00,GENERAL PROVISIONS-PROVISIONS,GROCERY STORES AND SUPERMARKETS (5411)
07 Jul 2014,W M MORRISON PLC,CHILDRENS SERVICES,"43A HILTON ROAD, WILLENHALL",1.92,GENERAL PROVISIONS-PROVISIONS,GROCERY STORES AND SUPERMARKETS (5411)
07 Jul 2014,TESCO STORES 6161,CHILDRENS SERVICES,"43A HILTON ROAD, WILLENHALL",2.00,GENERAL PROVISIONS-PROVISIONS,GROCERY STORES AND SUPERMARKETS (5411)
07 Jul 2014,OFFICE DEPOT,NEIGHBOURHOOD SERVICES,ENVIRONMENTAL IMPROVEMENT SERVICE,30.35,GENERAL MATERIALS,"STATIONERY, OFFICE SUPPLIES AND WRITING PAPER (5111)"
07 Jul 2014,BLAKEMORE FOODSERVICE,NEIGHBOURHOOD SERVICES,CA MOORCROFT WOOD,47.89,FROZEN FOODS-PROVISIONS,CATERERS (5811)
07 Jul 2014,BLAKEMORE FOODSERVICE,NEIGHBOURHOOD SERVICES,CA MOORCROFT WOOD,7.68,FROZEN FOODS-PROVISIONS,CATERERS (5811)
07 Jul 2014,WELSH BROS FOODS LTD,NEIGHBOURHOOD SERVICES,CA ST ANNES CATHOLIC PRIMARY SCHOOL,38.77,MEAT-PROVISIONS,FREEZER AND LOCKER MEAT PROVISIONERS (5422)
07 Jul 2014,ASDA HOME DELIVERY,CHILDRENS SERVICES,"CLUSTER 1 BROWNHILLS,GREENFIELDS,PELSALL",69.60,FOOD AND BEVERAGES-PROVISIONS,GROCERY STORES AND SUPERMARKETS (5411)
07 Jul 2014,ASDA HOME DELIVERY,CHILDRENS SERVICES,"CLUSTER 1 BROWNHILLS,GREENFIELDS,PELSALL",46.01,FOOD AND BEVERAGES-PROVISIONS,GROCERY STORES AND SUPERMARKETS (5411)
07 Jul 2014,WELSH BROS FOODS LTD,NEIGHBOURHOOD SERVICES,CA TOWN HALL RESTAURANT - CATERING,202.33,MEAT-PROVISIONS,FREEZER AND LOCKER MEAT PROVISIONERS (5422)
07 Jul 2014,ARTHUR BRETT CATER,NEIGHBOURHOOD SERVICES,CA LINDENS PRIMARY SCHOOL,70.52,FRUIT & VEGETABLES OTHER-PROVISIONS,MISCELLANEOUS FOOD STORES & CONVENIENCE STORES (5499)
07 Jul 2014,BLAKEMORE FOODSERVICE,NEIGHBOURHOOD SERVICES,CA WATLING STREET PRIMARY SCHOOL,79.91,DRY FOODS-PROVISIONS,CATERERS (5811)
07 Jul 2014,WM MORRISON FOOD.COM,CHILDRENS SERVICES,CLUSTER 5 DARLASTON,420.01,FOOD AND BEVERAGES-PROVISIONS,GROCERY STORES AND SUPERMARKETS (5411)
07 Jul 2014,AQUAID FRANCHISING LTD,CHILDRENS SERVICES,UNIVERSAL EDUCATION CLIENT UNIT,831.60,STAFF MINERAL WATER-EQUIPMENT,OTHER BUSINESS SERVICES (7399)
07 Jul 2014,WALSALL COUNCIL,NEIGHBOURHOOD SERVICES,COMPLIANCE MANAGEMENT,30.00,COSTS (NOT INTERNAL RECHARGES)-TELEPHONES,GOVERNMENT SERVICES (9399)
07 Jul 2014,BLAKEMORE FOODSERVICE,NEIGHBOURHOOD SERVICES,CA RUSHALL JMI SCHOOL,131.50,DRY FOODS-PROVISIONS,CATERERS (5811)
07 Jul 2014,BLAKEMORE FOODSERVICE,NEIGHBOURHOOD SERVICES,CA CASTLEFORT JMI SCHOOL,122.86,DRY FOODS-PROVISIONS,CATERERS (5811)
07 Jul 2014,BLAKEMORE FOODSERVICE,NEIGHBOURHOOD SERVICES,CA CASTLEFORT JMI SCHOOL,96.76,DRY FOODS-PROVISIONS,CATERERS (5811)
07 Jul 2014,BLAKEMORE FOODSERVICE,NEIGHBOURHOOD SERVICES,CA CROFT COMMUNITY PRIMARY SCHOOL,224.26,DRY FOODS-PROVISIONS,CATERERS (5811)
07 Jul 2014,BLAKEMORE FOODSERVICE,NEIGHBOURHOOD SERVICES,CA CROFT COMMUNITY PRIMARY SCHOOL,0.45,DRY FOODS-PROVISIONS,CATERERS (5811)
07 Jul 2014,CHICKEN JOES LTD,NEIGHBOURHOOD SERVICES,CA BROWNHILLS COMMUNITY TECHNOLOGY COLLEGE,206.60,FROZEN FOODS-PROVISIONS,CATERERS (5811)
07 Jul 2014,WELSH BROS FOODS LTD,NEIGHBOURHOOD SERVICES,CA BEACON PRIMARY SCHOOL,108.33,MEAT-PROVISIONS,FREEZER AND LOCKER MEAT PROVISIONERS (5422)
07 Jul 2014,ASDA HOME DELIVERY,CHILDRENS SERVICES,57 LICHFIELD ROAD,139.20,GENERAL PROVISIONS-PROVISIONS,GROCERY STORES AND SUPERMARKETS (5411)
07 Jul 2014,WELSH BROS FOODS LTD,NEIGHBOURHOOD SERVICES,CA MEADOW VIEW JMI PRIMARY SCHOOL,145.59,MEAT-PROVISIONS,FREEZER AND LOCKER MEAT PROVISIONERS (5422)
07 Jul 2014,WELSH BROS FOODS LTD,NEIGHBOURHOOD SERVICES,CA ST JOHNS C.E. PRIMARY SCHOOL,59.31,MEAT-PROVISIONS,FREEZER AND LOCKER MEAT PROVISIONERS (5422)
07 Jul 2014,WELSH BROS FOODS LTD,NEIGHBOURHOOD SERVICES,CA JANE LANE SPECIAL SCHOOL,22.17,MEAT-PROVISIONS,FREEZER AND LOCKER MEAT PROVISIONERS (5422)
07 Jul 2014,WALSALL COUNCIL,CHILDRENS SERVICES,LOOKED AFTER CHILDRENS SOCIAL WORK TEAM,35.00,SUPPORT UNDER SECTION 23 OF THE CHILDRENS ACT,GOVERNMENT SERVICES (9399)
07 Jul 2014,CHICKEN JOES LTD,NEIGHBOURHOOD SERVICES,CA LEIGHSWOOD PRIMARY SCHOOL,65.56,FROZEN FOODS-PROVISIONS,CATERERS (5811)
07 Jul 2014,BORSHCH ELECTRIC,RESOURCES,WALSALL CRISIS SUPPORT SCHEME,325.00,CRISIS SUPPORT PAYMENTS,HOUSEHOLD APPLIANCE STORES (5722)
07 Jul 2014,CHICKEN JOES LTD,NEIGHBOURHOOD SERVICES,CA BEACON PRIMARY SCHOOL,54.10,FROZEN FOODS-PROVISIONS,CATERERS (5811)
07 Jul 2014,WELSH BROS FOODS LTD,NEIGHBOURHOOD SERVICES,CA WHETSTONE FIELD PRIMARY SCHOOL,37.67,MEAT-PROVISIONS,FREEZER AND LOCKER MEAT PROVISIONERS (5422)
07 Jul 2014,CHICKEN JOES LTD,NEIGHBOURHOOD SERVICES,CA WATLING STREET PRIMARY SCHOOL,75.31,FROZEN FOODS-PROVISIONS,CATERERS (5811)
07 Jul 2014,BLAKEMORE FOODSERVICE,NEIGHBOURHOOD SERVICES,CA OAKWOOD SPECIAL SCHOOL,144.21,DRY FOODS-PROVISIONS,CATERERS (5811)
07 Jul 2014,ASDA HOME DELIVERY,CHILDRENS SERVICES,"ELDON STREET, WALSALL",145.88,GENERAL PROVISIONS-PROVISIONS,GROCERY STORES AND SUPERMARKETS (5411)
07 Jul 2014,BLAKEMORE FOODSERVICE,NEIGHBOURHOOD SERVICES,CA COOPER JORDAN CE PRIMARY SCHOOL,214.76,DRY FOODS-PROVISIONS,CATERERS (5811)
07 Jul 2014,BLAKEMORE FOODSERVICE,NEIGHBOURHOOD SERVICES,CA COOPER JORDAN CE PRIMARY SCHOOL,8.06,DRY FOODS-PROVISIONS,CATERERS (5811)
07 Jul 2014,CHICKEN JOES LTD,NEIGHBOURHOOD SERVICES,CA BEACON PRIMARY SCHOOL,72.40,FROZEN FOODS-PROVISIONS,CATERERS (5811)
07 Jul 2014,BT BILL PAYMENT 2,CHILDRENS SERVICES,EARLY YEARS SERVICE,121.68,COSTS (NOT INTERNAL RECHARGES)-TELEPHONES,TELECOMMUNICATION EQUIPMENT & SALES (4812)
07 Jul 2014,WEST MID TRAVEL,CHILDRENS SERVICES,SAFEGUARDING & FAMILY SUPPORT,420.00,OFFICER/STAFF-PUBLIC TRANSPORT,BUS LINES (4131)
07 Jul 2014,WEST MID TRAVEL,CHILDRENS SERVICES,SAFEGUARDING & FAMILY SUPPORT,6.15,OFFICER/STAFF-PUBLIC TRANSPORT,BUS LINES (4131)
07 Jul 2014,WELSH BROS FOODS LTD,NEIGHBOURHOOD SERVICES,CA OLD HALL SPECIAL SCHOOL,16.92,MEAT-PROVISIONS,FREEZER AND LOCKER MEAT PROVISIONERS (5422)
07 Jul 2014,123-REG.CO.UK,CHILDRENS SERVICES,YOUTH OPINIONS UNITE,8.38,COMPUTER EQUIPMENT AND SUPPLIES,COMPUTER NETWORK/INFORMATION SERVICES (4816)
07 Jul 2014,ARTHUR BRETT CATER,NEIGHBOURHOOD SERVICES,CA MEADOW VIEW JMI PRIMARY SCHOOL,70.47,FRUIT & VEGETABLES OTHER-PROVISIONS,MISCELLANEOUS FOOD STORES & CONVENIENCE STORES (5499)
07 Jul 2014,BORSHCH ELECTRIC,RESOURCES,WALSALL CRISIS SUPPORT SCHEME,195.00,CRISIS SUPPORT PAYMENTS,HOUSEHOLD APPLIANCE STORES (5722)
07 Jul 2014,CRAZY HOUSE (BROWNHILL,RESOURCES,WALSALL CRISIS SUPPORT SCHEME,210.00,CRISIS SUPPORT PAYMENTS,"EQUIPMENT, FURNITURE, AND HOME FURNISHINGS STORES  (5712)"
07 Jul 2014,WELSH BROS FOODS LTD,NEIGHBOURHOOD SERVICES,CA JOSEPH LECKIE COMMUNITY TECHNOLOGY COLLEGE,113.42,MEAT-PROVISIONS,FREEZER AND LOCKER MEAT PROVISIONERS (5422)
07 Jul 2014,CRAZY HOUSE (BROWNHILL,RESOURCES,WALSALL CRISIS SUPPORT SCHEME,105.00,CRISIS SUPPORT PAYMENTS,"EQUIPMENT, FURNITURE, AND HOME FURNISHINGS STORES  (5712)"
07 Jul 2014,CHICKEN JOES LTD,NEIGHBOURHOOD SERVICES,CA ST JOHNS C.E. PRIMARY SCHOOL,48.14,FROZEN FOODS-PROVISIONS,CATERERS (5811)
07 Jul 2014,CHICKEN JOES LTD,NEIGHBOURHOOD SERVICES,CA BARCROFT D/C,42.50,FROZEN FOODS-PROVISIONS,CATERERS (5811)
07 Jul 2014,BLAKEMORE FOODSERVICE,NEIGHBOURHOOD SERVICES,TOWN HALL RESTAURANT BISTRO,47.82,FROZEN FOODS-PROVISIONS,CATERERS (5811)
07 Jul 2014,GRO HM PASSPORT OFFICE,CHILDRENS SERVICES,LOOKED AFTER CHILDRENS SOCIAL WORK TEAM,18.50,SUPPORT UNDER SECTION 23 OF THE CHILDRENS ACT,GOVERNMENT SERVICES (9399)
07 Jul 2014,PAYPAL,CHILDRENS SERVICES,FOOD TECHNOLOGY,34.00,GENERAL MATERIALS,PROFESSIONAL SERVICES (8999)
07 Jul 2014,PAYPAL,CHILDRENS SERVICES,FOOD TECHNOLOGY,6.00,GENERAL MATERIALS,PROFESSIONAL SERVICES (8999)
07 Jul 2014,ARTHUR BRETT CATER,NEIGHBOURHOOD SERVICES,CA BROWNHILLS COMMUNITY TECHNOLOGY COLLEGE,68.25,FRUIT & VEGETABLES OTHER-PROVISIONS,MISCELLANEOUS FOOD STORES & CONVENIENCE STORES (5499)
07 Jul 2014,WELSH BROS FOODS LTD,NEIGHBOURHOOD SERVICES,CA LINDENS PRIMARY SCHOOL,61.90,MEAT-PROVISIONS,FREEZER AND LOCKER MEAT PROVISIONERS (5422)
07 Jul 2014,BLAKEMORE FOODSERVICE,NEIGHBOURHOOD SERVICES,TOWN HALL RESTAURANT BISTRO,30.82,DRY FOODS-PROVISIONS,CATERERS (5811)
07 Jul 2014,BLAKEMORE FOODSERVICE,NEIGHBOURHOOD SERVICES,TOWN HALL RESTAURANT BISTRO,313.57,DRY FOODS-PROVISIONS,CATERERS (5811)
07 Jul 2014,BLAKEMORE FOODSERVICE,NEIGHBOURHOOD SERVICES,CA RADLEYS PRIMARY SCHOOL,4.77,FROZEN FOODS-PROVISIONS,CATERERS (5811)
07 Jul 2014,ARTHUR BRETT CATER,NEIGHBOURHOOD SERVICES,CA LEIGHSWOOD PRIMARY SCHOOL,58.24,FRUIT & VEGETABLES OTHER-PROVISIONS,MISCELLANEOUS FOOD STORES & CONVENIENCE STORES (5499)
07 Jul 2014,ASDA HOME DELIVERY,CHILDRENS SERVICES,"CLUSTER 3 BLOXWICH,BLAKENALL,HATHERTON,E STAMMERS",76.50,FOOD AND BEVERAGES-PROVISIONS,GROCERY STORES AND SUPERMARKETS (5411)
07 Jul 2014,ASDA HOME DELIVERY,CHILDRENS SERVICES,"CLUSTER 3 BLOXWICH,BLAKENALL,HATHERTON,E STAMMERS",30.32,FOOD AND BEVERAGES-PROVISIONS,GROCERY STORES AND SUPERMARKETS (5411)
07 Jul 2014,W M MORRISONS,NEIGHBOURHOOD SERVICES,CHILDRENS LIBRARY - BOOKSTART,36.00,GENERAL MATERIALS,GROCERY STORES AND SUPERMARKETS (5411)
07 Jul 2014,BORSHCH ELECTRIC,RESOURCES,WALSALL CRISIS SUPPORT SCHEME,520.00,CRISIS SUPPORT PAYMENTS,HOUSEHOLD APPLIANCE STORES (5722)
07 Jul 2014,ASDA HOME DELIVERY,NEIGHBOURHOOD SERVICES,AP FINANCE & RESOURCES ADMINISTRATION,46.35,CATERING,GROCERY STORES AND SUPERMARKETS (5411)
07 Jul 2014,ASDA HOME DELIVERY,NEIGHBOURHOOD SERVICES,AP QUALITY & PERFORMANCE DISCRETIONARY LEARNER SUP,220.55,CATERING,GROCERY STORES AND SUPERMARKETS (5411)
07 Jul 2014,LONDON MIDLAND TIC,CHILDRENS SERVICES,PARENTING TEAM,4.80,OFFICER/STAFF-PUBLIC TRANSPORT,PASSENGER RAILWAYS (4112)
07 Jul 2014,ASDA HOME DELIVERY,CHILDRENS SERVICES,STANLEYS NURSERY,0.85,FOOD AND BEVERAGES-PROVISIONS,GROCERY STORES AND SUPERMARKETS (5411)
07 Jul 2014,ASDA HOME DELIVERY,CHILDRENS SERVICES,CLUSTER 4 ALUMWELL & BIRCHILLS,49.44,FOOD AND BEVERAGES-PROVISIONS,GROCERY STORES AND SUPERMARKETS (5411)
07 Jul 2014,ASDA HOME DELIVERY,CHILDRENS SERVICES,STANLEYS NURSERY,13.34,FOOD AND BEVERAGES-PROVISIONS,GROCERY STORES AND SUPERMARKETS (5411)
07 Jul 2014,ASDA HOME DELIVERY,CHILDRENS SERVICES,CLUSTER 4 ALUMWELL & BIRCHILLS,18.46,FOOD AND BEVERAGES-PROVISIONS,GROCERY STORES AND SUPERMARKETS (5411)
07 Jul 2014,CHICKEN JOES LTD,NEIGHBOURHOOD SERVICES,CA BUSILL JONES PRIMARY SCHOOL,120.70,FROZEN FOODS-PROVISIONS,CATERERS (5811)
07 Jul 2014,TRAINLINE.COM,CHILDRENS SERVICES,SAFEGUARDING & FAMILY SUPPORT,106.59,OFFICER/STAFF-PUBLIC TRANSPORT,PASSENGER RAILWAYS (4112)
07 Jul 2014,BLAKEMORE FOODSERVICE,NEIGHBOURHOOD SERVICES,CA BLUE COAT C.E. JUNIOR SCHOOL,218.74,FROZEN FOODS-PROVISIONS,CATERERS (5811)
07 Jul 2014,CHICKEN JOES LTD,NEIGHBOURHOOD SERVICES,CA BROWNHILLS COMMUNITY TECHNOLOGY COLLEGE,206.60,FROZEN FOODS-PROVISIONS,CATERERS (5811)
07 Jul 2014,CHICKEN JOES LTD,NEIGHBOURHOOD SERVICES,CA ELMORE GREEN PRIMARY SCHOOL,77.00,FROZEN FOODS-PROVISIONS,CATERERS (5811)
07 Jul 2014,CHICKEN JOES LTD,NEIGHBOURHOOD SERVICES,CA RADLEYS PRIMARY SCHOOL,52.85,FROZEN FOODS-PROVISIONS,CATERERS (5811)
07 Jul 2014,BLAKEMORE FOODSERVICE,NEIGHBOURHOOD SERVICES,CA TOWN HALL RESTAURANT - CATERING,104.25,DRY FOODS-PROVISIONS,CATERERS (5811)
07 Jul 2014,BORSHCH ELECTRIC,RESOURCES,WALSALL CRISIS SUPPORT SCHEME,-75.00,CRISIS SUPPORT PAYMENTS,HOUSEHOLD APPLIANCE STORES (5722)
07 Jul 2014,ARTHUR BRETT CATER,NEIGHBOURHOOD SERVICES,CA WATLING STREET PRIMARY SCHOOL,36.44,FRUIT & VEGETABLES OTHER-PROVISIONS,MISCELLANEOUS FOOD STORES & CONVENIENCE STORES (5499)
07 Jul 2014,THE CARPET MAN,RESOURCES,WALSALL CRISIS SUPPORT SCHEME,210.00,CRISIS SUPPORT PAYMENTS,FLOOR COVERING STORES (5713)
07 Jul 2014,ARTHUR BRETT CATER,NEIGHBOURHOOD SERVICES,CA RADLEYS PRIMARY SCHOOL,37.39,FRUIT & VEGETABLES OTHER-PROVISIONS,MISCELLANEOUS FOOD STORES & CONVENIENCE STORES (5499)
07 Jul 2014,BLAKEMORE FOODSERVICE,NEIGHBOURHOOD SERVICES,CA JOSEPH LECKIE COMMUNITY TECHNOLOGY COLLEGE,94.02,DRY FOODS-PROVISIONS,CATERERS (5811)
07 Jul 2014,BLAKEMORE FOODSERVICE,NEIGHBOURHOOD SERVICES,CA CALDMORE COMMUNITY PRIMARY SCHOOL,50.22,FROZEN FOODS-PROVISIONS,CATERERS (5811)
07 Jul 2014,PROMOTIONAL PROD,NEIGHBOURHOOD SERVICES,AP FINANCE & RESOURCES STAFF DEVELOPMENT,168.76,GENERAL MATERIALS,MISCELLANEOUS ACCESSORY AND APPAREL STORES (5699)
07 Jul 2014,ARTHUR BRETT CATER,NEIGHBOURHOOD SERVICES,CA WATLING STREET PRIMARY SCHOOL,104.19,FRUIT & VEGETABLES OTHER-PROVISIONS,MISCELLANEOUS FOOD STORES & CONVENIENCE STORES (5499)
07 Jul 2014,AMAZON *MKTPLCE EU-UK,NEIGHBOURHOOD SERVICES,NAG - TEMPORARY EXHIBITIONS,-164.00,FURNITURE & EQUIPMENT,BOOK STORES (5942)
07 Jul 2014,BLAKEMORE FOODSERVICE,NEIGHBOURHOOD SERVICES,CA BLUE COAT C.E. INFANT SCHOOL,45.60,DRY FOODS-PROVISIONS,CATERERS (5811)
07 Jul 2014,BLAKEMORE FOODSERVICE,NEIGHBOURHOOD SERVICES,CA BLUE COAT C.E. INFANT SCHOOL,15.36,DRY FOODS-PROVISIONS,CATERERS (5811)
07 Jul 2014,BLAKEMORE FOODSERVICE,NEIGHBOURHOOD SERVICES,CA LINDENS PRIMARY SCHOOL,264.65,DRY FOODS-PROVISIONS,CATERERS (5811)
07 Jul 2014,BLAKEMORE FOODSERVICE,NEIGHBOURHOOD SERVICES,CA LINDENS PRIMARY SCHOOL,145.53,DRY FOODS-PROVISIONS,CATERERS (5811)
07 Jul 2014,CHICKEN JOES LTD,NEIGHBOURHOOD SERVICES,CA BEACON PRIMARY SCHOOL,63.32,FROZEN FOODS-PROVISIONS,CATERERS (5811)
07 Jul 2014,BLAKEMORE FOODSERVICE,NEIGHBOURHOOD SERVICES,CA BARCROFT D/C,118.88,FROZEN FOODS-PROVISIONS,CATERERS (5811)
07 Jul 2014,BLAKEMORE FOODSERVICE,NEIGHBOURHOOD SERVICES,CA BARCROFT D/C,7.68,FROZEN FOODS-PROVISIONS,CATERERS (5811)
07 Jul 2014,WELSH BROS FOODS LTD,NEIGHBOURHOOD SERVICES,CA MOORCROFT WOOD,55.28,MEAT-PROVISIONS,FREEZER AND LOCKER MEAT PROVISIONERS (5422)
07 Jul 2014,123-REG.CO.UK,RESOURCES,RECHARGEABLE EQUIPMENT,8.38,COMPUTER EQUIPMENT AND SUPPLIES,COMPUTER NETWORK/INFORMATION SERVICES (4816)
07 Jul 2014,ARTHUR BRETT CATER,NEIGHBOURHOOD SERVICES,CA ST ANNES CATHOLIC PRIMARY SCHOOL,32.94,FRUIT & VEGETABLES OTHER-PROVISIONS,MISCELLANEOUS FOOD STORES & CONVENIENCE STORES (5499)
07 Jul 2014,BLAKEMORE FOODSERVICE,NEIGHBOURHOOD SERVICES,CA OLD HALL SPECIAL SCHOOL,58.89,FROZEN FOODS-PROVISIONS,CATERERS (5811)
07 Jul 2014,BLAKEMORE FOODSERVICE,NEIGHBOURHOOD SERVICES,CA BROWNHILLS COMMUNITY TECHNOLOGY COLLEGE,220.56,DRY FOODS-PROVISIONS,CATERERS (5811)
07 Jul 2014,BLAKEMORE FOODSERVICE,NEIGHBOURHOOD SERVICES,CA BROWNHILLS COMMUNITY TECHNOLOGY COLLEGE,125.30,DRY FOODS-PROVISIONS,CATERERS (5811)
07 Jul 2014,ASDA HOME DELIVERY,CHILDRENS SERVICES,"CLUSTER 3 BLOXWICH,BLAKENALL,HATHERTON,E STAMMERS",13.36,FOOD AND BEVERAGES-PROVISIONS,GROCERY STORES AND SUPERMARKETS (5411)
07 Jul 2014,ASDA HOME DELIVERY,CHILDRENS SERVICES,"CLUSTER 3 BLOXWICH,BLAKENALL,HATHERTON,E STAMMERS",35.14,FOOD AND BEVERAGES-PROVISIONS,GROCERY STORES AND SUPERMARKETS (5411)
07 Jul 2014,BT BILL PAYMENT 2,SOCIAL CARE & INCLUSION,INTEGRATED BUSINESS PROCESSES & SERVICES,83.86,COSTS (NOT INTERNAL RECHARGES)-TELEPHONES,TELECOMMUNICATION EQUIPMENT & SALES (4812)
07 Jul 2014,WM MORRISON 063,CHILDRENS SERVICES,REDRUTH ROAD,3.02,GENERAL PROVISIONS-PROVISIONS,GROCERY STORES AND SUPERMARKETS (5411)
07 Jul 2014,WM MORRISON 063,CHILDRENS SERVICES,REDRUTH ROAD,65.45,GENERAL PROVISIONS-PROVISIONS,GROCERY STORES AND SUPERMARKETS (5411)
07 Jul 2014,ARTHUR BRETT CATER,NEIGHBOURHOOD SERVICES,CA WALSALL WOOD PRIMARY SCHOOL,36.95,FRUIT & VEGETABLES OTHER-PROVISIONS,MISCELLANEOUS FOOD STORES & CONVENIENCE STORES (5499)
07 Jul 2014,DOMESTIC HEROES LTD,RESOURCES,WALSALL CRISIS SUPPORT SCHEME,96.34,CRISIS SUPPORT PAYMENTS,HOUSEHOLD APPLIANCE STORES (5722)
07 Jul 2014,TRAINLINE.COM,CHILDRENS SERVICES,LOOKED AFTER CHILDRENS SOCIAL WORK TEAM,120.72,OFFICER/STAFF-PUBLIC TRANSPORT,PASSENGER RAILWAYS (4112)
07 Jul 2014,WELSH BROS FOODS LTD,NEIGHBOURHOOD SERVICES,CA BARCROFT D/C,101.93,MEAT-PROVISIONS,FREEZER AND LOCKER MEAT PROVISIONERS (5422)
07 Jul 2014,CHICKEN JOES LTD,NEIGHBOURHOOD SERVICES,CA BUSILL JONES PRIMARY SCHOOL,63.25,FROZEN FOODS-PROVISIONS,CATERERS (5811)
07 Jul 2014,BLAKEMORE FOODSERVICE,NEIGHBOURHOOD SERVICES,CA ST ANNES CATHOLIC PRIMARY SCHOOL,229.19,DRY FOODS-PROVISIONS,CATERERS (5811)
07 Jul 2014,BLAKEMORE FOODSERVICE,NEIGHBOURHOOD SERVICES,CA ST ANNES CATHOLIC PRIMARY SCHOOL,25.35,DRY FOODS-PROVISIONS,CATERERS (5811)
07 Jul 2014,BLAKEMORE FOODSERVICE,NEIGHBOURHOOD SERVICES,CA LINDENS PRIMARY SCHOOL,5.40,DRY FOODS-PROVISIONS,CATERERS (5811)
07 Jul 2014,BLAKEMORE FOODSERVICE,NEIGHBOURHOOD SERVICES,CA BIRCHILLS CE PRIMARY COMMUNITY SCHOOL,166.62,FROZEN FOODS-PROVISIONS,CATERERS (5811)
07 Jul 2014,DARLASTON BUILDERS,REGENERATION,DARLASTON DISTRICT CENTRE,25.29,MISCELLANEOUS SUPPLIES,LUMBER & BUILDING MATERIALS STORES (5211)
07 Jul 2014,BLAKEMORE FOODSERVICE,NEIGHBOURHOOD SERVICES,CA TOWN HALL RESTAURANT - CATERING,76.15,FROZEN FOODS-PROVISIONS,CATERERS (5811)
07 Jul 2014,MNA LTD CARDCHARGE,REGENERATION,DEVELOPMENT MANAGEMENT,71.28,PERIODICALS/MAGAZINES/NEWSPAPERS-SUBSCRIPTIONS,NEWS DEALERS AND NEWSSTANDS (5994)
07 Jul 2014,AMAZON *MKTPLCE EU-UK,NEIGHBOURHOOD SERVICES,NAG - FRONT OF HOUSE,54.99,NEW-FURNITURE & EQUIPMENT,BOOK STORES (5942)
07 Jul 2014,BLAKEMORE FOODSERVICE,NEIGHBOURHOOD SERVICES,CA GREEN ROCK PRIMARY,75.05,DRY FOODS-PROVISIONS,CATERERS (5811)
07 Jul 2014,BLAKEMORE FOODSERVICE,NEIGHBOURHOOD SERVICES,CA GREEN ROCK PRIMARY,12.22,DRY FOODS-PROVISIONS,CATERERS (5811)
07 Jul 2014,BLAKEMORE FOODSERVICE,NEIGHBOURHOOD SERVICES,CA MEADOW VIEW JMI PRIMARY SCHOOL,314.79,DRY FOODS-PROVISIONS,CATERERS (5811)
07 Jul 2014,BLAKEMORE FOODSERVICE,NEIGHBOURHOOD SERVICES,CA MEADOW VIEW JMI PRIMARY SCHOOL,75.14,DRY FOODS-PROVISIONS,CATERERS (5811)
07 Jul 2014,ASDA HOME DELIVERY,CHILDRENS SERVICES,"CLUSTER 3 BLOXWICH,BLAKENALL,HATHERTON,E STAMMERS",76.82,FOOD AND BEVERAGES-PROVISIONS,GROCERY STORES AND SUPERMARKETS (5411)
07 Jul 2014,COLUMBUS TRAINLINE,CHILDRENS SERVICES,LOOKED AFTER CHILDRENS SOCIAL WORK TEAM,1.00,SUPPORT UNDER SECTION 23 OF THE CHILDRENS ACT,"INSURANCE SALES, UNDERWRITING, AND PREMIUMS (6300)"
07 Jul 2014,WELSH BROS FOODS LTD,NEIGHBOURHOOD SERVICES,CA BLUE COAT C.E. JUNIOR SCHOOL,87.31,MEAT-PROVISIONS,FREEZER AND LOCKER MEAT PROVISIONERS (5422)
07 Jul 2014,TRAINLINE.COM,RESOURCES,LAW LIBRARY,6.17,OFFICER/STAFF-PUBLIC TRANSPORT,PASSENGER RAILWAYS (4112)
07 Jul 2014,CHICKEN JOES LTD,NEIGHBOURHOOD SERVICES,CA ELMORE GREEN PRIMARY SCHOOL,87.40,FROZEN FOODS-PROVISIONS,CATERERS (5811)
07 Jul 2014,BLAKEMORE FOODSERVICE,NEIGHBOURHOOD SERVICES,CA BROWNHILLS WEST PRIMARY SCHOOL,123.45,FROZEN FOODS-PROVISIONS,CATERERS (5811)
07 Jul 2014,BLAKEMORE FOODSERVICE,NEIGHBOURHOOD SERVICES,CA BROWNHILLS WEST PRIMARY SCHOOL,48.86,FROZEN FOODS-PROVISIONS,CATERERS (5811)
07 Jul 2014,CHICKEN JOES LTD,NEIGHBOURHOOD SERVICES,CA MILLFIELD PRIMARY SCHOOL,43.70,FROZEN FOODS-PROVISIONS,CATERERS (5811)
07 Jul 2014,ARTHUR BRETT CATER,NEIGHBOURHOOD SERVICES,CA CASTLEFORT JMI SCHOOL,71.01,FRUIT & VEGETABLES OTHER-PROVISIONS,MISCELLANEOUS FOOD STORES & CONVENIENCE STORES (5499)
07 Jul 2014,ASDA,RESOURCES,TENANCY SERVICE,18.58,FOOD AND BEVERAGES-PROVISIONS,GROCERY STORES AND SUPERMARKETS (5411)
07 Jul 2014,ASDA,RESOURCES,TENANCY SERVICE,53.35,FOOD AND BEVERAGES-PROVISIONS,GROCERY STORES AND SUPERMARKETS (5411)
07 Jul 2014,PREMIER INN44010690,CHILDRENS SERVICES,FOSTERING SUPPORT TEAM,88.00,HOTEL ACCOMMODATION-EMPLOYEES,PREMIER INN (3811)
07 Jul 2014,ASDA,RESOURCES,LINK SERVICE,20.00,FOOD AND BEVERAGES-PROVISIONS,GROCERY STORES AND SUPERMARKETS (5411)
07 Jul 2014,ASDA,RESOURCES,LINK SERVICE,7.50,FOOD AND BEVERAGES-PROVISIONS,GROCERY STORES AND SUPERMARKETS (5411)
07 Jul 2014,ASDA HOME DELIVERY,CHILDRENS SERVICES,57 LICHFIELD ROAD,-13.94,GENERAL PROVISIONS-PROVISIONS,GROCERY STORES AND SUPERMARKETS (5411)
07 Jul 2014,PEARSON ED LTD,CHILDRENS SERVICES,ICT LEARNING RESOURCES,184.02,GENERAL MATERIALS,OTHER SCHOOLS AND EDUCATIONAL SERVICES (8299)
07 Jul 2014,PEARSON ED LTD,CHILDRENS SERVICES,ICT LEARNING RESOURCES,22.48,GENERAL MATERIALS,OTHER SCHOOLS AND EDUCATIONAL SERVICES (8299)
07 Jul 2014,WWW.GIROFOOD.COM,NEIGHBOURHOOD SERVICES,CA ST MICHAELS C.E. PRIMARY SCHOOL,94.18,DISPOSABLES-PROVISIONS,WHOLESALE CLUBS (5300)
07 Jul 2014,WWW.GIROFOOD.COM,NEIGHBOURHOOD SERVICES,CA ST JOHNS C.E. PRIMARY SCHOOL,38.04,DISPOSABLES-PROVISIONS,WHOLESALE CLUBS (5300)
07 Jul 2014,WWW.GIROFOOD.COM,NEIGHBOURHOOD SERVICES,CA BLUE COAT C.E. JUNIOR SCHOOL,26.63,DISPOSABLES-PROVISIONS,WHOLESALE CLUBS (5300)
07 Jul 2014,WWW.GIROFOOD.COM,NEIGHBOURHOOD SERVICES,CA WATLING STREET PRIMARY SCHOOL,260.96,DISPOSABLES-PROVISIONS,WHOLESALE CLUBS (5300)
07 Jul 2014,WWW.GIROFOOD.COM,NEIGHBOURHOOD SERVICES,CA ST JOHNS C.E. PRIMARY SCHOOL,-19.12,DISPOSABLES-PROVISIONS,WHOLESALE CLUBS (5300)
08 Jul 2014,BORSHCH ELECTRIC,RESOURCES,WALSALL CRISIS SUPPORT SCHEME,195.00,CRISIS SUPPORT PAYMENTS,HOUSEHOLD APPLIANCE STORES (5722)
08 Jul 2014,ARTHUR BRETT CATER,NEIGHBOURHOOD SERVICES,CA ST MICHAELS C.E. PRIMARY SCHOOL,33.94,FRUIT & VEGETABLES OTHER-PROVISIONS,MISCELLANEOUS FOOD STORES & CONVENIENCE STORES (5499)
08 Jul 2014,ARTHUR BRETT CATER,NEIGHBOURHOOD SERVICES,CA JOSEPH LECKIE COMMUNITY TECHNOLOGY COLLEGE,105.68,FRUIT & VEGETABLES OTHER-PROVISIONS,MISCELLANEOUS FOOD STORES & CONVENIENCE STORES (5499)
08 Jul 2014,ARTHUR BRETT CATER,NEIGHBOURHOOD SERVICES,CA CALDMORE COMMUNITY PRIMARY SCHOOL,55.35,FRUIT & VEGETABLES OTHER-PROVISIONS,MISCELLANEOUS FOOD STORES & CONVENIENCE STORES (5499)
08 Jul 2014,ARGOS B2B ONLINE,CHILDRENS SERVICES,SAFEGUARDING & FAMILY SUPPORT,18.95,BEDDING & LINEN-MATERIALS,DISCOUNT STORES (5310)
08 Jul 2014,DISPLAY FIX LTD,CHILDRENS SERVICES,ART,56.98,GENERAL MATERIALS,OTHER COMMERCIAL EQUIPMENT (5046)
08 Jul 2014,OFFICE DEPOT,SOCIAL CARE & INCLUSION,RESPONSE SERVICES,73.98,STATIONERY & GENERAL SUPPLIES-OFFICE EXP,"STATIONERY, OFFICE SUPPLIES AND WRITING PAPER (5111)"
08 Jul 2014,ARTHUR BRETT CATER,NEIGHBOURHOOD SERVICES,CA GREENFIELD PRIMARY,60.92,FRUIT & VEGETABLES OTHER-PROVISIONS,MISCELLANEOUS FOOD STORES & CONVENIENCE STORES (5499)
08 Jul 2014,SPECIALIST CRAFTS LTD,CHILDRENS SERVICES,ART,116.39,GENERAL MATERIALS,"ARTIST SUPPLY STORES, CRAFT SHOPS (5970)"
08 Jul 2014,ARTHUR BRETT CATER,NEIGHBOURHOOD SERVICES,CA FIBBERSLEY PARK PRIMARY SCHOOL,79.34,FRUIT & VEGETABLES OTHER-PROVISIONS,MISCELLANEOUS FOOD STORES & CONVENIENCE STORES (5499)
08 Jul 2014,BORSHCH ELECTRIC,RESOURCES,WALSALL CRISIS SUPPORT SCHEME,325.00,CRISIS SUPPORT PAYMENTS,HOUSEHOLD APPLIANCE STORES (5722)
08 Jul 2014,OFFICE DEPOT,SOCIAL CARE & INCLUSION,INTEGRATED BUSINESS PROCESSES & SERVICES,391.01,STATIONERY & GENERAL SUPPLIES-OFFICE EXP,"STATIONERY, OFFICE SUPPLIES AND WRITING PAPER (5111)"
08 Jul 2014,CRAZY HOUSE (BROWNHILL,RESOURCES,WALSALL CRISIS SUPPORT SCHEME,60.00,CRISIS SUPPORT PAYMENTS,"EQUIPMENT, FURNITURE, AND HOME FURNISHINGS STORES  (5712)"
08 Jul 2014,OFFICE DEPOT,CHILDRENS SERVICES,CHILDRENS RESIDENTIAL SVCS,44.35,STATIONERY & GENERAL SUPPLIES-OFFICE EXP,"STATIONERY, OFFICE SUPPLIES AND WRITING PAPER (5111)"
08 Jul 2014,ASDA STORES 07146,CHILDRENS SERVICES,ALUMWELL NURSERY,3.50,FOOD AND BEVERAGES-PROVISIONS,GROCERY STORES AND SUPERMARKETS (5411)
08 Jul 2014,ASDA STORES 07146,CHILDRENS SERVICES,ALUMWELL NURSERY,87.21,FOOD AND BEVERAGES-PROVISIONS,GROCERY STORES AND SUPERMARKETS (5411)
08 Jul 2014,BORSHCH ELECTRIC,RESOURCES,WALSALL CRISIS SUPPORT SCHEME,520.00,CRISIS SUPPORT PAYMENTS,HOUSEHOLD APPLIANCE STORES (5722)
08 Jul 2014,ARTHUR BRETT CATER,NEIGHBOURHOOD SERVICES,CA OLD HALL SPECIAL SCHOOL,28.21,FRUIT & VEGETABLES OTHER-PROVISIONS,MISCELLANEOUS FOOD STORES & CONVENIENCE STORES (5499)
08 Jul 2014,AMAZON *MKTPLCE EU-UK,NEIGHBOURHOOD SERVICES,LIBRARY STOCK AND PERFORMANCE,7.79,LIBRARY BOOKS,BOOK STORES (5942)
08 Jul 2014,TESCO STORES 6161,RESOURCES,WALSALL CRISIS SUPPORT SCHEME,3.36,CRISIS SUPPORT PAYMENTS,GROCERY STORES AND SUPERMARKETS (5411)
08 Jul 2014,WWW.DVLA.GOV.UK,NEIGHBOURHOOD SERVICES,FLEET,227.50,LICENCES-TRANSPORT RUN COSTS,GOVERNMENT SERVICES (9399)
08 Jul 2014,TRAVEL WEST MIDLAN,CHILDRENS SERVICES,SPINDLETREE,55.50,RESIDENTS PERSONAL EXPENSES-ALLOWANCES TO S/S CLIENTS,BUS LINES (4131)
08 Jul 2014,WWW.DVLA.GOV.UK,NEIGHBOURHOOD SERVICES,FLEET,227.50,LICENCES-TRANSPORT RUN COSTS,GOVERNMENT SERVICES (9399)
08 Jul 2014,WELSH BROS FOODS LTD,NEIGHBOURHOOD SERVICES,CA BLUE COAT C.E. JUNIOR SCHOOL,35.30,MEAT-PROVISIONS,FREEZER AND LOCKER MEAT PROVISIONERS (5422)
08 Jul 2014,VIKING,SOCIAL CARE & INCLUSION,GOSCOTE,108.58,FURNITURE & EQUIPMENT,"STATIONERY, OFFICE SUPPLIES AND WRITING PAPER (5111)"
08 Jul 2014,ARTHUR BRETT CATER,NEIGHBOURHOOD SERVICES,CA JANE LANE SPECIAL SCHOOL,34.22,FRUIT & VEGETABLES OTHER-PROVISIONS,MISCELLANEOUS FOOD STORES & CONVENIENCE STORES (5499)
08 Jul 2014,WALSALL COUNCIL,CHILDRENS SERVICES,LOOKED AFTER CHILDRENS SOCIAL WORK TEAM,15.00,SUPPORT UNDER SECTION 23 OF THE CHILDRENS ACT,GOVERNMENT SERVICES (9399)
08 Jul 2014,CRAZY HOUSE (BROWNHILL,RESOURCES,WALSALL CRISIS SUPPORT SCHEME,55.00,CRISIS SUPPORT PAYMENTS,"EQUIPMENT, FURNITURE, AND HOME FURNISHINGS STORES  (5712)"
08 Jul 2014,ARTHUR BRETT CATER,NEIGHBOURHOOD SERVICES,CA BIRCHILLS CE PRIMARY COMMUNITY SCHOOL,77.02,FRUIT & VEGETABLES OTHER-PROVISIONS,MISCELLANEOUS FOOD STORES & CONVENIENCE STORES (5499)
08 Jul 2014,ARTHUR BRETT CATER,NEIGHBOURHOOD SERVICES,CA RADLEYS PRIMARY SCHOOL,106.92,FRUIT & VEGETABLES OTHER-PROVISIONS,MISCELLANEOUS FOOD STORES & CONVENIENCE STORES (5499)
08 Jul 2014,ARTHUR BRETT CATER,NEIGHBOURHOOD SERVICES,CA BLAKENALL HEATH JUNIOR SCHOOL,53.47,FRUIT & VEGETABLES OTHER-PROVISIONS,MISCELLANEOUS FOOD STORES & CONVENIENCE STORES (5499)
08 Jul 2014,CRAZY HOUSE (BROWNHILL,RESOURCES,WALSALL CRISIS SUPPORT SCHEME,185.00,CRISIS SUPPORT PAYMENTS,"EQUIPMENT, FURNITURE, AND HOME FURNISHINGS STORES  (5712)"
08 Jul 2014,GALLEON SUPPLIES L,CHILDRENS SERVICES,NEW LEAF PUPIL REFERRAL UNIT,70.56,PERSONAL REQUISITES-MATERIALS,"CLEANING AND MAINTENANCE, JANITORIAL SERVICES (7349)"
08 Jul 2014,NOBISCO LTD,CHILDRENS SERVICES,UNIVERSAL EDUCATION CLIENT UNIT,60.12,STATIONERY & GENERAL SUPPLIES-OFFICE EXP,"CLEANING AND MAINTENANCE, JANITORIAL SERVICES (7349)"
08 Jul 2014,WWW.DVLA.GOV.UK,NEIGHBOURHOOD SERVICES,FLEET,227.50,LICENCES-TRANSPORT RUN COSTS,GOVERNMENT SERVICES (9399)
08 Jul 2014,ARTHUR BRETT CATER,NEIGHBOURHOOD SERVICES,CA BLOXWICH C.E. JMI PRIMARY SCHOOL,48.12,FRUIT & VEGETABLES OTHER-PROVISIONS,MISCELLANEOUS FOOD STORES & CONVENIENCE STORES (5499)
08 Jul 2014,WWW.DVLA.GOV.UK,NEIGHBOURHOOD SERVICES,FLEET,227.50,LICENCES-TRANSPORT RUN COSTS,GOVERNMENT SERVICES (9399)
08 Jul 2014,ARTHUR BRETT CATER,NEIGHBOURHOOD SERVICES,CA BEACON PRIMARY SCHOOL,141.13,FRUIT & VEGETABLES OTHER-PROVISIONS,MISCELLANEOUS FOOD STORES & CONVENIENCE STORES (5499)
08 Jul 2014,ARTHUR BRETT CATER,NEIGHBOURHOOD SERVICES,CA ELMORE GREEN PRIMARY SCHOOL,122.21,FRUIT & VEGETABLES OTHER-PROVISIONS,MISCELLANEOUS FOOD STORES & CONVENIENCE STORES (5499)
08 Jul 2014,OFFICE DEPOT,SOCIAL CARE & INCLUSION,INTEGRATED BUSINESS PROCESSES & SERVICES,83.82,STATIONERY & GENERAL SUPPLIES-OFFICE EXP,"STATIONERY, OFFICE SUPPLIES AND WRITING PAPER (5111)"
08 Jul 2014,WWW.DVLA.GOV.UK,NEIGHBOURHOOD SERVICES,FLEET,227.50,LICENCES-TRANSPORT RUN COSTS,GOVERNMENT SERVICES (9399)
08 Jul 2014,AMAZON EU,CHILDRENS SERVICES,ADMINISTRATIVE SUPPLIES,48.60,GENERAL MATERIALS,OTHER DIRECT MARKETING-OTHER DIRECT MARKETERS (5969)
08 Jul 2014,ARTHUR BRETT CATER,NEIGHBOURHOOD SERVICES,CA WHETSTONE FIELD PRIMARY SCHOOL,54.07,FRUIT & VEGETABLES OTHER-PROVISIONS,MISCELLANEOUS FOOD STORES & CONVENIENCE STORES (5499)
08 Jul 2014,CRAZY HOUSE (BROWNHILL,RESOURCES,WALSALL CRISIS SUPPORT SCHEME,105.00,CRISIS SUPPORT PAYMENTS,"EQUIPMENT, FURNITURE, AND HOME FURNISHINGS STORES  (5712)"
08 Jul 2014,RUSHALL PROTECTIVE CLO,SOCIAL CARE & INCLUSION,EMPLOYMENT LINKS TO WORK,124.80,GENERAL MATERIALS,"MEN'S, WOMEN'S, AND CHILDREN'S UNIFORMS (5137)"
08 Jul 2014,ARTHUR BRETT CATER,NEIGHBOURHOOD SERVICES,CA CROFT COMMUNITY PRIMARY SCHOOL,89.60,FRUIT & VEGETABLES OTHER-PROVISIONS,MISCELLANEOUS FOOD STORES & CONVENIENCE STORES (5499)
08 Jul 2014,WWW.DVLA.GOV.UK,NEIGHBOURHOOD SERVICES,FLEET,227.50,LICENCES-TRANSPORT RUN COSTS,GOVERNMENT SERVICES (9399)
08 Jul 2014,ARTHUR BRETT CATER,NEIGHBOURHOOD SERVICES,CA LITTLE BLOXWICH CE PRIMARY SCHOOL,25.40,FRUIT & VEGETABLES OTHER-PROVISIONS,MISCELLANEOUS FOOD STORES & CONVENIENCE STORES (5499)
08 Jul 2014,NOBISCO LTD,CHILDRENS SERVICES,UNIVERSAL EDUCATION CLIENT UNIT,37.20,STATIONERY & GENERAL SUPPLIES-OFFICE EXP,"CLEANING AND MAINTENANCE, JANITORIAL SERVICES (7349)"
08 Jul 2014,ARTHUR BRETT CATER,NEIGHBOURHOOD SERVICES,CA ABBEY PRIMARY SCHOOL,61.61,FOOD AND BEVERAGES-PROVISIONS,MISCELLANEOUS FOOD STORES & CONVENIENCE STORES (5499)
08 Jul 2014,ARTHUR BRETT CATER,NEIGHBOURHOOD SERVICES,CA BLUE COAT C.E. INFANT SCHOOL,50.17,FRUIT & VEGETABLES OTHER-PROVISIONS,MISCELLANEOUS FOOD STORES & CONVENIENCE STORES (5499)
08 Jul 2014,ARTHUR BRETT CATER,NEIGHBOURHOOD SERVICES,CA BLUE COAT C.E. JUNIOR SCHOOL,121.76,FRUIT & VEGETABLES OTHER-PROVISIONS,MISCELLANEOUS FOOD STORES & CONVENIENCE STORES (5499)
08 Jul 2014,ARTHUR BRETT CATER,NEIGHBOURHOOD SERVICES,CA BUSILL JONES PRIMARY SCHOOL,227.07,FRUIT & VEGETABLES OTHER-PROVISIONS,MISCELLANEOUS FOOD STORES & CONVENIENCE STORES (5499)
08 Jul 2014,W M MORRISON PLC,CHILDRENS SERVICES,SPINDLETREE,11.88,GENERAL PROVISIONS-PROVISIONS,GROCERY STORES AND SUPERMARKETS (5411)
08 Jul 2014,W M MORRISON PLC,CHILDRENS SERVICES,SPINDLETREE,142.38,GENERAL PROVISIONS-PROVISIONS,GROCERY STORES AND SUPERMARKETS (5411)
08 Jul 2014,B & Q,REGENERATION,WILLENHALL DISTRICT CENTRE,-131.88,MISCELLANEOUS SUPPLIES,LUMBER & BUILDING MATERIALS STORES (5211)
08 Jul 2014,ARTHUR BRETT CATER,NEIGHBOURHOOD SERVICES,CA DELVES JUNIOR SCHOOL,111.47,FRUIT & VEGETABLES OTHER-PROVISIONS,MISCELLANEOUS FOOD STORES & CONVENIENCE STORES (5499)
08 Jul 2014,B & Q,REGENERATION,ALDRIDGE DISTRICT CENTRE,133.88,GENERAL MATERIALS,LUMBER & BUILDING MATERIALS STORES (5211)
08 Jul 2014,ARTHUR BRETT CATER,NEIGHBOURHOOD SERVICES,CA HARDEN PRIMARY SCHOOL,116.73,FRUIT & VEGETABLES OTHER-PROVISIONS,MISCELLANEOUS FOOD STORES & CONVENIENCE STORES (5499)
08 Jul 2014,CRAZY HOUSE (BROWNHILL,RESOURCES,WALSALL CRISIS SUPPORT SCHEME,55.00,CRISIS SUPPORT PAYMENTS,"EQUIPMENT, FURNITURE, AND HOME FURNISHINGS STORES  (5712)"
08 Jul 2014,ASDA SUPERSTORE,NEIGHBOURHOOD SERVICES,REGISTRAR,4.88,STATIONERY & GENERAL SUPPLIES-OFFICE EXP,GROCERY STORES AND SUPERMARKETS (5411)
08 Jul 2014,ARTHUR BRETT CATER,NEIGHBOURHOOD SERVICES,CA ELMWOOD SPECIAL SCHOOL,14.42,FRUIT & VEGETABLES OTHER-PROVISIONS,MISCELLANEOUS FOOD STORES & CONVENIENCE STORES (5499)
08 Jul 2014,ARTHUR BRETT CATER,NEIGHBOURHOOD SERVICES,CA LEAMORE PRIMARY SCHOOL,34.77,FRUIT & VEGETABLES OTHER-PROVISIONS,MISCELLANEOUS FOOD STORES & CONVENIENCE STORES (5499)
08 Jul 2014,AQUAID FRANCHISING LTD,CHILDRENS SERVICES,UNIVERSAL EDUCATION CLIENT UNIT,711.60,STAFF MINERAL WATER-EQUIPMENT,OTHER BUSINESS SERVICES (7399)
08 Jul 2014,BORSHCH ELECTRIC,RESOURCES,WALSALL CRISIS SUPPORT SCHEME,520.00,CRISIS SUPPORT PAYMENTS,HOUSEHOLD APPLIANCE STORES (5722)
08 Jul 2014,WWW.DVLA.GOV.UK,NEIGHBOURHOOD SERVICES,FLEET,227.50,LICENCES-TRANSPORT RUN COSTS,GOVERNMENT SERVICES (9399)
08 Jul 2014,CRAZY HOUSE (BROWNHILL,RESOURCES,WALSALL CRISIS SUPPORT SCHEME,330.00,CRISIS SUPPORT PAYMENTS,"EQUIPMENT, FURNITURE, AND HOME FURNISHINGS STORES  (5712)"
08 Jul 2014,CRAZY HOUSE (BROWNHILL,RESOURCES,WALSALL CRISIS SUPPORT SCHEME,90.00,CRISIS SUPPORT PAYMENTS,"EQUIPMENT, FURNITURE, AND HOME FURNISHINGS STORES  (5712)"
08 Jul 2014,AMAZON *MKTPLCE EU-UK,CHILDRENS SERVICES,LODGE FARM JMI SCHOOL,32.45,GENERAL MATERIALS,BOOK STORES (5942)
08 Jul 2014,ARTHUR BRETT CATER,NEIGHBOURHOOD SERVICES,CA MOORCROFT WOOD,84.90,FRUIT & VEGETABLES OTHER-PROVISIONS,MISCELLANEOUS FOOD STORES & CONVENIENCE STORES (5499)
08 Jul 2014,OFFICE DEPOT,RESOURCES,HR DIRECT SERVICES,55.84,GENERAL MATERIALS,"STATIONERY, OFFICE SUPPLIES AND WRITING PAPER (5111)"
08 Jul 2014,CRAZY HOUSE (BROWNHILL,RESOURCES,WALSALL CRISIS SUPPORT SCHEME,90.00,CRISIS SUPPORT PAYMENTS,"EQUIPMENT, FURNITURE, AND HOME FURNISHINGS STORES  (5712)"
08 Jul 2014,STAR LIST/INTERNET,CHILDRENS SERVICES,REWARDS & PRIZES,15.99,GENERAL MATERIALS,REAL ESTATE MANAGERS - RENTALS (6513)
08 Jul 2014,ARTHUR BRETT CATER,NEIGHBOURHOOD SERVICES,CA ST FRANCIS CATHOLIC PRIMARY SCHOOL,43.24,FRUIT & VEGETABLES OTHER-PROVISIONS,MISCELLANEOUS FOOD STORES & CONVENIENCE STORES (5499)
08 Jul 2014,OFFICE DEPOT,CHILDRENS SERVICES,INTENSIVE FAMILY SUPPORT TEAM,58.98,STATIONERY & GENERAL SUPPLIES-OFFICE EXP,"STATIONERY, OFFICE SUPPLIES AND WRITING PAPER (5111)"
08 Jul 2014,OFFICE DEPOT,NEIGHBOURHOOD SERVICES,SCHOOL LIBRARY SUPPORT,105.25,STATIONERY & GENERAL SUPPLIES-OFFICE EXP,"STATIONERY, OFFICE SUPPLIES AND WRITING PAPER (5111)"
08 Jul 2014,ARTHUR BRETT CATER,NEIGHBOURHOOD SERVICES,CA ST GILES C.E. PRIMARY SCHOOL,33.01,FRUIT & VEGETABLES OTHER-PROVISIONS,MISCELLANEOUS FOOD STORES & CONVENIENCE STORES (5499)
08 Jul 2014,WWW.DVLA.GOV.UK,NEIGHBOURHOOD SERVICES,FLEET,227.50,LICENCES-TRANSPORT RUN COSTS,GOVERNMENT SERVICES (9399)
08 Jul 2014,ARTHUR BRETT CATER,NEIGHBOURHOOD SERVICES,CA BARCROFT D/C,45.44,FRUIT & VEGETABLES OTHER-PROVISIONS,MISCELLANEOUS FOOD STORES & CONVENIENCE STORES (5499)
08 Jul 2014,NOBISCO LTD,NEIGHBOURHOOD SERVICES,CA ST JOHNS C.E. PRIMARY SCHOOL,12.00,DISPOSABLES-PROVISIONS,"CLEANING AND MAINTENANCE, JANITORIAL SERVICES (7349)"
08 Jul 2014,OFFICE DEPOT,RESOURCES,ELECTORAL SERVICES,40.91,STATIONERY & GENERAL SUPPLIES-OFFICE EXP,"STATIONERY, OFFICE SUPPLIES AND WRITING PAPER (5111)"
08 Jul 2014,ARTHUR BRETT CATER,NEIGHBOURHOOD SERVICES,CA GREEN ROCK PRIMARY,44.42,FRUIT & VEGETABLES OTHER-PROVISIONS,MISCELLANEOUS FOOD STORES & CONVENIENCE STORES (5499)
08 Jul 2014,AMAZON EU,CHILDRENS SERVICES,ADMINISTRATIVE SUPPLIES,95.95,NEW-FURNITURE & EQUIPMENT,OTHER DIRECT MARKETING-OTHER DIRECT MARKETERS (5969)
08 Jul 2014,WWW.DVLA.GOV.UK,NEIGHBOURHOOD SERVICES,FLEET,167.50,LICENCES-TRANSPORT RUN COSTS,GOVERNMENT SERVICES (9399)
08 Jul 2014,VODAFONE,CHILDRENS SERVICES,ADMINISTRATIVE SUPPLIES,137.25,TELEPHONES MOBILE/PAGERS-TELEPHONES,TELECOMMUNICATION SERVICES (4814)
08 Jul 2014,VODAFONE,CHILDRENS SERVICES,ADMINISTRATIVE SUPPLIES,38.97,TELEPHONES MOBILE/PAGERS-TELEPHONES,TELECOMMUNICATION SERVICES (4814)
08 Jul 2014,ARTHUR BRETT CATER,NEIGHBOURHOOD SERVICES,CA BIRCHILLS CE PRIMARY COMMUNITY SCHOOL,23.84,FRUIT & VEGETABLES OTHER-PROVISIONS,MISCELLANEOUS FOOD STORES & CONVENIENCE STORES (5499)
08 Jul 2014,TRAINLINE.COM,NEIGHBOURHOOD SERVICES,SPORT & LEISURE DEVELOPMENT SERVICES,24.28,OFFICER/STAFF-PUBLIC TRANSPORT,PASSENGER RAILWAYS (4112)
08 Jul 2014,OFFICE DEPOT,CHILDRENS SERVICES,CHILDRENS RESIDENTIAL SVCS,58.98,STATIONERY & GENERAL SUPPLIES-OFFICE EXP,"STATIONERY, OFFICE SUPPLIES AND WRITING PAPER (5111)"
08 Jul 2014,BORSHCH ELECTRIC,RESOURCES,WALSALL CRISIS SUPPORT SCHEME,-75.00,CRISIS SUPPORT PAYMENTS,HOUSEHOLD APPLIANCE STORES (5722)
08 Jul 2014,OFFICE DEPOT,NEIGHBOURHOOD SERVICES,FLEET,69.34,GENERAL MATERIALS,"STATIONERY, OFFICE SUPPLIES AND WRITING PAPER (5111)"
08 Jul 2014,WWW.DVLA.GOV.UK,NEIGHBOURHOOD SERVICES,FLEET,227.50,LICENCES-TRANSPORT RUN COSTS,GOVERNMENT SERVICES (9399)
08 Jul 2014,ARTHUR BRETT CATER,NEIGHBOURHOOD SERVICES,CA PALFREY JUNIOR SCHOOL,99.14,FRUIT & VEGETABLES OTHER-PROVISIONS,MISCELLANEOUS FOOD STORES & CONVENIENCE STORES (5499)
08 Jul 2014,NOBISCO LTD,NEIGHBOURHOOD SERVICES,CA MEADOW VIEW JMI PRIMARY SCHOOL,69.55,DISPOSABLES-PROVISIONS,"CLEANING AND MAINTENANCE, JANITORIAL SERVICES (7349)"
08 Jul 2014,SMART FOOD UK LIMITED,NEIGHBOURHOOD SERVICES,CA JOSEPH LECKIE COMMUNITY TECHNOLOGY COLLEGE,611.20,FROZEN FOODS-PROVISIONS,CATERERS (5811)
08 Jul 2014,WWW.DVLA.GOV.UK,NEIGHBOURHOOD SERVICES,FLEET,652.50,LICENCES-TRANSPORT RUN COSTS,GOVERNMENT SERVICES (9399)
08 Jul 2014,WALSALL CLEARANCE,CHILDRENS SERVICES,SPINDLETREE,64.99,RESIDENTS PERSONAL EXPENSES-ALLOWANCES TO S/S CLIENTS,DISCOUNT STORES (5310)
08 Jul 2014,AMAZON *MKTPLCE EU-UK,NEIGHBOURHOOD SERVICES,JK ESOL,12.65,GENERAL MATERIALS,BOOK STORES (5942)
08 Jul 2014,PREMIER INN44521615,CHILDRENS SERVICES,FOSTERING SUPPORT TEAM,100.00,HOTEL ACCOMMODATION-EMPLOYEES,PREMIER INN (3811)
08 Jul 2014,ARTHUR BRETT CATER,NEIGHBOURHOOD SERVICES,CA GREEN ROCK PRIMARY,-12.60,FRUIT & VEGETABLES OTHER-PROVISIONS,MISCELLANEOUS FOOD STORES & CONVENIENCE STORES (5499)
08 Jul 2014,ARTHUR BRETT CATER,NEIGHBOURHOOD SERVICES,CA ELMORE GREEN PRIMARY SCHOOL,-1.07,FRUIT & VEGETABLES OTHER-PROVISIONS,MISCELLANEOUS FOOD STORES & CONVENIENCE STORES (5499)
08 Jul 2014,ARTHUR BRETT CATER,NEIGHBOURHOOD SERVICES,CA BLOXWICH C.E. JMI PRIMARY SCHOOL,-1.07,FRUIT & VEGETABLES OTHER-PROVISIONS,MISCELLANEOUS FOOD STORES & CONVENIENCE STORES (5499)
08 Jul 2014,ARTHUR BRETT CATER,NEIGHBOURHOOD SERVICES,CA LEAMORE PRIMARY SCHOOL,-1.07,FRUIT & VEGETABLES OTHER-PROVISIONS,MISCELLANEOUS FOOD STORES & CONVENIENCE STORES (5499)
08 Jul 2014,ARTHUR BRETT CATER,NEIGHBOURHOOD SERVICES,CA BARCROFT D/C,-1.18,FRUIT & VEGETABLES OTHER-PROVISIONS,MISCELLANEOUS FOOD STORES & CONVENIENCE STORES (5499)
08 Jul 2014,ARTHUR BRETT CATER,NEIGHBOURHOOD SERVICES,CA BLUE COAT C.E. JUNIOR SCHOOL,-3.00,FRUIT & VEGETABLES OTHER-PROVISIONS,MISCELLANEOUS FOOD STORES & CONVENIENCE STORES (5499)
08 Jul 2014,WWW.GIROFOOD.COM,NEIGHBOURHOOD SERVICES,CA TOWN HALL RESTAURANT - CATERING,-55.90,DISPOSABLES-PROVISIONS,WHOLESALE CLUBS (5300)
08 Jul 2014,ARTHUR BRETT CATER,NEIGHBOURHOOD SERVICES,CA HARDEN PRIMARY SCHOOL,-12.60,FRUIT & VEGETABLES OTHER-PROVISIONS,MISCELLANEOUS FOOD STORES & CONVENIENCE STORES (5499)
09 Jul 2014,BLAKEMORE FOODSERVICE,NEIGHBOURHOOD SERVICES,CA BIRCHILLS CE PRIMARY COMMUNITY SCHOOL,357.20,DRY FOODS-PROVISIONS,CATERERS (5811)
09 Jul 2014,BLAKEMORE FOODSERVICE,NEIGHBOURHOOD SERVICES,CA BIRCHILLS CE PRIMARY COMMUNITY SCHOOL,33.80,DRY FOODS-PROVISIONS,CATERERS (5811)
09 Jul 2014,BLAKEMORE FOODSERVICE,NEIGHBOURHOOD SERVICES,CA RUSHALL JMI SCHOOL,27.67,FROZEN FOODS-PROVISIONS,CATERERS (5811)
09 Jul 2014,BLAKEMORE FOODSERVICE,NEIGHBOURHOOD SERVICES,CA RUSHALL JMI SCHOOL,7.68,FROZEN FOODS-PROVISIONS,CATERERS (5811)
09 Jul 2014,BLAKEMORE FOODSERVICE,NEIGHBOURHOOD SERVICES,CA BROWNHILLS COMMUNITY TECHNOLOGY COLLEGE,316.68,FROZEN FOODS-PROVISIONS,CATERERS (5811)
09 Jul 2014,CADBURY WORLD RETAIL,CHILDRENS SERVICES,CENTRAL SUPPORT,149.60,MISCELLANEOUS SUPPLIES,"AMUSEMENT PARKS, CARNIVALS, CIRCUSES (7996)"
09 Jul 2014,CORROY PRODUCTS LTD,NEIGHBOURHOOD SERVICES,NAG - TEMPORARY EXHIBITIONS,9.36,LOOSE TOOLS & CONSUMABLES,LUMBER & BUILDING MATERIALS STORES (5211)
09 Jul 2014,BLAKEMORE FOODSERVICE,NEIGHBOURHOOD SERVICES,CA ST JOHNS C.E. PRIMARY SCHOOL,63.59,FROZEN FOODS-PROVISIONS,CATERERS (5811)
09 Jul 2014,BLAKEMORE FOODSERVICE,NEIGHBOURHOOD SERVICES,CA ST JOHNS C.E. PRIMARY SCHOOL,15.36,FROZEN FOODS-PROVISIONS,CATERERS (5811)
09 Jul 2014,ARDEN NEWS 60191/020,RESOURCES,WALSALL CRISIS SUPPORT SCHEME,20.50,CRISIS SUPPORT PAYMENTS,GROCERY STORES AND SUPERMARKETS (5411)
09 Jul 2014,WELSH BROS FOODS LTD,NEIGHBOURHOOD SERVICES,CA CASTLEFORT JMI SCHOOL,19.63,MEAT-PROVISIONS,FREEZER AND LOCKER MEAT PROVISIONERS (5422)
09 Jul 2014,WELSH BROS FOODS LTD,NEIGHBOURHOOD SERVICES,CA HARDEN PRIMARY SCHOOL,12.26,MEAT-PROVISIONS,FREEZER AND LOCKER MEAT PROVISIONERS (5422)
09 Jul 2014,ASDA STORES,CHILDRENS SERVICES,CLUSTER 4 ALUMWELL & BIRCHILLS,2.00,FOOD AND BEVERAGES-PROVISIONS,GROCERY STORES AND SUPERMARKETS (5411)
09 Jul 2014,WELSH BROS FOODS LTD,NEIGHBOURHOOD SERVICES,CA WATLING STREET PRIMARY SCHOOL,90.38,MEAT-PROVISIONS,FREEZER AND LOCKER MEAT PROVISIONERS (5422)
09 Jul 2014,WELSH BROS FOODS LTD,NEIGHBOURHOOD SERVICES,CA RADLEYS PRIMARY SCHOOL,124.17,MEAT-PROVISIONS,FREEZER AND LOCKER MEAT PROVISIONERS (5422)
09 Jul 2014,BORSHCH ELECTRIC,RESOURCES,WALSALL CRISIS SUPPORT SCHEME,140.00,CRISIS SUPPORT PAYMENTS,HOUSEHOLD APPLIANCE STORES (5722)
09 Jul 2014,COMPLETE CARE,CHILDRENS SERVICES,REDRUTH ROAD,22.40,MEDICAL REQUISITES-MATERIALS,DENTAL/LABORATORY/MEDICAL EQUIPMENT & SUPPLIES (5047)
09 Jul 2014,TESCO STORES 6161,RESOURCES,WALSALL CRISIS SUPPORT SCHEME,8.49,CRISIS SUPPORT PAYMENTS,GROCERY STORES AND SUPERMARKETS (5411)
09 Jul 2014,WELSH BROS FOODS LTD,NEIGHBOURHOOD SERVICES,CA HARDEN PRIMARY SCHOOL,95.08,MEAT-PROVISIONS,FREEZER AND LOCKER MEAT PROVISIONERS (5422)
09 Jul 2014,TESCO STORE 3351,CHILDRENS SERVICES,PARENTING TEAM,4.90,FOOD AND BEVERAGES-PROVISIONS,GROCERY STORES AND SUPERMARKETS (5411)
09 Jul 2014,BLAKEMORE FOODSERVICE,NEIGHBOURHOOD SERVICES,CA BEACON PRIMARY SCHOOL,123.80,FROZEN FOODS-PROVISIONS,CATERERS (5811)
09 Jul 2014,BLAKEMORE FOODSERVICE,NEIGHBOURHOOD SERVICES,CA BEACON PRIMARY SCHOOL,46.08,FROZEN FOODS-PROVISIONS,CATERERS (5811)
09 Jul 2014,BLAKEMORE FOODSERVICE,NEIGHBOURHOOD SERVICES,CA LEIGHSWOOD PRIMARY SCHOOL,27.79,FROZEN FOODS-PROVISIONS,CATERERS (5811)
09 Jul 2014,BLAKEMORE FOODSERVICE,NEIGHBOURHOOD SERVICES,CA LEIGHSWOOD PRIMARY SCHOOL,15.36,FROZEN FOODS-PROVISIONS,CATERERS (5811)
09 Jul 2014,AMAZON EU,CHILDRENS SERVICES,WELFARE/SOCIAL CARE,17.91,LIBRARY BOOKS,OTHER DIRECT MARKETING-OTHER DIRECT MARKETERS (5969)
09 Jul 2014,BLAKEMORE FOODSERVICE,NEIGHBOURHOOD SERVICES,CA OAKWOOD SPECIAL SCHOOL,61.55,FROZEN FOODS-PROVISIONS,CATERERS (5811)
09 Jul 2014,BLAKEMORE FOODSERVICE,NEIGHBOURHOOD SERVICES,CA COOPER JORDAN CE PRIMARY SCHOOL,153.25,FROZEN FOODS-PROVISIONS,CATERERS (5811)
09 Jul 2014,ARTHUR BRETT CATER,NEIGHBOURHOOD SERVICES,CA BUSILL JONES PRIMARY SCHOOL,5.32,FRUIT & VEGETABLES OTHER-PROVISIONS,MISCELLANEOUS FOOD STORES & CONVENIENCE STORES (5499)
09 Jul 2014,DOMESTIC HEROES LTD,RESOURCES,WALSALL CRISIS SUPPORT SCHEME,46.13,CRISIS SUPPORT PAYMENTS,HOUSEHOLD APPLIANCE STORES (5722)
09 Jul 2014,BROADWAY,CHILDRENS SERVICES,SPINDLETREE,17.97,RESIDENTS PERSONAL EXPENSES-ALLOWANCES TO S/S CLIENTS,"BARS, COCKTAIL LOUNGES, DISCOTHEQUES, NIGHTCLUBS (5813)"
09 Jul 2014,BORSHCH ELECTRIC,RESOURCES,WALSALL CRISIS SUPPORT SCHEME,325.00,CRISIS SUPPORT PAYMENTS,HOUSEHOLD APPLIANCE STORES (5722)
09 Jul 2014,WELSH BROS FOODS LTD,NEIGHBOURHOOD SERVICES,CA ELMWOOD SPECIAL SCHOOL,8.95,MEAT-PROVISIONS,FREEZER AND LOCKER MEAT PROVISIONERS (5422)
09 Jul 2014,WEST COAST TRAINS,RESOURCES,RECHARGEABLE EQUIPMENT,3.20,OFFICER/STAFF-PUBLIC TRANSPORT,PASSENGER RAILWAYS (4112)
09 Jul 2014,ARTHUR BRETT CATER,NEIGHBOURHOOD SERVICES,TOWN HALL RESTAURANT BISTRO,38.13,FRUIT & VEGETABLES OTHER-PROVISIONS,MISCELLANEOUS FOOD STORES & CONVENIENCE STORES (5499)
09 Jul 2014,ARTHUR BRETT CATER,NEIGHBOURHOOD SERVICES,CA HARDEN PRIMARY SCHOOL,1.30,FRUIT & VEGETABLES OTHER-PROVISIONS,MISCELLANEOUS FOOD STORES & CONVENIENCE STORES (5499)
09 Jul 2014,BLAKEMORE FOODSERVICE,NEIGHBOURHOOD SERVICES,CA RADLEYS PRIMARY SCHOOL,79.88,DRY FOODS-PROVISIONS,CATERERS (5811)
09 Jul 2014,ARTHUR BRETT CATER,NEIGHBOURHOOD SERVICES,CA BEACON PRIMARY SCHOOL,3.11,FRUIT & VEGETABLES OTHER-PROVISIONS,MISCELLANEOUS FOOD STORES & CONVENIENCE STORES (5499)
09 Jul 2014,SANDWELL M.B.C.,CHILDRENS SERVICES,SAFEGUARDING & FAMILY SUPPORT,30.00,REGISTRAR OF BIRTHS/DEATHS/MARRIAGES/CIVIL PARTNERSHIPS-SERV-FEES/CHARGES,GOVERNMENT SERVICES (9399)
09 Jul 2014,WELSH BROS FOODS LTD,NEIGHBOURHOOD SERVICES,CA ST MICHAELS C.E. PRIMARY SCHOOL,66.67,MEAT-PROVISIONS,FREEZER AND LOCKER MEAT PROVISIONERS (5422)
09 Jul 2014,WELSH BROS FOODS LTD,NEIGHBOURHOOD SERVICES,CA LEIGHSWOOD PRIMARY SCHOOL,30.87,MEAT-PROVISIONS,FREEZER AND LOCKER MEAT PROVISIONERS (5422)
09 Jul 2014,WELSH BROS FOODS LTD,NEIGHBOURHOOD SERVICES,CA ELMWOOD SPECIAL SCHOOL,22.85,MEAT-PROVISIONS,FREEZER AND LOCKER MEAT PROVISIONERS (5422)
09 Jul 2014,BLAKEMORE FOODSERVICE,NEIGHBOURHOOD SERVICES,CA BARCROFT D/C,136.91,DRY FOODS-PROVISIONS,CATERERS (5811)
09 Jul 2014,BLAKEMORE FOODSERVICE,NEIGHBOURHOOD SERVICES,CA MEADOW VIEW JMI PRIMARY SCHOOL,63.40,FROZEN FOODS-PROVISIONS,CATERERS (5811)
09 Jul 2014,BLAKEMORE FOODSERVICE,NEIGHBOURHOOD SERVICES,CA MEADOW VIEW JMI PRIMARY SCHOOL,15.36,FROZEN FOODS-PROVISIONS,CATERERS (5811)
09 Jul 2014,BLAKEMORE FOODSERVICE,NEIGHBOURHOOD SERVICES,CA GREEN ROCK PRIMARY,62.89,FROZEN FOODS-PROVISIONS,CATERERS (5811)
09 Jul 2014,BLAKEMORE FOODSERVICE,NEIGHBOURHOOD SERVICES,CA BLUE COAT C OF E PERFORMING ARTS COLLEGE,8.10,DRY FOODS-PROVISIONS,CATERERS (5811)
09 Jul 2014,BLAKEMORE FOODSERVICE,NEIGHBOURHOOD SERVICES,CA HARDEN PRIMARY SCHOOL,111.20,FROZEN FOODS-PROVISIONS,CATERERS (5811)
09 Jul 2014,FARMFOODS- WALSALL,CHILDRENS SERVICES,REDRUTH ROAD,3.40,GENERAL PROVISIONS-PROVISIONS,GROCERY STORES AND SUPERMARKETS (5411)
09 Jul 2014,BLAKEMORE FOODSERVICE,NEIGHBOURHOOD SERVICES,CA BLACKWOOD PRIMARY SCHOOL,97.15,DRY FOODS-PROVISIONS,CATERERS (5811)
09 Jul 2014,BLAKEMORE FOODSERVICE,NEIGHBOURHOOD SERVICES,CA BLACKWOOD PRIMARY SCHOOL,7.68,DRY FOODS-PROVISIONS,CATERERS (5811)
09 Jul 2014,TESCO STORES 6161,CHILDRENS SERVICES,57 LICHFIELD ROAD,8.50,GENERAL PROVISIONS-PROVISIONS,GROCERY STORES AND SUPERMARKETS (5411)
09 Jul 2014,OFFICE DEPOT,NEIGHBOURHOOD SERVICES,CHILDRENS LIBRARY - BOOKSTART,47.18,GENERAL MATERIALS,"STATIONERY, OFFICE SUPPLIES AND WRITING PAPER (5111)"
09 Jul 2014,CO-OPERATIVE FOOD,CHILDRENS SERVICES,"43A HILTON ROAD, WILLENHALL",2.90,FOOD AND BEVERAGES-PROVISIONS,GROCERY STORES AND SUPERMARKETS (5411)
09 Jul 2014,BLAKEMORE FOODSERVICE,NEIGHBOURHOOD SERVICES,CA LINDENS PRIMARY SCHOOL,72.24,DRY FOODS-PROVISIONS,CATERERS (5811)
09 Jul 2014,BLAKEMORE FOODSERVICE,NEIGHBOURHOOD SERVICES,CA LINDENS PRIMARY SCHOOL,30.72,DRY FOODS-PROVISIONS,CATERERS (5811)
09 Jul 2014,BLAKEMORE FOODSERVICE,NEIGHBOURHOOD SERVICES,CA JOSEPH LECKIE COMMUNITY TECHNOLOGY COLLEGE,55.18,DRY FOODS-PROVISIONS,CATERERS (5811)
09 Jul 2014,BLAKEMORE FOODSERVICE,NEIGHBOURHOOD SERVICES,CA JOSEPH LECKIE COMMUNITY TECHNOLOGY COLLEGE,99.64,DRY FOODS-PROVISIONS,CATERERS (5811)
09 Jul 2014,OFFICE DEPOT,CHILDRENS SERVICES,SEN,165.15,STATIONERY & GENERAL SUPPLIES-OFFICE EXP,"STATIONERY, OFFICE SUPPLIES AND WRITING PAPER (5111)"
09 Jul 2014,OFFICE DEPOT,CHILDRENS SERVICES,UNIVERSAL EDUCATION CLIENT UNIT,22.64,STATIONERY & GENERAL SUPPLIES-OFFICE EXP,"STATIONERY, OFFICE SUPPLIES AND WRITING PAPER (5111)"
09 Jul 2014,OFFICE DEPOT,CHILDRENS SERVICES,EDUCATIONAL PSYCHOLOGISTS,4.46,STATIONERY & GENERAL SUPPLIES-OFFICE EXP,"STATIONERY, OFFICE SUPPLIES AND WRITING PAPER (5111)"
09 Jul 2014,OFFICE DEPOT,CHILDRENS SERVICES,SEN ASSESSMENT,55.79,STATIONERY & GENERAL SUPPLIES-OFFICE EXP,"STATIONERY, OFFICE SUPPLIES AND WRITING PAPER (5111)"
09 Jul 2014,ROKER HOTEL,CHILDRENS SERVICES,ADOPTION TEAM,196.00,HOTEL ACCOMMODATION-EMPLOYEES,"BARS, COCKTAIL LOUNGES, DISCOTHEQUES, NIGHTCLUBS (5813)"
09 Jul 2014,BLAKEMORE FOODSERVICE,NEIGHBOURHOOD SERVICES,CA BUSILL JONES PRIMARY SCHOOL,131.00,FROZEN FOODS-PROVISIONS,CATERERS (5811)
09 Jul 2014,WM MORRISONS,NEIGHBOURHOOD SERVICES,ARBORETUM,9.32,FOOD AND BEVERAGES-PROVISIONS,GROCERY STORES AND SUPERMARKETS (5411)
09 Jul 2014,BLAKEMORE FOODSERVICE,NEIGHBOURHOOD SERVICES,CA BLUE COAT C.E. JUNIOR SCHOOL,26.28,DRY FOODS-PROVISIONS,CATERERS (5811)
09 Jul 2014,WEST MID TRAVEL,CHILDRENS SERVICES,SAFEGUARDING & FAMILY SUPPORT,200.00,OFFICER/STAFF-PUBLIC TRANSPORT,BUS LINES (4131)
09 Jul 2014,WEST MID TRAVEL,CHILDRENS SERVICES,SAFEGUARDING & FAMILY SUPPORT,6.75,OFFICER/STAFF-PUBLIC TRANSPORT,BUS LINES (4131)
09 Jul 2014,WEST MID TRAVEL,CHILDRENS SERVICES,SAFEGUARDING & FAMILY SUPPORT,137.50,OFFICER/STAFF-PUBLIC TRANSPORT,BUS LINES (4131)
09 Jul 2014,OFFICE DEPOT,RESOURCES,ELECTORAL SERVICES,43.63,STATIONERY & GENERAL SUPPLIES-OFFICE EXP,"STATIONERY, OFFICE SUPPLIES AND WRITING PAPER (5111)"
09 Jul 2014,WILKINSON,NEIGHBOURHOOD SERVICES,NAG - FRONT OF HOUSE,12.20,CLEANING MATERIALS,HOUSEHOLD APPLIANCE STORES (5722)
09 Jul 2014,BLAKEMORE FOODSERVICE,NEIGHBOURHOOD SERVICES,CA JANE LANE SPECIAL SCHOOL,137.94,DRY FOODS-PROVISIONS,CATERERS (5811)
09 Jul 2014,BLAKEMORE FOODSERVICE,NEIGHBOURHOOD SERVICES,CA JANE LANE SPECIAL SCHOOL,13.15,DRY FOODS-PROVISIONS,CATERERS (5811)
09 Jul 2014,BLAKEMORE FOODSERVICE,NEIGHBOURHOOD SERVICES,CA ST MICHAELS C.E. PRIMARY SCHOOL,123.01,FROZEN FOODS-PROVISIONS,CATERERS (5811)
09 Jul 2014,BLAKEMORE FOODSERVICE,NEIGHBOURHOOD SERVICES,CA ST MICHAELS C.E. PRIMARY SCHOOL,7.68,FROZEN FOODS-PROVISIONS,CATERERS (5811)
09 Jul 2014,POUNDLAND LTD 1055,RESOURCES,TENANCY SERVICE,20.00,FOOD AND BEVERAGES-PROVISIONS,DISCOUNT STORES (5310)
09 Jul 2014,W M MORRISONS,CHILDRENS SERVICES,57 LICHFIELD ROAD,0.99,GENERAL PROVISIONS-PROVISIONS,GROCERY STORES AND SUPERMARKETS (5411)
09 Jul 2014,W M MORRISONS,CHILDRENS SERVICES,57 LICHFIELD ROAD,3.47,GENERAL PROVISIONS-PROVISIONS,GROCERY STORES AND SUPERMARKETS (5411)
09 Jul 2014,WELSH BROS FOODS LTD,NEIGHBOURHOOD SERVICES,CA CASTLEFORT JMI SCHOOL,60.56,MEAT-PROVISIONS,FREEZER AND LOCKER MEAT PROVISIONERS (5422)
09 Jul 2014,BORSHCH ELECTRIC,RESOURCES,WALSALL CRISIS SUPPORT SCHEME,195.00,CRISIS SUPPORT PAYMENTS,HOUSEHOLD APPLIANCE STORES (5722)
09 Jul 2014,TRAINLINE.COM,CHILDRENS SERVICES,SAFEGUARDING & FAMILY SUPPORT,59.57,OFFICER/STAFF-PUBLIC TRANSPORT,PASSENGER RAILWAYS (4112)
09 Jul 2014,ASDA STORES,CHILDRENS SERVICES,CLUSTER 4 ALUMWELL & BIRCHILLS,16.48,FOOD AND BEVERAGES-PROVISIONS,GROCERY STORES AND SUPERMARKETS (5411)
09 Jul 2014,BLAKEMORE FOODSERVICE,NEIGHBOURHOOD SERVICES,CA CASTLEFORT JMI SCHOOL,51.19,FROZEN FOODS-PROVISIONS,CATERERS (5811)
09 Jul 2014,BLAKEMORE FOODSERVICE,NEIGHBOURHOOD SERVICES,CA BEACON PRIMARY SCHOOL,14.55,DRY FOODS-PROVISIONS,CATERERS (5811)
09 Jul 2014,CANNON RACEWAY,CHILDRENS SERVICES,ENRICHMENT,100.00,GENERAL MATERIALS,OTHER SERVICES (7299)
09 Jul 2014,MARKS & SPENCER SACAT,NEIGHBOURHOOD SERVICES,NAG - TEMPORARY EXHIBITIONS,14.70,MISC DAIRY PRODUCTS-PROVISIONS,GROCERY STORES AND SUPERMARKETS (5411)
09 Jul 2014,DRAYTON MANOR PARK,CHILDRENS SERVICES,POSITIVE ACTIVITIES SUMMER PROGRAMMES,462.50,EXHIBITIONS - MARKETING,TOURIST ATTRACTIONS AND EXHIBITS (7991)
09 Jul 2014,BLAKEMORE FOODSERVICE,NEIGHBOURHOOD SERVICES,CA BUSILL JONES PRIMARY SCHOOL,385.88,DRY FOODS-PROVISIONS,CATERERS (5811)
09 Jul 2014,BLAKEMORE FOODSERVICE,NEIGHBOURHOOD SERVICES,CA BUSILL JONES PRIMARY SCHOOL,12.22,DRY FOODS-PROVISIONS,CATERERS (5811)
09 Jul 2014,BORSHCH ELECTRIC,RESOURCES,WALSALL CRISIS SUPPORT SCHEME,200.00,CRISIS SUPPORT PAYMENTS,HOUSEHOLD APPLIANCE STORES (5722)
09 Jul 2014,FINDEL ED LTD,CHILDRENS SERVICES,GENERAL RESOURCES & MISC,207.12,GENERAL MATERIALS,OTHER DIRECT MARKETING-OTHER DIRECT MARKETERS (5969)
09 Jul 2014,WELSH BROS FOODS LTD,NEIGHBOURHOOD SERVICES,CA COOPER JORDAN CE PRIMARY SCHOOL,65.16,MEAT-PROVISIONS,FREEZER AND LOCKER MEAT PROVISIONERS (5422)
09 Jul 2014,OFFICE DEPOT,CHILDRENS SERVICES,UNIVERSAL EDUCATION CLIENT UNIT,22.15,STATIONERY & GENERAL SUPPLIES-OFFICE EXP,"STATIONERY, OFFICE SUPPLIES AND WRITING PAPER (5111)"
09 Jul 2014,ARTHUR BRETT CATER,NEIGHBOURHOOD SERVICES,CA TOWN HALL RESTAURANT - CATERING,47.85,FRUIT & VEGETABLES OTHER-PROVISIONS,MISCELLANEOUS FOOD STORES & CONVENIENCE STORES (5499)
09 Jul 2014,BLAKEMORE FOODSERVICE,NEIGHBOURHOOD SERVICES,CA CALDMORE COMMUNITY PRIMARY SCHOOL,161.99,DRY FOODS-PROVISIONS,CATERERS (5811)
09 Jul 2014,BLAKEMORE FOODSERVICE,NEIGHBOURHOOD SERVICES,CA CALDMORE COMMUNITY PRIMARY SCHOOL,13.15,DRY FOODS-PROVISIONS,CATERERS (5811)
09 Jul 2014,WILKINSON,CHILDRENS SERVICES,57 LICHFIELD ROAD,2.40,FURNITURE & EQUIPMENT,HOUSEHOLD APPLIANCE STORES (5722)
09 Jul 2014,BLAKEMORE FOODSERVICE,NEIGHBOURHOOD SERVICES,CA ELMORE GREEN PRIMARY SCHOOL,70.42,FROZEN FOODS-PROVISIONS,CATERERS (5811)
09 Jul 2014,BLAKEMORE FOODSERVICE,NEIGHBOURHOOD SERVICES,CA ELMORE GREEN PRIMARY SCHOOL,23.04,FROZEN FOODS-PROVISIONS,CATERERS (5811)
09 Jul 2014,ARTHUR BRETT CATER,NEIGHBOURHOOD SERVICES,CA COOPER JORDAN CE PRIMARY SCHOOL,104.50,FRUIT & VEGETABLES OTHER-PROVISIONS,MISCELLANEOUS FOOD STORES & CONVENIENCE STORES (5499)
09 Jul 2014,OFFICE DEPOT,CHILDRENS SERVICES,ACCESS TEAM,91.31,STATIONERY & GENERAL SUPPLIES-OFFICE EXP,"STATIONERY, OFFICE SUPPLIES AND WRITING PAPER (5111)"
09 Jul 2014,OFFICE DEPOT,CHILDRENS SERVICES,LOOKED AFTER CHILDRENS SOCIAL WORK TEAM,135.43,STATIONERY & GENERAL SUPPLIES-OFFICE EXP,"STATIONERY, OFFICE SUPPLIES AND WRITING PAPER (5111)"
09 Jul 2014,BLAKEMORE FOODSERVICE,NEIGHBOURHOOD SERVICES,CA ELMORE GREEN PRIMARY SCHOOL,484.07,DRY FOODS-PROVISIONS,CATERERS (5811)
09 Jul 2014,BLAKEMORE FOODSERVICE,NEIGHBOURHOOD SERVICES,CA ELMORE GREEN PRIMARY SCHOOL,128.40,DRY FOODS-PROVISIONS,CATERERS (5811)
09 Jul 2014,ARTHUR BRETT CATER,NEIGHBOURHOOD SERVICES,CA JANE LANE SPECIAL SCHOOL,3.89,FRUIT & VEGETABLES OTHER-PROVISIONS,MISCELLANEOUS FOOD STORES & CONVENIENCE STORES (5499)
09 Jul 2014,ARGOS LTD,REGENERATION,PLANT MAINTENANCE,75.80,"REPAIRS,ALTERATIONS & MAINTENANCE-PREM",DISCOUNT STORES (5310)
09 Jul 2014,WWW.OFFICEFURNITUREONL,CHILDRENS SERVICES,ELMWOOD SECONDARY SPECIAL SCHOOL,85.20,NEW ITEMS OF FURNITURE,"OFFICE, SCHOOL SUPPLY, AND STATIONERY STORES (5943)"
09 Jul 2014,BLAKEMORE FOODSERVICE,NEIGHBOURHOOD SERVICES,CA ST ANNES CATHOLIC PRIMARY SCHOOL,66.13,FROZEN FOODS-PROVISIONS,CATERERS (5811)
09 Jul 2014,BLAKEMORE FOODSERVICE,NEIGHBOURHOOD SERVICES,CA ST ANNES CATHOLIC PRIMARY SCHOOL,7.68,FROZEN FOODS-PROVISIONS,CATERERS (5811)
09 Jul 2014,BLAKEMORE FOODSERVICE,NEIGHBOURHOOD SERVICES,CA FIBBERSLEY PARK PRIMARY SCHOOL,67.47,FROZEN FOODS-PROVISIONS,CATERERS (5811)
09 Jul 2014,DUNELM (SOFT FURNISHIN,CHILDRENS SERVICES,57 LICHFIELD ROAD,29.97,FURNITURE & EQUIPMENT,"DRAPERY, UPHOLSTERY, AND WINDOW COVERINGS STORES (5714)"
09 Jul 2014,BLAKEMORE FOODSERVICE,NEIGHBOURHOOD SERVICES,CA BLUE COAT C OF E PERFORMING ARTS COLLEGE,208.68,FROZEN FOODS-PROVISIONS,CATERERS (5811)
09 Jul 2014,BLAKEMORE FOODSERVICE,NEIGHBOURHOOD SERVICES,CA BLUE COAT C OF E PERFORMING ARTS COLLEGE,3.36,FROZEN FOODS-PROVISIONS,CATERERS (5811)
09 Jul 2014,DOMESTIC HEROES LTD,RESOURCES,WALSALL CRISIS SUPPORT SCHEME,60.48,CRISIS SUPPORT PAYMENTS,HOUSEHOLD APPLIANCE STORES (5722)
09 Jul 2014,BORSHCH ELECTRIC,RESOURCES,WALSALL CRISIS SUPPORT SCHEME,695.00,CRISIS SUPPORT PAYMENTS,HOUSEHOLD APPLIANCE STORES (5722)
09 Jul 2014,TESCO STORES 6161,CHILDRENS SERVICES,FOOD TECH,32.54,GENERAL MATERIALS,GROCERY STORES AND SUPERMARKETS (5411)
09 Jul 2014,WP-DOUBLESTRUCK LT,CHILDRENS SERVICES,SCIENCE,228.00,GENERAL MATERIALS,"COMPUTER PROGRAM, SYSTEM DESIGN (7372)"
09 Jul 2014,BLAKEMORE FOODSERVICE,NEIGHBOURHOOD SERVICES,CA BROWNHILLS WEST PRIMARY SCHOOL,92.39,FROZEN FOODS-PROVISIONS,CATERERS (5811)
09 Jul 2014,BORSHCH ELECTRIC,RESOURCES,WALSALL CRISIS SUPPORT SCHEME,195.00,CRISIS SUPPORT PAYMENTS,HOUSEHOLD APPLIANCE STORES (5722)
09 Jul 2014,BLAKEMORE FOODSERVICE,NEIGHBOURHOOD SERVICES,CA BEACON PRIMARY SCHOOL,24.25,DRY FOODS-PROVISIONS,CATERERS (5811)
09 Jul 2014,BLAKEMORE FOODSERVICE,NEIGHBOURHOOD SERVICES,CA WHETSTONE FIELD PRIMARY SCHOOL,25.73,FROZEN FOODS-PROVISIONS,CATERERS (5811)
09 Jul 2014,BLAKEMORE FOODSERVICE,NEIGHBOURHOOD SERVICES,CA WHETSTONE FIELD PRIMARY SCHOOL,7.68,FROZEN FOODS-PROVISIONS,CATERERS (5811)
09 Jul 2014,WILKINSON,REGENERATION,PLANT MAINTENANCE,4.74,"REPAIRS,ALTERATIONS & MAINTENANCE-PREM",HOUSEHOLD APPLIANCE STORES (5722)
09 Jul 2014,BLAKEMORE FOODSERVICE,NEIGHBOURHOOD SERVICES,CA GREEN ROCK PRIMARY,19.27,FROZEN FOODS-PROVISIONS,CATERERS (5811)
09 Jul 2014,BLAKEMORE FOODSERVICE,NEIGHBOURHOOD SERVICES,CA WATLING STREET PRIMARY SCHOOL,61.56,FROZEN FOODS-PROVISIONS,CATERERS (5811)
09 Jul 2014,BLAKEMORE FOODSERVICE,NEIGHBOURHOOD SERVICES,CA WATLING STREET PRIMARY SCHOOL,15.36,FROZEN FOODS-PROVISIONS,CATERERS (5811)
09 Jul 2014,TESCO STORES 6161,RESOURCES,WALSALL CRISIS SUPPORT SCHEME,13.80,CRISIS SUPPORT PAYMENTS,GROCERY STORES AND SUPERMARKETS (5411)
09 Jul 2014,BLAKEMORE FOODSERVICE,NEIGHBOURHOOD SERVICES,CA BLUE COAT C OF E PERFORMING ARTS COLLEGE,134.00,DRY FOODS-PROVISIONS,CATERERS (5811)
09 Jul 2014,BLAKEMORE FOODSERVICE,NEIGHBOURHOOD SERVICES,CA BLUE COAT C OF E PERFORMING ARTS COLLEGE,59.19,DRY FOODS-PROVISIONS,CATERERS (5811)
09 Jul 2014,BLAKEMORE FOODSERVICE,NEIGHBOURHOOD SERVICES,CA BEACON PRIMARY SCHOOL,351.18,DRY FOODS-PROVISIONS,CATERERS (5811)
09 Jul 2014,BLAKEMORE FOODSERVICE,NEIGHBOURHOOD SERVICES,CA BEACON PRIMARY SCHOOL,79.87,DRY FOODS-PROVISIONS,CATERERS (5811)
09 Jul 2014,BORSHCH ELECTRIC,RESOURCES,WALSALL CRISIS SUPPORT SCHEME,42.00,CRISIS SUPPORT PAYMENTS,HOUSEHOLD APPLIANCE STORES (5722)
09 Jul 2014,SANDWELL M.B.C.,CHILDRENS SERVICES,SAFEGUARDING & FAMILY SUPPORT,10.00,REGISTRAR OF BIRTHS/DEATHS/MARRIAGES/CIVIL PARTNERSHIPS-SERV-FEES/CHARGES,GOVERNMENT SERVICES (9399)
09 Jul 2014,BLAKEMORE FOODSERVICE,NEIGHBOURHOOD SERVICES,CA MILLFIELD PRIMARY SCHOOL,75.25,FROZEN FOODS-PROVISIONS,CATERERS (5811)
09 Jul 2014,BLAKEMORE FOODSERVICE,NEIGHBOURHOOD SERVICES,CA MILLFIELD PRIMARY SCHOOL,7.68,FROZEN FOODS-PROVISIONS,CATERERS (5811)
09 Jul 2014,OFFICE DEPOT,NEIGHBOURHOOD SERVICES,WALSALL GALA CENTRE,71.75,STATIONERY & GENERAL SUPPLIES-OFFICE EXP,"STATIONERY, OFFICE SUPPLIES AND WRITING PAPER (5111)"
09 Jul 2014,HAVEN HOLIDAYS,CHILDRENS SERVICES,"43A HILTON ROAD, WILLENHALL",764.10,RESIDENTS PERSONAL EXPENSES-ALLOWANCES TO S/S CLIENTS,CAMPGROUNDS AND TRAILER PARKS (7033)
09 Jul 2014,WOLF MOUNTAIN LTD,CHILDRENS SERVICES,ENRICHMENT,100.00,GENERAL MATERIALS,OTHER RECREATION SERVICES (7999)
09 Jul 2014,BUYSPARES,CHILDRENS SERVICES,REDRUTH ROAD,19.96,FURNITURE & EQUIPMENT,ELECTRICAL PARTS AND EQUIPMENT (5065)
10 Jul 2014,THE TRAINLINE.COM,NEIGHBOURHOOD SERVICES,POLLUTION DIVISION,102.25,OTHER-TRAVEL ALLOWANCES,PASSENGER RAILWAYS (4112)
10 Jul 2014,JOHAL DAIRIES LTD,CHILDRENS SERVICES,STROUD FAMILY CENTRE,5.97,MISC DAIRY PRODUCTS-PROVISIONS,OTHER NONDURABLE GOODS (5199)
10 Jul 2014,JOHAL DAIRIES LTD,NEIGHBOURHOOD SERVICES,CA ELMORE GREEN PRIMARY SCHOOL,28.82,MISC DAIRY PRODUCTS-PROVISIONS,OTHER NONDURABLE GOODS (5199)
10 Jul 2014,AMAZON EU,CHILDRENS SERVICES,WELFARE/SOCIAL CARE,1.99,LIBRARY BOOKS,OTHER DIRECT MARKETING-OTHER DIRECT MARKETERS (5969)
10 Jul 2014,JOHAL DAIRIES LTD,NEIGHBOURHOOD SERVICES,CA LEIGHSWOOD PRIMARY SCHOOL,14.50,MISC DAIRY PRODUCTS-PROVISIONS,OTHER NONDURABLE GOODS (5199)
10 Jul 2014,JOHAL DAIRIES LTD,NEIGHBOURHOOD SERVICES,CA TOWN HALL RESTAURANT - CATERING,26.43,MISC DAIRY PRODUCTS-PROVISIONS,OTHER NONDURABLE GOODS (5199)
10 Jul 2014,OFFICE DEPOT,CHILDRENS SERVICES,CHILDRENS RESIDENTIAL SVCS,47.18,STATIONERY & GENERAL SUPPLIES-OFFICE EXP,"STATIONERY, OFFICE SUPPLIES AND WRITING PAPER (5111)"
10 Jul 2014,JOHAL DAIRIES LTD,NEIGHBOURHOOD SERVICES,CA MOORCROFT WOOD,32.85,MISC DAIRY PRODUCTS-PROVISIONS,OTHER NONDURABLE GOODS (5199)
10 Jul 2014,JOHAL DAIRIES LTD,NEIGHBOURHOOD SERVICES,CA GREENFIELD PRIMARY,67.21,MISC DAIRY PRODUCTS-PROVISIONS,OTHER NONDURABLE GOODS (5199)
10 Jul 2014,JOHAL DAIRIES LTD,NEIGHBOURHOOD SERVICES,CA BLAKENALL HEATH JUNIOR SCHOOL,58.59,MISC DAIRY PRODUCTS-PROVISIONS,OTHER NONDURABLE GOODS (5199)
10 Jul 2014,ARGOS B2B ONLINE,CHILDRENS SERVICES,"CLUSTER 6 BENTLEY,LIGHTHOUSE,FIBBERSLEY",134.63,NEW-FURNITURE & EQUIPMENT,DISCOUNT STORES (5310)
10 Jul 2014,SAVERS,REGENERATION,BLOXWICH DISTRICT CENTRE,1.00,MISCELLANEOUS SUPPLIES,"DRUG STORES, PHARMACIES (5912)"
10 Jul 2014,JOHAL DAIRIES LTD,NEIGHBOURHOOD SERVICES,CA ST MICHAELS C.E. PRIMARY SCHOOL,29.59,MISC DAIRY PRODUCTS-PROVISIONS,OTHER NONDURABLE GOODS (5199)
10 Jul 2014,JOHAL DAIRIES LTD,NEIGHBOURHOOD SERVICES,CA MEADOW VIEW JMI PRIMARY SCHOOL,17.94,MISC DAIRY PRODUCTS-PROVISIONS,OTHER NONDURABLE GOODS (5199)
10 Jul 2014,CO-OPERATIVE FOOD,CHILDRENS SERVICES,REDRUTH ROAD,2.75,GENERAL PROVISIONS-PROVISIONS,GROCERY STORES AND SUPERMARKETS (5411)
10 Jul 2014,AMAZON *MKTPLCE EU-UK,CHILDRENS SERVICES,ART,23.99,GENERAL MATERIALS,BOOK STORES (5942)
10 Jul 2014,JOHAL DAIRIES LTD,NEIGHBOURHOOD SERVICES,CA ST BERNADETTES CATHOLIC PRIMARY SCHOOL,25.44,MISC DAIRY PRODUCTS-PROVISIONS,OTHER NONDURABLE GOODS (5199)
10 Jul 2014,OFFICE DEPOT,CHILDRENS SERVICES,CHILD PROTECTION & REVIEW SERVICES,264.56,STATIONERY & GENERAL SUPPLIES-OFFICE EXP,"STATIONERY, OFFICE SUPPLIES AND WRITING PAPER (5111)"
10 Jul 2014,JOHAL DAIRIES LTD,NEIGHBOURHOOD SERVICES,CA LITTLE BLOXWICH CE PRIMARY SCHOOL,32.30,MISC DAIRY PRODUCTS-PROVISIONS,OTHER NONDURABLE GOODS (5199)
10 Jul 2014,OFFICE DEPOT,NEIGHBOURHOOD SERVICES,RESOURCE MANAGEMENT,246.02,STATIONERY & GENERAL SUPPLIES-OFFICE EXP,"STATIONERY, OFFICE SUPPLIES AND WRITING PAPER (5111)"
10 Jul 2014,JOHAL DAIRIES LTD,NEIGHBOURHOOD SERVICES,CA RUSHALL JMI SCHOOL,60.30,MISC DAIRY PRODUCTS-PROVISIONS,OTHER NONDURABLE GOODS (5199)
10 Jul 2014,JOHAL DAIRIES LTD,SOCIAL CARE & INCLUSION,REABLEMENT TEAM - HOLLY BANK,92.15,MISC DAIRY PRODUCTS-PROVISIONS,OTHER NONDURABLE GOODS (5199)
10 Jul 2014,JOHAL DAIRIES LTD,NEIGHBOURHOOD SERVICES,CA CROFT COMMUNITY PRIMARY SCHOOL,21.33,MISC DAIRY PRODUCTS-PROVISIONS,OTHER NONDURABLE GOODS (5199)
10 Jul 2014,JOHAL DAIRIES LTD,NEIGHBOURHOOD SERVICES,CA COOPER JORDAN CE PRIMARY SCHOOL,20.03,MISC DAIRY PRODUCTS-PROVISIONS,OTHER NONDURABLE GOODS (5199)
10 Jul 2014,WWW.RAPIDRACKING.COM,CHILDRENS SERVICES,ADMINISTRATIVE SUPPLIES,165.60,STATIONERY & GENERAL SUPPLIES-OFFICE EXP,OTHER INDUSTRIAL SUPPLIES (5085)
10 Jul 2014,JOHAL DAIRIES LTD,NEIGHBOURHOOD SERVICES,CA DELVES JUNIOR SCHOOL,66.50,MISC DAIRY PRODUCTS-PROVISIONS,OTHER NONDURABLE GOODS (5199)
10 Jul 2014,JOHAL DAIRIES LTD,NEIGHBOURHOOD SERVICES,CA BLACKWOOD PRIMARY SCHOOL,44.80,MISC DAIRY PRODUCTS-PROVISIONS,OTHER NONDURABLE GOODS (5199)
10 Jul 2014,JOHAL DAIRIES LTD,NEIGHBOURHOOD SERVICES,CA DELVES INFANTS SCHOOL,8.23,MISC DAIRY PRODUCTS-PROVISIONS,OTHER NONDURABLE GOODS (5199)
10 Jul 2014,JOHAL DAIRIES LTD,NEIGHBOURHOOD SERVICES,CA OAKWOOD SPECIAL SCHOOL,8.37,MISC DAIRY PRODUCTS-PROVISIONS,OTHER NONDURABLE GOODS (5199)
10 Jul 2014,JOHAL DAIRIES LTD,NEIGHBOURHOOD SERVICES,CA BLUE COAT C.E. JUNIOR SCHOOL,56.39,MISC DAIRY PRODUCTS-PROVISIONS,OTHER NONDURABLE GOODS (5199)
10 Jul 2014,JOHAL DAIRIES LTD,NEIGHBOURHOOD SERVICES,CA JANE LANE SPECIAL SCHOOL,35.85,MISC DAIRY PRODUCTS-PROVISIONS,OTHER NONDURABLE GOODS (5199)
10 Jul 2014,OFFICE DEPOT,NEIGHBOURHOOD SERVICES,FOREST ARTS CENTRE,123.92,GENERAL MATERIALS,"STATIONERY, OFFICE SUPPLIES AND WRITING PAPER (5111)"
10 Jul 2014,JOHAL DAIRIES LTD,NEIGHBOURHOOD SERVICES,CA OLD HALL SPECIAL SCHOOL,20.41,MISC DAIRY PRODUCTS-PROVISIONS,OTHER NONDURABLE GOODS (5199)
10 Jul 2014,AMAZON *MKTPLCE EU-UK,CHILDRENS SERVICES,ICT CAPITATION,7.80,FURNITURE & EQUIPMENT,BOOK STORES (5942)
10 Jul 2014,JOHAL DAIRIES LTD,NEIGHBOURHOOD SERVICES,CA CALDMORE COMMUNITY PRIMARY SCHOOL,28.86,MISC DAIRY PRODUCTS-PROVISIONS,OTHER NONDURABLE GOODS (5199)
10 Jul 2014,JOHAL DAIRIES LTD,NEIGHBOURHOOD SERVICES,CA POOL HAYES PRIMARY SCHOOL,23.64,MISC DAIRY PRODUCTS-PROVISIONS,OTHER NONDURABLE GOODS (5199)
10 Jul 2014,EUROFFICE.CO.UK,RESOURCES,ADMIN SUPPORT,56.40,STATIONERY & GENERAL SUPPLIES-OFFICE EXP,"OFFICE, SCHOOL SUPPLY, AND STATIONERY STORES (5943)"
10 Jul 2014,TRAINLINE.COM,CHILDRENS SERVICES,GENERAL MANAGEMENT SUPPORT (INC LEGAL),31.62,OFFICER/STAFF-PUBLIC TRANSPORT,PASSENGER RAILWAYS (4112)
10 Jul 2014,OFFICE DEPOT,CHILDRENS SERVICES,FAMILY PLACEMENTS,67.25,STATIONERY & GENERAL SUPPLIES-OFFICE EXP,"STATIONERY, OFFICE SUPPLIES AND WRITING PAPER (5111)"
10 Jul 2014,OFFICE DEPOT,RESOURCES,SIT-CORPORATE SERVICES,23.72,STATIONERY & GENERAL SUPPLIES-OFFICE EXP,"STATIONERY, OFFICE SUPPLIES AND WRITING PAPER (5111)"
10 Jul 2014,JOHAL DAIRIES LTD,NEIGHBOURHOOD SERVICES,CA BROWNHILLS WEST PRIMARY SCHOOL,62.42,MISC DAIRY PRODUCTS-PROVISIONS,OTHER NONDURABLE GOODS (5199)
10 Jul 2014,JOHAL DAIRIES LTD,NEIGHBOURHOOD SERVICES,CA ST JOHNS C.E. PRIMARY SCHOOL,31.10,MISC DAIRY PRODUCTS-PROVISIONS,OTHER NONDURABLE GOODS (5199)
10 Jul 2014,OFFICE DEPOT,SOCIAL CARE & INCLUSION,INTEGRATED BUSINESS PROCESSES & SERVICES,47.18,STATIONERY & GENERAL SUPPLIES-OFFICE EXP,"STATIONERY, OFFICE SUPPLIES AND WRITING PAPER (5111)"
10 Jul 2014,EVENT FURNITURE LIMITE,CHILDRENS SERVICES,CLUSTER 5 DARLASTON,150.00,LEASING/HIRE/RENTAL-EQUIPMENT,EQUIPMENT RENTAL AND LEASING SERVICES (7394)
10 Jul 2014,ARTHUR BRETT CATER,NEIGHBOURHOOD SERVICES,CA ST JOHNS C.E. PRIMARY SCHOOL,23.84,FRUIT & VEGETABLES OTHER-PROVISIONS,MISCELLANEOUS FOOD STORES & CONVENIENCE STORES (5499)
10 Jul 2014,OFFICE DEPOT,CHILDRENS SERVICES,CHILD PROTECTION & REVIEW SERVICES,0.74,STATIONERY & GENERAL SUPPLIES-OFFICE EXP,"STATIONERY, OFFICE SUPPLIES AND WRITING PAPER (5111)"
10 Jul 2014,JOHAL DAIRIES LTD,NEIGHBOURHOOD SERVICES,CA BLOXWICH C.E. JMI PRIMARY SCHOOL,58.13,MISC DAIRY PRODUCTS-PROVISIONS,OTHER NONDURABLE GOODS (5199)
10 Jul 2014,JOHAL DAIRIES LTD,NEIGHBOURHOOD SERVICES,CA BLUE COAT C.E. INFANT SCHOOL,53.32,MISC DAIRY PRODUCTS-PROVISIONS,OTHER NONDURABLE GOODS (5199)
10 Jul 2014,AMAZON EU,CHILDRENS SERVICES,CHUCKERY PRIMARY SCHOOL,7.99,LANDSCAPE WORK-OP MTCE,OTHER DIRECT MARKETING-OTHER DIRECT MARKETERS (5969)
10 Jul 2014,B & Q CALL CENTRE,CHILDRENS SERVICES,LODGE FARM JMI SCHOOL,302.36,"REPAIRS,ALTERATIONS & MAINTENANCE-PREM",LUMBER & BUILDING MATERIALS STORES (5211)
10 Jul 2014,BT BILL PAYMENT 2,SOCIAL CARE & INCLUSION,INTEGRATED BUSINESS PROCESSES & SERVICES,58.73,COSTS (NOT INTERNAL RECHARGES)-TELEPHONES,TELECOMMUNICATION EQUIPMENT & SALES (4812)
10 Jul 2014,JOHAL DAIRIES LTD,NEIGHBOURHOOD SERVICES,CA HARDEN PRIMARY SCHOOL,113.34,MISC DAIRY PRODUCTS-PROVISIONS,OTHER NONDURABLE GOODS (5199)
10 Jul 2014,JOHAL DAIRIES LTD,NEIGHBOURHOOD SERVICES,CA WATLING STREET PRIMARY SCHOOL,25.84,MISC DAIRY PRODUCTS-PROVISIONS,OTHER NONDURABLE GOODS (5199)
10 Jul 2014,JOHAL DAIRIES LTD,NEIGHBOURHOOD SERVICES,CA ST FRANCIS CATHOLIC PRIMARY SCHOOL,16.67,MISC DAIRY PRODUCTS-PROVISIONS,OTHER NONDURABLE GOODS (5199)
10 Jul 2014,JOHAL DAIRIES LTD,NEIGHBOURHOOD SERVICES,CA ABBEY PRIMARY SCHOOL,54.64,MISC DAIRY PRODUCTS-PROVISIONS,OTHER NONDURABLE GOODS (5199)
10 Jul 2014,JOHAL DAIRIES LTD,NEIGHBOURHOOD SERVICES,CA JOSEPH LECKIE COMMUNITY TECHNOLOGY COLLEGE,16.88,MISC DAIRY PRODUCTS-PROVISIONS,OTHER NONDURABLE GOODS (5199)
10 Jul 2014,JOHAL DAIRIES LTD,NEIGHBOURHOOD SERVICES,CA BARCROFT D/C,96.96,MISC DAIRY PRODUCTS-PROVISIONS,OTHER NONDURABLE GOODS (5199)
10 Jul 2014,ARGOS LTD,CHILDRENS SERVICES,CLUSTER 5 DARLASTON,47.47,FOOD AND BEVERAGES-PROVISIONS,DISCOUNT STORES (5310)
10 Jul 2014,ARTHUR BRETT CATER,NEIGHBOURHOOD SERVICES,CA BLACKWOOD PRIMARY SCHOOL,98.65,FRUIT & VEGETABLES OTHER-PROVISIONS,MISCELLANEOUS FOOD STORES & CONVENIENCE STORES (5499)
10 Jul 2014,JOHAL DAIRIES LTD,NEIGHBOURHOOD SERVICES,CA FIBBERSLEY PARK PRIMARY SCHOOL,38.60,MISC DAIRY PRODUCTS-PROVISIONS,OTHER NONDURABLE GOODS (5199)
10 Jul 2014,JOHAL DAIRIES LTD,NEIGHBOURHOOD SERVICES,CA ST ANNES CATHOLIC PRIMARY SCHOOL,17.54,MISC DAIRY PRODUCTS-PROVISIONS,OTHER NONDURABLE GOODS (5199)
10 Jul 2014,JOHAL DAIRIES LTD,NEIGHBOURHOOD SERVICES,CA MILLFIELD PRIMARY SCHOOL,48.25,MISC DAIRY PRODUCTS-PROVISIONS,OTHER NONDURABLE GOODS (5199)
10 Jul 2014,JOHAL DAIRIES LTD,NEIGHBOURHOOD SERVICES,CA WHETSTONE FIELD PRIMARY SCHOOL,7.95,MISC DAIRY PRODUCTS-PROVISIONS,OTHER NONDURABLE GOODS (5199)
10 Jul 2014,JOHAL DAIRIES LTD,NEIGHBOURHOOD SERVICES,CA RADLEYS PRIMARY SCHOOL,51.75,MISC DAIRY PRODUCTS-PROVISIONS,OTHER NONDURABLE GOODS (5199)
10 Jul 2014,JOHAL DAIRIES LTD,NEIGHBOURHOOD SERVICES,CA LINDENS PRIMARY SCHOOL,29.20,MISC DAIRY PRODUCTS-PROVISIONS,OTHER NONDURABLE GOODS (5199)
10 Jul 2014,JOHAL DAIRIES LTD,NEIGHBOURHOOD SERVICES,CA PALFREY JUNIOR SCHOOL,51.60,MISC DAIRY PRODUCTS-PROVISIONS,OTHER NONDURABLE GOODS (5199)
10 Jul 2014,JOHAL DAIRIES LTD,NEIGHBOURHOOD SERVICES,CA GREEN ROCK PRIMARY,52.55,MISC DAIRY PRODUCTS-PROVISIONS,OTHER NONDURABLE GOODS (5199)
10 Jul 2014,SAINSBURYS S/MKTS,CHILDRENS SERVICES,CLUSTER 5 DARLASTON,25.00,FOOD AND BEVERAGES-PROVISIONS,GROCERY STORES AND SUPERMARKETS (5411)
10 Jul 2014,BT BILL PAYMENT 2,SOCIAL CARE & INCLUSION,INTEGRATED BUSINESS PROCESSES & SERVICES,75.76,COSTS (NOT INTERNAL RECHARGES)-TELEPHONES,TELECOMMUNICATION EQUIPMENT & SALES (4812)
10 Jul 2014,JOHAL DAIRIES LTD,NEIGHBOURHOOD SERVICES,CA BEACON PRIMARY SCHOOL,97.80,MISC DAIRY PRODUCTS-PROVISIONS,OTHER NONDURABLE GOODS (5199)
10 Jul 2014,JOHAL DAIRIES LTD,NEIGHBOURHOOD SERVICES,CA BUSILL JONES PRIMARY SCHOOL,65.10,MISC DAIRY PRODUCTS-PROVISIONS,OTHER NONDURABLE GOODS (5199)
10 Jul 2014,JOHAL DAIRIES LTD,SOCIAL CARE & INCLUSION,FALLINGS HEATH,23.86,MISC DAIRY PRODUCTS-PROVISIONS,OTHER NONDURABLE GOODS (5199)
10 Jul 2014,HOPWELLS LTD,CHILDRENS SERVICES,MARY ELLIOTT SPECIAL SCHOOL,195.63,BREAD-GENERAL-PROVISIONS,CATERERS (5811)
10 Jul 2014,HOBBY CRAFT LTD,CHILDRENS SERVICES,CLUSTER 5 DARLASTON,55.00,GENERAL MATERIALS,"ARTIST SUPPLY STORES, CRAFT SHOPS (5970)"
10 Jul 2014,ARTHUR BRETT CATER,NEIGHBOURHOOD SERVICES,CA ST JOHNS C.E. PRIMARY SCHOOL,10.49,FRUIT & VEGETABLES OTHER-PROVISIONS,MISCELLANEOUS FOOD STORES & CONVENIENCE STORES (5499)
10 Jul 2014,AMAZON *MKTPLCE EU-UK,CHILDRENS SERVICES,GENERAL RESOURCES & MISC,2.79,GENERAL MATERIALS,BOOK STORES (5942)
10 Jul 2014,JOHAL DAIRIES LTD,NEIGHBOURHOOD SERVICES,CA ST GILES C.E. PRIMARY SCHOOL,60.61,MISC DAIRY PRODUCTS-PROVISIONS,OTHER NONDURABLE GOODS (5199)
10 Jul 2014,ASDA STORES 7134,NEIGHBOURHOOD SERVICES,JK LEARNING FOR LIVING & WORK,3.50,CATERING,GROCERY STORES AND SUPERMARKETS (5411)
10 Jul 2014,ASDA STORES 7134,NEIGHBOURHOOD SERVICES,JK LEARNING FOR LIVING & WORK,22.43,CATERING,GROCERY STORES AND SUPERMARKETS (5411)
10 Jul 2014,ASDA STORES 7134,NEIGHBOURHOOD SERVICES,JK LEARNING FOR LIVING & WORK,9.00,CATERING,GROCERY STORES AND SUPERMARKETS (5411)
10 Jul 2014,JOHAL DAIRIES LTD,NEIGHBOURHOOD SERVICES,CA BIRCHILLS CE PRIMARY COMMUNITY SCHOOL,86.40,MISC DAIRY PRODUCTS-PROVISIONS,OTHER NONDURABLE GOODS (5199)
10 Jul 2014,JOHAL DAIRIES LTD,NEIGHBOURHOOD SERVICES,CA ELMWOOD SPECIAL SCHOOL,18.93,MISC DAIRY PRODUCTS-PROVISIONS,OTHER NONDURABLE GOODS (5199)
10 Jul 2014,VIMEO.COM,CHILDRENS SERVICES,ICT LEARNING RESOURCES,59.94,GENERAL MATERIALS,DIRECT MARKETING CONTINUITY SUBSCRIPTION MERCHANTS (5968)
10 Jul 2014,JOHAL DAIRIES LTD,NEIGHBOURHOOD SERVICES,CA LEAMORE PRIMARY SCHOOL,24.91,MISC DAIRY PRODUCTS-PROVISIONS,OTHER NONDURABLE GOODS (5199)
10 Jul 2014,AMAZON *MKTPLCE EU-UK,CHILDRENS SERVICES,GENERAL RESOURCES & MISC,12.00,GENERAL MATERIALS,BOOK STORES (5942)
10 Jul 2014,JOHAL DAIRIES LTD,CHILDRENS SERVICES,57 LICHFIELD ROAD,16.32,MISC DAIRY PRODUCTS-PROVISIONS,OTHER NONDURABLE GOODS (5199)
10 Jul 2014,OFFICE DEPOT,NEIGHBOURHOOD SERVICES,RESOURCE MANAGEMENT,28.80,STATIONERY & GENERAL SUPPLIES-OFFICE EXP,"STATIONERY, OFFICE SUPPLIES AND WRITING PAPER (5111)"
10 Jul 2014,ALTON TOWERS PARK,CHILDRENS SERVICES,POSITIVE ACTIVITIES SUMMER PROGRAMMES,682.00,MISCELLANEOUS SUPPLIES,"AMUSEMENT PARKS, CARNIVALS, CIRCUSES (7996)"
11 Jul 2014,OFFICE DEPOT,CHILDRENS SERVICES,"CLUSTER 6 BENTLEY,LIGHTHOUSE,FIBBERSLEY",11.45,STATIONERY & GENERAL SUPPLIES-OFFICE EXP,"STATIONERY, OFFICE SUPPLIES AND WRITING PAPER (5111)"
11 Jul 2014,W M MORRISONS,NEIGHBOURHOOD SERVICES,LIBRARY DEVELOPMENT 2,21.30,GENERAL MATERIALS,GROCERY STORES AND SUPERMARKETS (5411)
11 Jul 2014,W M MORRISONS,NEIGHBOURHOOD SERVICES,LIBRARY DEVELOPMENT 2,19.83,GENERAL MATERIALS,GROCERY STORES AND SUPERMARKETS (5411)
11 Jul 2014,ARTHUR BRETT CATER,NEIGHBOURHOOD SERVICES,CA FIBBERSLEY PARK PRIMARY SCHOOL,40.09,FRUIT & VEGETABLES OTHER-PROVISIONS,MISCELLANEOUS FOOD STORES & CONVENIENCE STORES (5499)
11 Jul 2014,OFFICE DEPOT,NEIGHBOURHOOD SERVICES,DARLASTON LEISURE CENTRE,11.45,STATIONERY & GENERAL SUPPLIES-OFFICE EXP,"STATIONERY, OFFICE SUPPLIES AND WRITING PAPER (5111)"
11 Jul 2014,ARGOS LTD,REGENERATION,BLOXWICH DISTRICT CENTRE,-27.80,MISCELLANEOUS SUPPLIES,DISCOUNT STORES (5310)
11 Jul 2014,JOHAL DAIRIES LTD,NEIGHBOURHOOD SERVICES,TOWN HALL RESTAURANT BISTRO,40.12,MISC DAIRY PRODUCTS-PROVISIONS,OTHER NONDURABLE GOODS (5199)
11 Jul 2014,TESCO STORES 6161,RESOURCES,WALSALL CRISIS SUPPORT SCHEME,33.00,CRISIS SUPPORT PAYMENTS,GROCERY STORES AND SUPERMARKETS (5411)
11 Jul 2014,OFFICE DEPOT,SOCIAL CARE & INCLUSION,INTEGRATED BUSINESS PROCESSES & SERVICES,179.76,STATIONERY & GENERAL SUPPLIES-OFFICE EXP,"STATIONERY, OFFICE SUPPLIES AND WRITING PAPER (5111)"
11 Jul 2014,W M MORRISONS,NEIGHBOURHOOD SERVICES,CHILDRENS LIBRARY - BOOKSTART,3.45,GENERAL MATERIALS,GROCERY STORES AND SUPERMARKETS (5411)
11 Jul 2014,W M MORRISONS,NEIGHBOURHOOD SERVICES,CHILDRENS LIBRARY - BOOKSTART,45.29,GENERAL MATERIALS,GROCERY STORES AND SUPERMARKETS (5411)
11 Jul 2014,STG-ELECTRIC.CO.UK,NEIGHBOURHOOD SERVICES,NAG - TEMPORARY EXHIBITIONS,86.15,LOOSE TOOLS & CONSUMABLES,HOUSEHOLD APPLIANCE STORES (5722)
11 Jul 2014,AMAZON EU,CHILDRENS SERVICES,CHUCKERY PRIMARY SCHOOL,16.98,LANDSCAPE WORK-OP MTCE,OTHER DIRECT MARKETING-OTHER DIRECT MARKETERS (5969)
11 Jul 2014,JOHAL DAIRIES LTD,NEIGHBOURHOOD SERVICES,CA PALFREY INFANT SCHOOL,8.37,MISC DAIRY PRODUCTS-PROVISIONS,OTHER NONDURABLE GOODS (5199)
11 Jul 2014,AMAZON *MKTPLCE EU-UK,NEIGHBOURHOOD SERVICES,LIBRARY STOCK AND PERFORMANCE,39.65,LIBRARY BOOKS,BOOK STORES (5942)
11 Jul 2014,ARTHUR BRETT CATER,NEIGHBOURHOOD SERVICES,CA ST MICHAELS C.E. PRIMARY SCHOOL,11.24,FRUIT & VEGETABLES OTHER-PROVISIONS,MISCELLANEOUS FOOD STORES & CONVENIENCE STORES (5499)
11 Jul 2014,BORSHCH ELECTRIC,RESOURCES,WALSALL CRISIS SUPPORT SCHEME,325.00,CRISIS SUPPORT PAYMENTS,HOUSEHOLD APPLIANCE STORES (5722)
11 Jul 2014,WM MORRISON FOOD.COM,CHILDRENS SERVICES,CLUSTER 4 ALUMWELL & BIRCHILLS,0.79,FOOD AND BEVERAGES-PROVISIONS,GROCERY STORES AND SUPERMARKETS (5411)
11 Jul 2014,WM MORRISON FOOD.COM,CHILDRENS SERVICES,CLUSTER 4 ALUMWELL & BIRCHILLS,60.88,FOOD AND BEVERAGES-PROVISIONS,GROCERY STORES AND SUPERMARKETS (5411)
11 Jul 2014,W M MORRISON PLC,CHILDRENS SERVICES,"43A HILTON ROAD, WILLENHALL",36.05,GENERAL PROVISIONS-PROVISIONS,GROCERY STORES AND SUPERMARKETS (5411)
11 Jul 2014,W M MORRISON PLC,CHILDRENS SERVICES,"43A HILTON ROAD, WILLENHALL",111.27,GENERAL PROVISIONS-PROVISIONS,GROCERY STORES AND SUPERMARKETS (5411)
11 Jul 2014,OFFICE DEPOT,CHILDRENS SERVICES,SCHOOL IMPROVEMENT,32.11,STATIONERY & GENERAL SUPPLIES-OFFICE EXP,"STATIONERY, OFFICE SUPPLIES AND WRITING PAPER (5111)"
11 Jul 2014,TESCO STORES 6161,RESOURCES,WALSALL CRISIS SUPPORT SCHEME,7.50,CRISIS SUPPORT PAYMENTS,GROCERY STORES AND SUPERMARKETS (5411)
11 Jul 2014,ARTHUR BRETT CATER,NEIGHBOURHOOD SERVICES,CA BLUE COAT C.E. JUNIOR SCHOOL,59.63,FRUIT & VEGETABLES OTHER-PROVISIONS,MISCELLANEOUS FOOD STORES & CONVENIENCE STORES (5499)
11 Jul 2014,JOHAL DAIRIES LTD,NEIGHBOURHOOD SERVICES,CA CASTLEFORT JMI SCHOOL,35.20,MISC DAIRY PRODUCTS-PROVISIONS,OTHER NONDURABLE GOODS (5199)
11 Jul 2014,WALSALL COUNCIL,CHILDRENS SERVICES,SAFEGUARDING & FAMILY SUPPORT,20.00,REGISTRAR OF BIRTHS/DEATHS/MARRIAGES/CIVIL PARTNERSHIPS-SERV-FEES/CHARGES,GOVERNMENT SERVICES (9399)
11 Jul 2014,MEDISAVE (UK),CHILDRENS SERVICES,REDRUTH ROAD,12.10,MEDICAL REQUISITES-MATERIALS,ORTHOPEDIC GOODS-ARTIFICIAL LIMB STORES (5976)
11 Jul 2014,PC WORLD,CHILDRENS SERVICES,"43A HILTON ROAD, WILLENHALL",439.00,RESIDENTS PERSONAL EXPENSES-ALLOWANCES TO S/S CLIENTS,ELECTRONIC SALES (5732)
11 Jul 2014,ARGOS LTD,REGENERATION,BLOXWICH DISTRICT CENTRE,-89.99,MISCELLANEOUS SUPPLIES,DISCOUNT STORES (5310)
11 Jul 2014,ASDA,CHILDRENS SERVICES,57 LICHFIELD ROAD,9.98,EQUIP NEW-CLEANING,GROCERY STORES AND SUPERMARKETS (5411)
11 Jul 2014,TESCO STORES 6161,RESOURCES,WALSALL CRISIS SUPPORT SCHEME,20.91,CRISIS SUPPORT PAYMENTS,GROCERY STORES AND SUPERMARKETS (5411)
11 Jul 2014,WM MORRISONS,CHILDRENS SERVICES,"43A HILTON ROAD, WILLENHALL",8.00,RESIDENTS PERSONAL EXPENSES-ALLOWANCES TO S/S CLIENTS,GROCERY STORES AND SUPERMARKETS (5411)
11 Jul 2014,ARTHUR BRETT CATER,NEIGHBOURHOOD SERVICES,CA PALFREY JUNIOR SCHOOL,72.87,FRUIT & VEGETABLES OTHER-PROVISIONS,MISCELLANEOUS FOOD STORES & CONVENIENCE STORES (5499)
11 Jul 2014,PARK PLACE SHOE REPAIRS,RESOURCES,RECHARGEABLE EQUIPMENT,10.00,CLOTHING & LAUNDRY,"HAT CLEANING SHOPS, SHOE REPAIR SHOPS, SHOE SHINE  (7251)"
11 Jul 2014,JOHAL DAIRIES LTD,NEIGHBOURHOOD SERVICES,CA BLUE COAT C OF E PERFORMING ARTS COLLEGE,18.50,MISC DAIRY PRODUCTS-PROVISIONS,OTHER NONDURABLE GOODS (5199)
11 Jul 2014,CRAZY HOUSE (BROWNHILL,RESOURCES,WALSALL CRISIS SUPPORT SCHEME,55.00,CRISIS SUPPORT PAYMENTS,"EQUIPMENT, FURNITURE, AND HOME FURNISHINGS STORES  (5712)"
11 Jul 2014,ARTHUR BRETT CATER,NEIGHBOURHOOD SERVICES,CA CALDMORE COMMUNITY PRIMARY SCHOOL,36.44,FRUIT & VEGETABLES OTHER-PROVISIONS,MISCELLANEOUS FOOD STORES & CONVENIENCE STORES (5499)
11 Jul 2014,MARSTON ROBING LTD,CHILDRENS SERVICES,STANLEYS NURSERY,72.76,MISCELLANEOUS SUPPLIES,MISCELLANEOUS AND SPECIALTY RETAIL STORES (5999)
11 Jul 2014,WILKINSONS,REGENERATION,BLOXWICH DISTRICT CENTRE,4.00,MISCELLANEOUS SUPPLIES,HOUSEHOLD APPLIANCE STORES (5722)
11 Jul 2014,WILKINSONS,REGENERATION,BROWNHILLS DISTRICT CENTRE,10.00,MISCELLANEOUS SUPPLIES,HOUSEHOLD APPLIANCE STORES (5722)
11 Jul 2014,WEST MID TRAVEL,CHILDRENS SERVICES,SAFEGUARDING & FAMILY SUPPORT,400.00,OFFICER/STAFF-PUBLIC TRANSPORT,BUS LINES (4131)
11 Jul 2014,WEST MID TRAVEL,CHILDRENS SERVICES,SAFEGUARDING & FAMILY SUPPORT,6.75,OFFICER/STAFF-PUBLIC TRANSPORT,BUS LINES (4131)
11 Jul 2014,TESCO STORES 5503,CHILDRENS SERVICES,REDRUTH ROAD,5.17,GENERAL PROVISIONS-PROVISIONS,GROCERY STORES AND SUPERMARKETS (5411)
11 Jul 2014,TESCO STORES 5503,CHILDRENS SERVICES,REDRUTH ROAD,30.30,GENERAL PROVISIONS-PROVISIONS,GROCERY STORES AND SUPERMARKETS (5411)
11 Jul 2014,WILKINSON,RESOURCES,WALSALL CRISIS SUPPORT SCHEME,6.25,CRISIS SUPPORT PAYMENTS,HOUSEHOLD APPLIANCE STORES (5722)
11 Jul 2014,METRO INNS WALSALL,CHILDRENS SERVICES,TRANSITION AND LEAVING CARE,72.00,SUPPORT UNDER SECTION 23 OF THE CHILDRENS ACT,"HOTELS, MOTELS, RESORTS (7011)"
11 Jul 2014,TESCO STORES 6161,RESOURCES,WALSALL CRISIS SUPPORT SCHEME,49.00,CRISIS SUPPORT PAYMENTS,GROCERY STORES AND SUPERMARKETS (5411)
11 Jul 2014,JOHAL DAIRIES LTD,NEIGHBOURHOOD SERVICES,CA BROWNHILLS COMMUNITY TECHNOLOGY COLLEGE,26.11,MISC DAIRY PRODUCTS-PROVISIONS,OTHER NONDURABLE GOODS (5199)
11 Jul 2014,ASDA,CHILDRENS SERVICES,57 LICHFIELD ROAD,17.28,GENERAL PROVISIONS-PROVISIONS,GROCERY STORES AND SUPERMARKETS (5411)
11 Jul 2014,SCHOOL FARM SHOP,CHILDRENS SERVICES,ADMINISTRATIVE SUPPLIES,25.00,STATIONERY & GENERAL SUPPLIES-OFFICE EXP,FLORISTS (5992)
11 Jul 2014,WM MORRISON FOOD.COM,CHILDRENS SERVICES,CLUSTER 5 DARLASTON,143.65,FOOD AND BEVERAGES-PROVISIONS,GROCERY STORES AND SUPERMARKETS (5411)
11 Jul 2014,THE BEAUCHAMP,CHILDRENS SERVICES,SAFEGUARDING & FAMILY SUPPORT,477.60,HOTEL ACCOMMODATION-EMPLOYEES,"HOTELS, MOTELS, RESORTS (7011)"
11 Jul 2014,CRAZY HOUSE (BROWNHILL,RESOURCES,WALSALL CRISIS SUPPORT SCHEME,60.00,CRISIS SUPPORT PAYMENTS,"EQUIPMENT, FURNITURE, AND HOME FURNISHINGS STORES  (5712)"
11 Jul 2014,MATALAN 184,NEIGHBOURHOOD SERVICES,BLOXWICH LEISURE CENTRE,6.00,CLOTHING & LAUNDRY,MENS AND WOMENS CLOTHING STORES (5691)
11 Jul 2014,JOHAL DAIRIES LTD,NEIGHBOURHOOD SERVICES,CA WALSALL WOOD PRIMARY SCHOOL,15.31,MISC DAIRY PRODUCTS-PROVISIONS,OTHER NONDURABLE GOODS (5199)
11 Jul 2014,AMAZON EU,CHILDRENS SERVICES,CHUCKERY PRIMARY SCHOOL,23.19,LANDSCAPE WORK-OP MTCE,OTHER DIRECT MARKETING-OTHER DIRECT MARKETERS (5969)
11 Jul 2014,BORSHCH ELECTRIC,RESOURCES,WALSALL CRISIS SUPPORT SCHEME,195.00,CRISIS SUPPORT PAYMENTS,HOUSEHOLD APPLIANCE STORES (5722)
11 Jul 2014,PAYPAL,CHILDRENS SERVICES,GENERAL RESOURCES & MISC,44.98,GENERAL MATERIALS,PROFESSIONAL SERVICES (8999)
11 Jul 2014,METRO INN,CHILDRENS SERVICES,LOOKED AFTER CHILDRENS SOCIAL WORK TEAM,11.90,SUPPORT UNDER SECTION 23 OF THE CHILDRENS ACT,"EATING PLACES, RESTAURANTS (5812)"
11 Jul 2014,AMAZON *MKTPLCE EU-UK,CHILDRENS SERVICES,ADMINISTRATIVE SUPPLIES,7.16,STATIONERY & GENERAL SUPPLIES-OFFICE EXP,BOOK STORES (5942)
11 Jul 2014,EC PITCHER LTD,NEIGHBOURHOOD SERVICES,OAK PARK,58.06,GENERAL MATERIALS,HARDWARE STORES (5251)
11 Jul 2014,CRAIG MARLOW,REGENERATION,BLOXWICH DISTRICT CENTRE,106.00,MISCELLANEOUS SUPPLIES,"NURSERIES, LAWN AND GARDEN SUPPLY STORES (5261)"
11 Jul 2014,CIEH,NEIGHBOURHOOD SERVICES,EH DIV GENERAL COSTS,170.00,EXTERNAL TRAINING,"ORGANIZATIONS, MEMBERSHIP (8699)"
11 Jul 2014,WWW.GIROFOOD.COM,NEIGHBOURHOOD SERVICES,CA BEACON PRIMARY SCHOOL,112.47,DISPOSABLES-PROVISIONS,WHOLESALE CLUBS (5300)
11 Jul 2014,WWW.GIROFOOD.COM,NEIGHBOURHOOD SERVICES,CA FIBBERSLEY PARK PRIMARY SCHOOL,46.59,DISPOSABLES-PROVISIONS,WHOLESALE CLUBS (5300)
11 Jul 2014,WWW.GIROFOOD.COM,NEIGHBOURHOOD SERVICES,CA BEACON PRIMARY SCHOOL,63.90,DISPOSABLES-PROVISIONS,WHOLESALE CLUBS (5300)
11 Jul 2014,WWW.GIROFOOD.COM,NEIGHBOURHOOD SERVICES,CA RADLEYS PRIMARY SCHOOL,191.98,DISPOSABLES-PROVISIONS,WHOLESALE CLUBS (5300)
12 Jul 2014,B & Q,RESOURCES,ACCOMMODATION SERVICES MANAGEMENT,20.00,GENERAL MATERIALS,LUMBER & BUILDING MATERIALS STORES (5211)
12 Jul 2014,TESCO STORES 6161,NEIGHBOURHOOD SERVICES,NAG - ARTISTS RESIDENCIES,10.75,MISC DAIRY PRODUCTS-PROVISIONS,GROCERY STORES AND SUPERMARKETS (5411)
12 Jul 2014,OFFICE DEPOT,SOCIAL CARE & INCLUSION,FALLINGS HEATH,164.82,STATIONERY & GENERAL SUPPLIES-OFFICE EXP,"STATIONERY, OFFICE SUPPLIES AND WRITING PAPER (5111)"
12 Jul 2014,AMAZON *MKTPLCE EU-UK,CHILDRENS SERVICES,GENERAL RESOURCES & MISC,4.14,GENERAL MATERIALS,BOOK STORES (5942)
12 Jul 2014,AMAZON *MKTPLCE EU-UK,CHILDRENS SERVICES,PUPIL PREMIUM,10.00,GENERAL MATERIALS,BOOK STORES (5942)
12 Jul 2014,WILKINSON,REGENERATION,BROWNHILLS DISTRICT CENTRE,3.50,MISCELLANEOUS SUPPLIES,HOUSEHOLD APPLIANCE STORES (5722)
12 Jul 2014,ASDA STORES,CHILDRENS SERVICES,CLUSTER 5 DARLASTON,68.95,FOOD AND BEVERAGES-PROVISIONS,GROCERY STORES AND SUPERMARKETS (5411)
12 Jul 2014,BHS 072,CHILDRENS SERVICES,"43A HILTON ROAD, WILLENHALL",39.99,EQUIP NEW-CLEANING,DEPARTMENT STORES (5311)
12 Jul 2014,OFFICE DEPOT,RESOURCES,PRINT STORES,471.84,STATIONERY & GENERAL SUPPLIES-OFFICE EXP,"STATIONERY, OFFICE SUPPLIES AND WRITING PAPER (5111)"
12 Jul 2014,B&M RETAIL LTD,CHILDRENS SERVICES,SPINDLETREE,26.97,RESIDENTS PERSONAL EXPENSES-ALLOWANCES TO S/S CLIENTS,DISCOUNT STORES (5310)
12 Jul 2014,WILKINSON,CHILDRENS SERVICES,SPINDLETREE,37.38,EQUIP NEW-CLEANING,HOUSEHOLD APPLIANCE STORES (5722)
12 Jul 2014,WM MORRISONS,CHILDRENS SERVICES,SPINDLETREE,5.99,GENERAL PROVISIONS-PROVISIONS,GROCERY STORES AND SUPERMARKETS (5411)
12 Jul 2014,WM MORRISONS,CHILDRENS SERVICES,SPINDLETREE,13.19,GENERAL PROVISIONS-PROVISIONS,GROCERY STORES AND SUPERMARKETS (5411)
12 Jul 2014,OFFICE DEPOT,SOCIAL CARE & INCLUSION,RESPONSE SERVICES,46.66,STATIONERY & GENERAL SUPPLIES-OFFICE EXP,"STATIONERY, OFFICE SUPPLIES AND WRITING PAPER (5111)"
12 Jul 2014,B & Q,REGENERATION,BLOXWICH DISTRICT CENTRE,175.00,MISCELLANEOUS SUPPLIES,LUMBER & BUILDING MATERIALS STORES (5211)
12 Jul 2014,AMAZON EU,CHILDRENS SERVICES,ADMINISTRATIVE SUPPLIES,134.60,NEW-FURNITURE & EQUIPMENT,OTHER DIRECT MARKETING-OTHER DIRECT MARKETERS (5969)
12 Jul 2014,AMAZON EU,CHILDRENS SERVICES,ICT LEARNING RESOURCES,31.05,STATIONERY & GENERAL SUPPLIES-OFFICE EXP,OTHER DIRECT MARKETING-OTHER DIRECT MARKETERS (5969)
13 Jul 2014,TESCO STORES 6161,CHILDRENS SERVICES,FOOD TECHNOLOGY,1.50,GENERAL MATERIALS,GROCERY STORES AND SUPERMARKETS (5411)
13 Jul 2014,TESCO STORES 6161,CHILDRENS SERVICES,FOOD TECHNOLOGY,11.96,GENERAL MATERIALS,GROCERY STORES AND SUPERMARKETS (5411)
13 Jul 2014,SAVERS,REGENERATION,BROWNHILLS DISTRICT CENTRE,2.00,MISCELLANEOUS SUPPLIES,"DRUG STORES, PHARMACIES (5912)"
13 Jul 2014,TESCO STORES 6161,CHILDRENS SERVICES,ELMWOOD SECONDARY SPECIAL SCHOOL,2.74,BREAD-GENERAL-PROVISIONS,GROCERY STORES AND SUPERMARKETS (5411)
13 Jul 2014,TESCO STORES 6161,CHILDRENS SERVICES,ELMWOOD SECONDARY SPECIAL SCHOOL,29.13,BREAD-GENERAL-PROVISIONS,GROCERY STORES AND SUPERMARKETS (5411)
14 Jul 2014,SPENDVISION,RESOURCES,FINANCE ADMIN,600.00,SERVICE AGREEMENTS-SERVICES, ()
14 Jul 2014,WELSH BROS FOODS LTD,NEIGHBOURHOOD SERVICES,CA ST JOHNS C.E. PRIMARY SCHOOL,81.59,MEAT-PROVISIONS,FREEZER AND LOCKER MEAT PROVISIONERS (5422)
14 Jul 2014,GRO HM PASSPORT OFFICE,CHILDRENS SERVICES,SUPPORT UNDER SECT 23 OF THE CHILDRENS ACT,70.20,SUPPORT UNDER SECTION 23 OF THE CHILDRENS ACT,GOVERNMENT SERVICES (9399)
14 Jul 2014,PEACOCK STORES,CHILDRENS SERVICES,57 LICHFIELD ROAD,46.40,RESIDENTS PERSONAL EXPENSES-ALLOWANCES TO S/S CLIENTS,VARIETY STORES (5331)
14 Jul 2014,BLAKEMORE FOODSERVICE,NEIGHBOURHOOD SERVICES,CA ST MICHAELS C.E. PRIMARY SCHOOL,257.61,DRY FOODS-PROVISIONS,CATERERS (5811)
14 Jul 2014,BLAKEMORE FOODSERVICE,NEIGHBOURHOOD SERVICES,CA ST MICHAELS C.E. PRIMARY SCHOOL,56.44,DRY FOODS-PROVISIONS,CATERERS (5811)
14 Jul 2014,BLAKEMORE FOODSERVICE,NEIGHBOURHOOD SERVICES,CA WHETSTONE FIELD PRIMARY SCHOOL,25.33,DRY FOODS-PROVISIONS,CATERERS (5811)
14 Jul 2014,BLAKEMORE FOODSERVICE,NEIGHBOURHOOD SERVICES,CA WHETSTONE FIELD PRIMARY SCHOOL,25.35,DRY FOODS-PROVISIONS,CATERERS (5811)
14 Jul 2014,WELSH BROS FOODS LTD,NEIGHBOURHOOD SERVICES,CA ST MICHAELS C.E. PRIMARY SCHOOL,84.05,MEAT-PROVISIONS,FREEZER AND LOCKER MEAT PROVISIONERS (5422)
14 Jul 2014,WELSH BROS FOODS LTD,NEIGHBOURHOOD SERVICES,CA LEIGHSWOOD PRIMARY SCHOOL,116.71,MEAT-PROVISIONS,FREEZER AND LOCKER MEAT PROVISIONERS (5422)
14 Jul 2014,BLAKEMORE FOODSERVICE,NEIGHBOURHOOD SERVICES,CA BEACON PRIMARY SCHOOL,125.90,FROZEN FOODS-PROVISIONS,CATERERS (5811)
14 Jul 2014,OFFICE DEPOT,CHILDRENS SERVICES,VIRTUAL SCHOOL,-49.98,STATIONERY & GENERAL SUPPLIES-OFFICE EXP,"STATIONERY, OFFICE SUPPLIES AND WRITING PAPER (5111)"
14 Jul 2014,WELSH BROS FOODS LTD,NEIGHBOURHOOD SERVICES,CA ELMORE GREEN PRIMARY SCHOOL,109.44,MEAT-PROVISIONS,FREEZER AND LOCKER MEAT PROVISIONERS (5422)
14 Jul 2014,ASDA STORES 7134,CHILDRENS SERVICES,STANLEYS NURSERY,10.06,FOOD AND BEVERAGES-PROVISIONS,GROCERY STORES AND SUPERMARKETS (5411)
14 Jul 2014,ASDA STORES 7134,CHILDRENS SERVICES,STANLEYS NURSERY,58.86,FOOD AND BEVERAGES-PROVISIONS,GROCERY STORES AND SUPERMARKETS (5411)
14 Jul 2014,ASDA STORES 7134,CHILDRENS SERVICES,CLUSTER 4 ALUMWELL & BIRCHILLS,19.92,FOOD AND BEVERAGES-PROVISIONS,GROCERY STORES AND SUPERMARKETS (5411)
14 Jul 2014,ASDA STORES 7134,CHILDRENS SERVICES,CLUSTER 4 ALUMWELL & BIRCHILLS,1.85,FOOD AND BEVERAGES-PROVISIONS,GROCERY STORES AND SUPERMARKETS (5411)
14 Jul 2014,ASDA STORES 7134,CHILDRENS SERVICES,"CLUSTER 3 BLOXWICH,BLAKENALL,HATHERTON,E STAMMERS",-1.50,FOOD AND BEVERAGES-PROVISIONS,GROCERY STORES AND SUPERMARKETS (5411)
14 Jul 2014,OFFICE DEPOT,NEIGHBOURHOOD SERVICES,PRINCIPAL MARKETING,-84.60,STATIONERY & GENERAL SUPPLIES-OFFICE EXP,"STATIONERY, OFFICE SUPPLIES AND WRITING PAPER (5111)"
14 Jul 2014,BLAKEMORE FOODSERVICE,NEIGHBOURHOOD SERVICES,CA BIRCHILLS CE PRIMARY COMMUNITY SCHOOL,86.12,DRY FOODS-PROVISIONS,CATERERS (5811)
14 Jul 2014,BLAKEMORE FOODSERVICE,NEIGHBOURHOOD SERVICES,CA BIRCHILLS CE PRIMARY COMMUNITY SCHOOL,23.04,DRY FOODS-PROVISIONS,CATERERS (5811)
14 Jul 2014,VISTAPR*VISTAPRINT.UK,CHILDRENS SERVICES,"CLUSTER 6 BENTLEY,LIGHTHOUSE,FIBBERSLEY",104.28,EXTERNAL PRINTING SERVICES,MISCELLANEOUS PUBLISHING AND PRINTING (2741)
14 Jul 2014,ARTHUR BRETT CATER,NEIGHBOURHOOD SERVICES,CA BROWNHILLS WEST PRIMARY SCHOOL,56.35,FRUIT & VEGETABLES OTHER-PROVISIONS,MISCELLANEOUS FOOD STORES & CONVENIENCE STORES (5499)
14 Jul 2014,A F BLAKEMORE & SON LTD,CHILDRENS SERVICES,MARY ELLIOTT SPECIAL SCHOOL,265.87,BREAD-GENERAL-PROVISIONS,GROCERY STORES AND SUPERMARKETS (5411)
14 Jul 2014,A F BLAKEMORE & SON LTD,CHILDRENS SERVICES,MARY ELLIOTT SPECIAL SCHOOL,4.22,BREAD-GENERAL-PROVISIONS,GROCERY STORES AND SUPERMARKETS (5411)
14 Jul 2014,SPECIALIST CRAFTS LTD,CHILDRENS SERVICES,ART,159.21,GENERAL MATERIALS,"ARTIST SUPPLY STORES, CRAFT SHOPS (5970)"
14 Jul 2014,BORSHCH ELECTRIC,RESOURCES,WALSALL CRISIS SUPPORT SCHEME,400.00,CRISIS SUPPORT PAYMENTS,HOUSEHOLD APPLIANCE STORES (5722)
14 Jul 2014,BLAKEMORE FOODSERVICE,NEIGHBOURHOOD SERVICES,CA ST JOHNS C.E. PRIMARY SCHOOL,277.80,DRY FOODS-PROVISIONS,CATERERS (5811)
14 Jul 2014,BLAKEMORE FOODSERVICE,NEIGHBOURHOOD SERVICES,CA ST JOHNS C.E. PRIMARY SCHOOL,80.64,DRY FOODS-PROVISIONS,CATERERS (5811)
14 Jul 2014,TRAVEL WEST MIDLAN,CHILDRENS SERVICES,TRANSITION AND LEAVING CARE,185.00,OFFICER/STAFF-PUBLIC TRANSPORT,BUS LINES (4131)
14 Jul 2014,BLAKEMORE FOODSERVICE,NEIGHBOURHOOD SERVICES,CA PALFREY JUNIOR SCHOOL,142.18,FROZEN FOODS-PROVISIONS,CATERERS (5811)
14 Jul 2014,BLAKEMORE FOODSERVICE,NEIGHBOURHOOD SERVICES,CA PALFREY JUNIOR SCHOOL,7.68,FROZEN FOODS-PROVISIONS,CATERERS (5811)
14 Jul 2014,STRIKE ELECTRICAL DIST,NEIGHBOURHOOD SERVICES,DARLASTON LEISURE CENTRE,25.36,FURNITURE & EQUIPMENT,HOUSEHOLD APPLIANCE STORES (5722)
14 Jul 2014,MIP*TALKHOME,CHILDRENS SERVICES,SUPPORT UNDER SECT 23 OF THE CHILDRENS ACT,10.00,SUPPORT UNDER SECTION 23 OF THE CHILDRENS ACT,TELECOMMUNICATION SERVICES (4814)
14 Jul 2014,BLAKEMORE FOODSERVICE,NEIGHBOURHOOD SERVICES,CA BLUE COAT C.E. INFANT SCHOOL,91.69,FROZEN FOODS-PROVISIONS,CATERERS (5811)
14 Jul 2014,BLAKEMORE FOODSERVICE,NEIGHBOURHOOD SERVICES,CA BLUE COAT C.E. INFANT SCHOOL,15.36,FROZEN FOODS-PROVISIONS,CATERERS (5811)
14 Jul 2014,ARTHUR BRETT CATER,NEIGHBOURHOOD SERVICES,CA ST BERNADETTES CATHOLIC PRIMARY SCHOOL,24.62,FRUIT & VEGETABLES OTHER-PROVISIONS,MISCELLANEOUS FOOD STORES & CONVENIENCE STORES (5499)
14 Jul 2014,ARTHUR BRETT CATER,NEIGHBOURHOOD SERVICES,CA OAKWOOD SPECIAL SCHOOL,31.53,FRUIT & VEGETABLES OTHER-PROVISIONS,MISCELLANEOUS FOOD STORES & CONVENIENCE STORES (5499)
14 Jul 2014,CALVERT TRUST KESWICK,CHILDRENS SERVICES,REDRUTH ROAD,307.50,RESIDENTS PERSONAL EXPENSES-ALLOWANCES TO S/S CLIENTS,"ORGANIZATIONS, CHARITABLE AND SOCIAL SERVICE (8398)"
14 Jul 2014,AMAZON *MKTPLCE EU-UK,NEIGHBOURHOOD SERVICES,FOREST ARTS CENTRE,24.98,GENERAL MATERIALS,BOOK STORES (5942)
14 Jul 2014,FACTORY DIRECT CRAFT,NEIGHBOURHOOD SERVICES,EDUCATION INFORMAL,53.12,GENERAL MATERIALS,"ARTIST SUPPLY STORES, CRAFT SHOPS (5970)"
14 Jul 2014,MNA LTD CARDCHARGE,REGENERATION,DEVELOPMENT MANAGEMENT,53.46,PERIODICALS/MAGAZINES/NEWSPAPERS-SUBSCRIPTIONS,NEWS DEALERS AND NEWSSTANDS (5994)
14 Jul 2014,ARTHUR BRETT CATER,NEIGHBOURHOOD SERVICES,CA LINDENS PRIMARY SCHOOL,65.99,FRUIT & VEGETABLES OTHER-PROVISIONS,MISCELLANEOUS FOOD STORES & CONVENIENCE STORES (5499)
14 Jul 2014,OFFICE DEPOT,CHILDRENS SERVICES,CHILDRENS RESIDENTIAL SVCS,186.58,STATIONERY & GENERAL SUPPLIES-OFFICE EXP,"STATIONERY, OFFICE SUPPLIES AND WRITING PAPER (5111)"
14 Jul 2014,W M MORRISONS.COM,CHILDRENS SERVICES,"CLUSTER 6 BENTLEY,LIGHTHOUSE,FIBBERSLEY",22.62,FOOD AND BEVERAGES-PROVISIONS,GROCERY STORES AND SUPERMARKETS (5411)
14 Jul 2014,W M MORRISONS.COM,CHILDRENS SERVICES,"CLUSTER 6 BENTLEY,LIGHTHOUSE,FIBBERSLEY",44.74,FOOD AND BEVERAGES-PROVISIONS,GROCERY STORES AND SUPERMARKETS (5411)
14 Jul 2014,ARTHUR BRETT CATER,NEIGHBOURHOOD SERVICES,CA WHETSTONE FIELD PRIMARY SCHOOL,29.79,FRUIT & VEGETABLES OTHER-PROVISIONS,MISCELLANEOUS FOOD STORES & CONVENIENCE STORES (5499)
14 Jul 2014,BLAKEMORE FOODSERVICE,NEIGHBOURHOOD SERVICES,CA RADLEYS PRIMARY SCHOOL,286.29,DRY FOODS-PROVISIONS,CATERERS (5811)
14 Jul 2014,BLAKEMORE FOODSERVICE,NEIGHBOURHOOD SERVICES,CA RADLEYS PRIMARY SCHOOL,73.75,DRY FOODS-PROVISIONS,CATERERS (5811)
14 Jul 2014,TESCO STORES 6161,CHILDRENS SERVICES,PARENTING TEAM,1.85,FOOD AND BEVERAGES-PROVISIONS,GROCERY STORES AND SUPERMARKETS (5411)
14 Jul 2014,TESCO STORES 6161,CHILDRENS SERVICES,PARENTING TEAM,1.00,FOOD AND BEVERAGES-PROVISIONS,GROCERY STORES AND SUPERMARKETS (5411)
14 Jul 2014,BLAKEMORE FOODSERVICE,NEIGHBOURHOOD SERVICES,CA RADLEYS PRIMARY SCHOOL,95.03,FROZEN FOODS-PROVISIONS,CATERERS (5811)
14 Jul 2014,BLAKEMORE FOODSERVICE,NEIGHBOURHOOD SERVICES,CA RADLEYS PRIMARY SCHOOL,23.04,FROZEN FOODS-PROVISIONS,CATERERS (5811)
14 Jul 2014,OFFICE DEPOT,CHILDRENS SERVICES,CENTRAL SUPPORT,153.38,STATIONERY & GENERAL SUPPLIES-OFFICE EXP,"STATIONERY, OFFICE SUPPLIES AND WRITING PAPER (5111)"
14 Jul 2014,WELSH BROS FOODS LTD,NEIGHBOURHOOD SERVICES,CA TOWN HALL RESTAURANT - CATERING,116.25,MEAT-PROVISIONS,FREEZER AND LOCKER MEAT PROVISIONERS (5422)
14 Jul 2014,ASDA STORES 7134,CHILDRENS SERVICES,57 LICHFIELD ROAD,150.07,GENERAL PROVISIONS-PROVISIONS,GROCERY STORES AND SUPERMARKETS (5411)
14 Jul 2014,ASDA STORES 7134,CHILDRENS SERVICES,"CLUSTER 3 BLOXWICH,BLAKENALL,HATHERTON,E STAMMERS",81.35,FOOD AND BEVERAGES-PROVISIONS,GROCERY STORES AND SUPERMARKETS (5411)
14 Jul 2014,BLAKEMORE FOODSERVICE,NEIGHBOURHOOD SERVICES,CA COOPER JORDAN CE PRIMARY SCHOOL,183.19,DRY FOODS-PROVISIONS,CATERERS (5811)
14 Jul 2014,ARTHUR BRETT CATER,NEIGHBOURHOOD SERVICES,CA WALSALL WOOD PRIMARY SCHOOL,36.95,FRUIT & VEGETABLES OTHER-PROVISIONS,MISCELLANEOUS FOOD STORES & CONVENIENCE STORES (5499)
14 Jul 2014,WELSH BROS FOODS LTD,NEIGHBOURHOOD SERVICES,CA BARCROFT D/C,66.60,MEAT-PROVISIONS,FREEZER AND LOCKER MEAT PROVISIONERS (5422)
14 Jul 2014,ASDA STORES 7134,CHILDRENS SERVICES,STANLEYS NURSERY,27.00,CLEANING-MATERIALS (INC LIGHT BULBS),GROCERY STORES AND SUPERMARKETS (5411)
14 Jul 2014,ASDA STORES 7134,CHILDRENS SERVICES,STANLEYS NURSERY,168.00,CLEANING-MATERIALS (INC LIGHT BULBS),GROCERY STORES AND SUPERMARKETS (5411)
14 Jul 2014,BLAKEMORE FOODSERVICE,NEIGHBOURHOOD SERVICES,CA WATLING STREET PRIMARY SCHOOL,435.00,DRY FOODS-PROVISIONS,CATERERS (5811)
14 Jul 2014,BLAKEMORE FOODSERVICE,NEIGHBOURHOOD SERVICES,CA WATLING STREET PRIMARY SCHOOL,159.96,DRY FOODS-PROVISIONS,CATERERS (5811)
14 Jul 2014,WWW.NISBETS.COM,CHILDRENS SERVICES,CLUSTER 5 DARLASTON,96.89,EQUIP NEW-CLEANING,DIRECT MARKETING CATALOG MERCHANTS (5964)
14 Jul 2014,ASDA STORES 7134,CHILDRENS SERVICES,"CLUSTER 1 BROWNHILLS,GREENFIELDS,PELSALL",142.30,FOOD AND BEVERAGES-PROVISIONS,GROCERY STORES AND SUPERMARKETS (5411)
14 Jul 2014,OFSTED INTERNET,CHILDRENS SERVICES,"CLUSTER 3 BLOXWICH,BLAKENALL,HATHERTON,E STAMMERS",220.00,GENERAL (SUPERANNUATION)-FEES,GOVERNMENT SERVICES (9399)
14 Jul 2014,ARTHUR BRETT CATER,NEIGHBOURHOOD SERVICES,CA ST JOHNS C.E. PRIMARY SCHOOL,78.78,FRUIT & VEGETABLES OTHER-PROVISIONS,MISCELLANEOUS FOOD STORES & CONVENIENCE STORES (5499)
14 Jul 2014,BLAKEMORE FOODSERVICE,NEIGHBOURHOOD SERVICES,CA BUSILL JONES PRIMARY SCHOOL,153.67,FROZEN FOODS-PROVISIONS,CATERERS (5811)
14 Jul 2014,ARTHUR BRETT CATER,NEIGHBOURHOOD SERVICES,CA BLACKWOOD PRIMARY SCHOOL,48.76,FRUIT & VEGETABLES OTHER-PROVISIONS,MISCELLANEOUS FOOD STORES & CONVENIENCE STORES (5499)
14 Jul 2014,ASDA STORES 7134,CHILDRENS SERVICES,"CLUSTER 3 BLOXWICH,BLAKENALL,HATHERTON,E STAMMERS",82.08,FOOD AND BEVERAGES-PROVISIONS,GROCERY STORES AND SUPERMARKETS (5411)
14 Jul 2014,ASDA STORES 7134,CHILDRENS SERVICES,"CLUSTER 3 BLOXWICH,BLAKENALL,HATHERTON,E STAMMERS",49.21,FOOD AND BEVERAGES-PROVISIONS,GROCERY STORES AND SUPERMARKETS (5411)
14 Jul 2014,ASDA STORES 7134,CHILDRENS SERVICES,ALUMWELL NURSERY,15.72,GENERAL MATERIALS,GROCERY STORES AND SUPERMARKETS (5411)
14 Jul 2014,ASDA STORES 7134,CHILDRENS SERVICES,ALUMWELL NURSERY,3.28,GENERAL MATERIALS,GROCERY STORES AND SUPERMARKETS (5411)
14 Jul 2014,ASDA STORES 7134,CHILDRENS SERVICES,ALUMWELL NURSERY,86.91,FOOD AND BEVERAGES-PROVISIONS,GROCERY STORES AND SUPERMARKETS (5411)
14 Jul 2014,WELSH BROS FOODS LTD,NEIGHBOURHOOD SERVICES,CA WATLING STREET PRIMARY SCHOOL,84.41,MEAT-PROVISIONS,FREEZER AND LOCKER MEAT PROVISIONERS (5422)
14 Jul 2014,J9 ACCOMODATION,RESOURCES,HOMELESSNESS PREVENTION STRATEGY,871.86,RENTS-OTHER,REAL ESTATE MANAGERS - RENTALS (6513)
14 Jul 2014,FASTCAR (AUTOMOTIVE PROD,NEIGHBOURHOOD SERVICES,BLOXWICH LEISURE CENTRE,8.50,NEW-FURNITURE & EQUIPMENT,"AUTOMOTIVE PARTS, ACCESSORIES STORES (5533)"
14 Jul 2014,ASDA STORES 7134,CHILDRENS SERVICES,"ELDON STREET, WALSALL",71.82,GENERAL PROVISIONS-PROVISIONS,GROCERY STORES AND SUPERMARKETS (5411)
14 Jul 2014,C W C UK,RESOURCES,NETWORKS,1198.80,RECHARGE FOR MAINTENANCE/APPLICATION COSTS-COMPUTER,TELECOMMUNICATION EQUIPMENT & SALES (4812)
14 Jul 2014,TESCO STORES 6161,CHILDRENS SERVICES,PARENTING TEAM,3.45,FOOD AND BEVERAGES-PROVISIONS,GROCERY STORES AND SUPERMARKETS (5411)
14 Jul 2014,ARTHUR BRETT CATER,NEIGHBOURHOOD SERVICES,CA WATLING STREET PRIMARY SCHOOL,72.80,FRUIT & VEGETABLES OTHER-PROVISIONS,MISCELLANEOUS FOOD STORES & CONVENIENCE STORES (5499)
14 Jul 2014,OFFICE DEPOT,CHILDRENS SERVICES,LOOKED AFTER CHILDRENS SOCIAL WORK TEAM,80.24,STATIONERY & GENERAL SUPPLIES-OFFICE EXP,"STATIONERY, OFFICE SUPPLIES AND WRITING PAPER (5111)"
14 Jul 2014,IKEA,NEIGHBOURHOOD SERVICES,NAG - TEMPORARY EXHIBITIONS,96.00,NEW-FURNITURE & EQUIPMENT,MISCELLANEOUS HOUSE FURNISHING SPECIALTY SHOPS (5719)
14 Jul 2014,WELSH BROS FOODS LTD,NEIGHBOURHOOD SERVICES,CA BLACKWOOD PRIMARY SCHOOL,81.10,MEAT-PROVISIONS,FREEZER AND LOCKER MEAT PROVISIONERS (5422)
14 Jul 2014,OFFICE DEPOT,CHILDRENS SERVICES,CHILD PROTECTION & REVIEW SERVICES,186.58,STATIONERY & GENERAL SUPPLIES-OFFICE EXP,"STATIONERY, OFFICE SUPPLIES AND WRITING PAPER (5111)"
14 Jul 2014,BLAKEMORE FOODSERVICE,NEIGHBOURHOOD SERVICES,CA BARCROFT D/C,107.64,FROZEN FOODS-PROVISIONS,CATERERS (5811)
14 Jul 2014,BLAKEMORE FOODSERVICE,NEIGHBOURHOOD SERVICES,CA CROFT COMMUNITY PRIMARY SCHOOL,100.45,FROZEN FOODS-PROVISIONS,CATERERS (5811)
14 Jul 2014,BLAKEMORE FOODSERVICE,NEIGHBOURHOOD SERVICES,CA TOWN HALL RESTAURANT - CATERING,142.85,FROZEN FOODS-PROVISIONS,CATERERS (5811)
14 Jul 2014,ARTHUR BRETT CATER,NEIGHBOURHOOD SERVICES,CA MILLFIELD PRIMARY SCHOOL,35.11,FRUIT & VEGETABLES OTHER-PROVISIONS,MISCELLANEOUS FOOD STORES & CONVENIENCE STORES (5499)
14 Jul 2014,BLAKEMORE FOODSERVICE,NEIGHBOURHOOD SERVICES,CA JOSEPH LECKIE COMMUNITY TECHNOLOGY COLLEGE,94.02,FROZEN FOODS-PROVISIONS,CATERERS (5811)
14 Jul 2014,ARTHUR BRETT CATER,NEIGHBOURHOOD SERVICES,CA LEIGHSWOOD PRIMARY SCHOOL,54.07,FRUIT & VEGETABLES OTHER-PROVISIONS,MISCELLANEOUS FOOD STORES & CONVENIENCE STORES (5499)
14 Jul 2014,WELSH BROS FOODS LTD,NEIGHBOURHOOD SERVICES,CA BLUE COAT C.E. JUNIOR SCHOOL,32.27,MEAT-PROVISIONS,FREEZER AND LOCKER MEAT PROVISIONERS (5422)
14 Jul 2014,BLAKEMORE FOODSERVICE,NEIGHBOURHOOD SERVICES,CA HARDEN PRIMARY SCHOOL,45.04,DRY FOODS-PROVISIONS,CATERERS (5811)
14 Jul 2014,BLAKEMORE FOODSERVICE,NEIGHBOURHOOD SERVICES,CA CALDMORE COMMUNITY PRIMARY SCHOOL,34.14,FROZEN FOODS-PROVISIONS,CATERERS (5811)
14 Jul 2014,BLAKEMORE FOODSERVICE,NEIGHBOURHOOD SERVICES,CA CALDMORE COMMUNITY PRIMARY SCHOOL,15.36,FROZEN FOODS-PROVISIONS,CATERERS (5811)
14 Jul 2014,WP-ETRADEPARTNERS,NEIGHBOURHOOD SERVICES,FOREST ARTS CENTRE,43.97,GENERAL MATERIALS,MISCELLANEOUS AND SPECIALTY RETAIL STORES (5999)
14 Jul 2014,WM MORRISON FOOD.COM,CHILDRENS SERVICES,CLUSTER 5 DARLASTON,146.31,FOOD AND BEVERAGES-PROVISIONS,GROCERY STORES AND SUPERMARKETS (5411)
14 Jul 2014,BORSHCH ELECTRIC,RESOURCES,WALSALL CRISIS SUPPORT SCHEME,520.00,CRISIS SUPPORT PAYMENTS,HOUSEHOLD APPLIANCE STORES (5722)
14 Jul 2014,BLAKEMORE FOODSERVICE,NEIGHBOURHOOD SERVICES,TOWN HALL RESTAURANT BISTRO,41.82,DRY FOODS-PROVISIONS,CATERERS (5811)
14 Jul 2014,ARGOS LTD,NEIGHBOURHOOD SERVICES,EMERGENCY PLANNING 2012/2013,10.43,NEW-FURNITURE & EQUIPMENT,DISCOUNT STORES (5310)
14 Jul 2014,FINDEL ED LTD,NEIGHBOURHOOD SERVICES,LIBRARY DEVELOPMENT 2,33.05,GENERAL MATERIALS,OTHER DIRECT MARKETING-OTHER DIRECT MARKETERS (5969)
14 Jul 2014,BLAKEMORE FOODSERVICE,NEIGHBOURHOOD SERVICES,CA MOORCROFT WOOD,63.75,FROZEN FOODS-PROVISIONS,CATERERS (5811)
14 Jul 2014,BLAKEMORE FOODSERVICE,NEIGHBOURHOOD SERVICES,CA MOORCROFT WOOD,7.68,FROZEN FOODS-PROVISIONS,CATERERS (5811)
14 Jul 2014,BLAKEMORE FOODSERVICE,NEIGHBOURHOOD SERVICES,CA BLUE COAT C.E. JUNIOR SCHOOL,191.91,FROZEN FOODS-PROVISIONS,CATERERS (5811)
14 Jul 2014,TESCO STORES 6161,CHILDRENS SERVICES,"43A HILTON ROAD, WILLENHALL",4.61,GENERAL PROVISIONS-PROVISIONS,GROCERY STORES AND SUPERMARKETS (5411)
14 Jul 2014,TESCO STORES 6161,CHILDRENS SERVICES,"43A HILTON ROAD, WILLENHALL",12.57,GENERAL PROVISIONS-PROVISIONS,GROCERY STORES AND SUPERMARKETS (5411)
14 Jul 2014,ARTHUR BRETT CATER,NEIGHBOURHOOD SERVICES,CA ST ANNES CATHOLIC PRIMARY SCHOOL,30.38,FRUIT & VEGETABLES OTHER-PROVISIONS,MISCELLANEOUS FOOD STORES & CONVENIENCE STORES (5499)
14 Jul 2014,WELSH BROS FOODS LTD,NEIGHBOURHOOD SERVICES,CA BIRCHILLS CE PRIMARY COMMUNITY SCHOOL,38.93,MEAT-PROVISIONS,FREEZER AND LOCKER MEAT PROVISIONERS (5422)
14 Jul 2014,BORSHCH ELECTRIC,RESOURCES,WALSALL CRISIS SUPPORT SCHEME,270.00,CRISIS SUPPORT PAYMENTS,HOUSEHOLD APPLIANCE STORES (5722)
14 Jul 2014,CRAZY HOUSE (BROWNHILL,RESOURCES,WALSALL CRISIS SUPPORT SCHEME,155.00,CRISIS SUPPORT PAYMENTS,"EQUIPMENT, FURNITURE, AND HOME FURNISHINGS STORES  (5712)"
14 Jul 2014,CRAZY HOUSE (BROWNHILL,RESOURCES,WALSALL CRISIS SUPPORT SCHEME,60.00,CRISIS SUPPORT PAYMENTS,"EQUIPMENT, FURNITURE, AND HOME FURNISHINGS STORES  (5712)"
14 Jul 2014,WELSH BROS FOODS LTD,NEIGHBOURHOOD SERVICES,CA FIBBERSLEY PARK PRIMARY SCHOOL,73.59,MEAT-PROVISIONS,FREEZER AND LOCKER MEAT PROVISIONERS (5422)
14 Jul 2014,CALVERT TRUST KESWICK,CHILDRENS SERVICES,REDRUTH ROAD,351.58,RESIDENTS PERSONAL EXPENSES-ALLOWANCES TO S/S CLIENTS,"ORGANIZATIONS, CHARITABLE AND SOCIAL SERVICE (8398)"
14 Jul 2014,ASDA STORES 7134,CHILDRENS SERVICES,"CLUSTER 3 BLOXWICH,BLAKENALL,HATHERTON,E STAMMERS",5.80,FOOD AND BEVERAGES-PROVISIONS,GROCERY STORES AND SUPERMARKETS (5411)
14 Jul 2014,ASDA STORES 7134,CHILDRENS SERVICES,"CLUSTER 3 BLOXWICH,BLAKENALL,HATHERTON,E STAMMERS",24.35,FOOD AND BEVERAGES-PROVISIONS,GROCERY STORES AND SUPERMARKETS (5411)
14 Jul 2014,ARTHUR BRETT CATER,NEIGHBOURHOOD SERVICES,CA CASTLEFORT JMI SCHOOL,32.71,FRUIT & VEGETABLES OTHER-PROVISIONS,MISCELLANEOUS FOOD STORES & CONVENIENCE STORES (5499)
14 Jul 2014,ARTHUR BRETT CATER,NEIGHBOURHOOD SERVICES,CA BLUE COAT C OF E PERFORMING ARTS COLLEGE,23.55,FRUIT & VEGETABLES OTHER-PROVISIONS,MISCELLANEOUS FOOD STORES & CONVENIENCE STORES (5499)
14 Jul 2014,BLAKEMORE FOODSERVICE,NEIGHBOURHOOD SERVICES,CA LEIGHSWOOD PRIMARY SCHOOL,201.62,DRY FOODS-PROVISIONS,CATERERS (5811)
14 Jul 2014,BLAKEMORE FOODSERVICE,NEIGHBOURHOOD SERVICES,CA LEIGHSWOOD PRIMARY SCHOOL,146.60,DRY FOODS-PROVISIONS,CATERERS (5811)
14 Jul 2014,WM MORRISON 063,CHILDRENS SERVICES,REDRUTH ROAD,5.75,GENERAL PROVISIONS-PROVISIONS,GROCERY STORES AND SUPERMARKETS (5411)
14 Jul 2014,WM MORRISON 063,CHILDRENS SERVICES,REDRUTH ROAD,55.64,GENERAL PROVISIONS-PROVISIONS,GROCERY STORES AND SUPERMARKETS (5411)
14 Jul 2014,BLAKEMORE FOODSERVICE,NEIGHBOURHOOD SERVICES,CA JOSEPH LECKIE COMMUNITY TECHNOLOGY COLLEGE,251.24,FROZEN FOODS-PROVISIONS,CATERERS (5811)
14 Jul 2014,MAPLIN WALSALL WS2,NEIGHBOURHOOD SERVICES,OAK PARK,16.98,PLUMBING-OP MTCE,ELECTRONIC SALES (5732)
14 Jul 2014,BT REPAYMENT WORKS,REGENERATION,CENTRALISED MAINTENANCE,199.00,PROFESSIONAL SERVICES-PRIV CONTRACTOR & OTHER AGENCIES,TELECOMMUNICATION SERVICES (4814)
14 Jul 2014,ARCO LTD,NEIGHBOURHOOD SERVICES,HIGHWAYS MAINTENANCE GENERAL,40.32,GENERAL MATERIALS,"MEN'S, WOMEN'S, AND CHILDREN'S UNIFORMS (5137)"
14 Jul 2014,WWW.THEWORKS.CO.UK,CHILDRENS SERVICES,CURRICULUM RESOURCES,186.09,GENERAL MATERIALS,BOOK STORES (5942)
15 Jul 2014,ARTHUR BRETT CATER,NEIGHBOURHOOD SERVICES,CA PALFREY JUNIOR SCHOOL,35.72,FRUIT & VEGETABLES OTHER-PROVISIONS,MISCELLANEOUS FOOD STORES & CONVENIENCE STORES (5499)
15 Jul 2014,ARTHUR BRETT CATER,NEIGHBOURHOOD SERVICES,CA JANE LANE SPECIAL SCHOOL,26.03,FRUIT & VEGETABLES OTHER-PROVISIONS,MISCELLANEOUS FOOD STORES & CONVENIENCE STORES (5499)
15 Jul 2014,ARTHUR BRETT CATER,NEIGHBOURHOOD SERVICES,CA ST FRANCIS CATHOLIC PRIMARY SCHOOL,39.33,FRUIT & VEGETABLES OTHER-PROVISIONS,MISCELLANEOUS FOOD STORES & CONVENIENCE STORES (5499)
15 Jul 2014,ARTHUR BRETT CATER,NEIGHBOURHOOD SERVICES,CA BLUE COAT C.E. INFANT SCHOOL,22.69,FRUIT & VEGETABLES OTHER-PROVISIONS,MISCELLANEOUS FOOD STORES & CONVENIENCE STORES (5499)
15 Jul 2014,ARTHUR BRETT CATER,NEIGHBOURHOOD SERVICES,CA CROFT COMMUNITY PRIMARY SCHOOL,36.44,FRUIT & VEGETABLES OTHER-PROVISIONS,MISCELLANEOUS FOOD STORES & CONVENIENCE STORES (5499)
15 Jul 2014,ARTHUR BRETT CATER,NEIGHBOURHOOD SERVICES,CA ELMWOOD SPECIAL SCHOOL,33.11,FRUIT & VEGETABLES OTHER-PROVISIONS,MISCELLANEOUS FOOD STORES & CONVENIENCE STORES (5499)
15 Jul 2014,TESCO STORES 6161,RESOURCES,WALSALL CRISIS SUPPORT SCHEME,37.00,CRISIS SUPPORT PAYMENTS,GROCERY STORES AND SUPERMARKETS (5411)
15 Jul 2014,WWW.DVLA.GOV.UK,NEIGHBOURHOOD SERVICES,FLEET,227.50,LICENCES-TRANSPORT RUN COSTS,GOVERNMENT SERVICES (9399)
15 Jul 2014,THE CARPET MAN,RESOURCES,WALSALL CRISIS SUPPORT SCHEME,366.00,CRISIS SUPPORT PAYMENTS,FLOOR COVERING STORES (5713)
15 Jul 2014,DRAYTON MANOR PARK,CHILDRENS SERVICES,ENRICHMENT,384.00,GENERAL MATERIALS,TOURIST ATTRACTIONS AND EXHIBITS (7991)
15 Jul 2014,ARTHUR BRETT CATER,NEIGHBOURHOOD SERVICES,CA BLUE COAT C.E. JUNIOR SCHOOL,105.66,FRUIT & VEGETABLES OTHER-PROVISIONS,MISCELLANEOUS FOOD STORES & CONVENIENCE STORES (5499)
15 Jul 2014,ARTHUR BRETT CATER,NEIGHBOURHOOD SERVICES,CA CALDMORE COMMUNITY PRIMARY SCHOOL,50.23,FRUIT & VEGETABLES OTHER-PROVISIONS,MISCELLANEOUS FOOD STORES & CONVENIENCE STORES (5499)
15 Jul 2014,ARTHUR BRETT CATER,NEIGHBOURHOOD SERVICES,CA GREENFIELD PRIMARY,41.93,FRUIT & VEGETABLES OTHER-PROVISIONS,MISCELLANEOUS FOOD STORES & CONVENIENCE STORES (5499)
15 Jul 2014,OFFICE DEPOT,CHILDRENS SERVICES,SAFEGUARDING & FAMILY SUPPORT,122.14,STATIONERY & GENERAL SUPPLIES-OFFICE EXP,"STATIONERY, OFFICE SUPPLIES AND WRITING PAPER (5111)"
15 Jul 2014,AMAZON EU,CHILDRENS SERVICES,ADMINISTRATIVE SUPPLIES,5.75,GENERAL MATERIALS,OTHER DIRECT MARKETING-OTHER DIRECT MARKETERS (5969)
15 Jul 2014,HP TRUPRINT NEWTON,CHILDRENS SERVICES,REDRUTH ROAD,34.98,PHOTOGRAPHIC CONSUMABLES-EQUIPMENT,CAMERA AND PHOTOGRAPHIC SUPPLY STORES (5946)
15 Jul 2014,HEARTS AND FLOWERS BLO,REGENERATION,BLOXWICH DISTRICT CENTRE,6.75,MISCELLANEOUS SUPPLIES,FLORISTS (5992)
15 Jul 2014,AMAZON *MKTPLCE EU-UK,CHILDRENS SERVICES,ADOPTION TEAM,13.70,LIBRARY BOOKS,BOOK STORES (5942)
15 Jul 2014,ARTHUR BRETT CATER,NEIGHBOURHOOD SERVICES,CA ELMORE GREEN PRIMARY SCHOOL,68.29,FRUIT & VEGETABLES OTHER-PROVISIONS,MISCELLANEOUS FOOD STORES & CONVENIENCE STORES (5499)
15 Jul 2014,AMAZON EU,CHILDRENS SERVICES,GENERAL RESOURCES & MISC,19.26,GENERAL MATERIALS,OTHER DIRECT MARKETING-OTHER DIRECT MARKETERS (5969)
15 Jul 2014,AMAZON EU,CHILDRENS SERVICES,GENERAL RESOURCES & MISC,5.00,GENERAL MATERIALS,OTHER DIRECT MARKETING-OTHER DIRECT MARKETERS (5969)
15 Jul 2014,WWW.CLOSERTOTHEEDGE.CO,CHILDRENS SERVICES,POSITIVE ACTIVITIES SUMMER PROGRAMMES,182.40,EDUCATIONAL VISITS-SERVICES-FEES,OTHER SCHOOLS AND EDUCATIONAL SERVICES (8299)
15 Jul 2014,OFFICE DEPOT,CHILDRENS SERVICES,CLUSTER 2 STREETLY & LEIGHSWOOD,20.42,STATIONERY & GENERAL SUPPLIES-OFFICE EXP,"STATIONERY, OFFICE SUPPLIES AND WRITING PAPER (5111)"
15 Jul 2014,W M MORRISON PLC,CHILDRENS SERVICES,SPINDLETREE,115.65,GENERAL PROVISIONS-PROVISIONS,GROCERY STORES AND SUPERMARKETS (5411)
15 Jul 2014,W M MORRISON PLC,CHILDRENS SERVICES,SPINDLETREE,22.13,GENERAL PROVISIONS-PROVISIONS,GROCERY STORES AND SUPERMARKETS (5411)
15 Jul 2014,AMAZON *MKTPLCE EU-UK,CHILDRENS SERVICES,ADOPTION TEAM,23.58,LIBRARY BOOKS,BOOK STORES (5942)
15 Jul 2014,ARTHUR BRETT CATER,NEIGHBOURHOOD SERVICES,CA BLAKENALL HEATH JUNIOR SCHOOL,39.32,FRUIT & VEGETABLES OTHER-PROVISIONS,MISCELLANEOUS FOOD STORES & CONVENIENCE STORES (5499)
15 Jul 2014,OFFICE DEPOT,RESOURCES,ELECTORAL SERVICES,453.54,STATIONERY & GENERAL SUPPLIES-OFFICE EXP,"STATIONERY, OFFICE SUPPLIES AND WRITING PAPER (5111)"
15 Jul 2014,ARTHUR BRETT CATER,NEIGHBOURHOOD SERVICES,CA RADLEYS PRIMARY SCHOOL,67.46,FRUIT & VEGETABLES OTHER-PROVISIONS,MISCELLANEOUS FOOD STORES & CONVENIENCE STORES (5499)
15 Jul 2014,WWW.FLYBE.COF5C2CS,CHILDRENS SERVICES,SAFEGUARDING & FAMILY SUPPORT,183.08,OTHER-TRAVEL ALLOWANCES,AIRLINES AND AIR CARRIERS (4511)
15 Jul 2014,MAN. AIRPORT CAR PARKS,CHILDRENS SERVICES,SAFEGUARDING & FAMILY SUPPORT,44.99,OTHER-TRAVEL ALLOWANCES,AUTOMOBILE PARKING LOTS AND GARAGES (7523)
15 Jul 2014,WWW.EDFRINGE.COM,NEIGHBOURHOOD SERVICES,FOREST ARTS CENTRE,3.75,GENERAL MATERIALS,"THEATRICAL PRODUCERS, TIC (7922)"
15 Jul 2014,WELSH BROS FOODS LTD,NEIGHBOURHOOD SERVICES,TOWN HALL RESTAURANT BISTRO,36.48,MEAT-PROVISIONS,FREEZER AND LOCKER MEAT PROVISIONERS (5422)
15 Jul 2014,OFFICE DEPOT,CHILDRENS SERVICES,PARENTING TEAM,36.84,STATIONERY & GENERAL SUPPLIES-OFFICE EXP,"STATIONERY, OFFICE SUPPLIES AND WRITING PAPER (5111)"
15 Jul 2014,OFFICE DEPOT,CHILDRENS SERVICES,LOOKED AFTER CHILDRENS SOCIAL WORK TEAM,7.18,STATIONERY & GENERAL SUPPLIES-OFFICE EXP,"STATIONERY, OFFICE SUPPLIES AND WRITING PAPER (5111)"
15 Jul 2014,WWW.DVLA.GOV.UK,NEIGHBOURHOOD SERVICES,FLEET,227.50,LICENCES-TRANSPORT RUN COSTS,GOVERNMENT SERVICES (9399)
15 Jul 2014,ARTHUR BRETT CATER,NEIGHBOURHOOD SERVICES,CA BIRCHILLS CE PRIMARY COMMUNITY SCHOOL,23.84,FRUIT & VEGETABLES OTHER-PROVISIONS,MISCELLANEOUS FOOD STORES & CONVENIENCE STORES (5499)
15 Jul 2014,AMAZON *MKTPLCE EU-UK,CHILDRENS SERVICES,ADOPTION TEAM,7.03,LIBRARY BOOKS,BOOK STORES (5942)
15 Jul 2014,ARTHUR BRETT CATER,NEIGHBOURHOOD SERVICES,CA BIRCHILLS CE PRIMARY COMMUNITY SCHOOL,46.45,FRUIT & VEGETABLES OTHER-PROVISIONS,MISCELLANEOUS FOOD STORES & CONVENIENCE STORES (5499)
15 Jul 2014,WALSALL COUNCIL,NEIGHBOURHOOD SERVICES,COMPLIANCE MANAGEMENT,30.00,GENERAL MATERIALS,GOVERNMENT SERVICES (9399)
15 Jul 2014,TESCO STORES 6161,RESOURCES,WALSALL CRISIS SUPPORT SCHEME,4.59,CRISIS SUPPORT PAYMENTS,GROCERY STORES AND SUPERMARKETS (5411)
15 Jul 2014,ARTHUR BRETT CATER,NEIGHBOURHOOD SERVICES,CA TOWN HALL RESTAURANT - CATERING,26.95,FRUIT & VEGETABLES OTHER-PROVISIONS,MISCELLANEOUS FOOD STORES & CONVENIENCE STORES (5499)
15 Jul 2014,THE CARPET MAN,RESOURCES,WALSALL CRISIS SUPPORT SCHEME,306.00,CRISIS SUPPORT PAYMENTS,FLOOR COVERING STORES (5713)
15 Jul 2014,THE TRAINLINE.COM,NEIGHBOURHOOD SERVICES,POLLUTION LABORATORY,153.51,OFFICER/STAFF-PUBLIC TRANSPORT,PASSENGER RAILWAYS (4112)
15 Jul 2014,BORSHCH ELECTRIC,RESOURCES,HOMELESS PREVENTION GRANT,195.00,FURNITURE & EQUIPMENT,HOUSEHOLD APPLIANCE STORES (5722)
15 Jul 2014,HOTEL WWWGALAHOTELSCOM,CHILDRENS SERVICES,SAFEGUARDING & FAMILY SUPPORT,198.00,HOTEL ACCOMMODATION-EMPLOYEES,"HOTELS, MOTELS, RESORTS (7011)"
15 Jul 2014,B & Q,CHILDRENS SERVICES,SHEPWELL GREEN PUPIL REFERRAL UNIT,171.80,MAJOR ELECTRICAL-PLAN MTCE,LUMBER & BUILDING MATERIALS STORES (5211)
15 Jul 2014,WWW.DVLA.GOV.UK,NEIGHBOURHOOD SERVICES,FLEET,227.50,LICENCES-TRANSPORT RUN COSTS,GOVERNMENT SERVICES (9399)
15 Jul 2014,ARTHUR BRETT CATER,NEIGHBOURHOOD SERVICES,CA DELVES JUNIOR SCHOOL,93.58,FRUIT & VEGETABLES OTHER-PROVISIONS,MISCELLANEOUS FOOD STORES & CONVENIENCE STORES (5499)
15 Jul 2014,MCDONALDS REST,CHILDRENS SERVICES,LOOKED AFTER CHILDRENS SOCIAL WORK TEAM,13.70,TRANSFER PAYMENTS - SOCIAL SERVICES CLIENTS,QUICK PAYMENT SERVICE-FAST-FOOD RESTAURANTS (5814)
15 Jul 2014,MCDONALDS REST,CHILDRENS SERVICES,LOOKED AFTER CHILDRENS SOCIAL WORK TEAM,3.06,TRANSFER PAYMENTS - SOCIAL SERVICES CLIENTS,QUICK PAYMENT SERVICE-FAST-FOOD RESTAURANTS (5814)
15 Jul 2014,AMAZON EU,CHILDRENS SERVICES,GENERAL RESOURCES & MISC,21.45,GENERAL MATERIALS,OTHER DIRECT MARKETING-OTHER DIRECT MARKETERS (5969)
15 Jul 2014,MULTIPRINT,NEIGHBOURHOOD SERVICES,COMMUNITY LIAISON,54.00,EXTERNAL PRINTING SERVICES,MISCELLANEOUS PUBLISHING AND PRINTING (2741)
15 Jul 2014,DRAYTON MANOR PARK,CHILDRENS SERVICES,CENTRAL SUPPORT,222.00,EXHIBITIONS - MARKETING,TOURIST ATTRACTIONS AND EXHIBITS (7991)
15 Jul 2014,IKEA SACAT,NEIGHBOURHOOD SERVICES,NAG - FRONT OF HOUSE,40.00,NEW-FURNITURE & EQUIPMENT,MISCELLANEOUS HOUSE FURNISHING SPECIALTY SHOPS (5719)
15 Jul 2014,WWW.DVLA.GOV.UK,NEIGHBOURHOOD SERVICES,FLEET,227.50,LICENCES-TRANSPORT RUN COSTS,GOVERNMENT SERVICES (9399)
15 Jul 2014,THE INSTITUTION OF,NEIGHBOURHOOD SERVICES,LIGHTING MAINTENANCE,468.00,EXTERNAL TRAINING,"ORGANIZATIONS, MEMBERSHIP (8699)"
15 Jul 2014,ARTHUR BRETT CATER,NEIGHBOURHOOD SERVICES,CA POOL HAYES PRIMARY SCHOOL,19.89,FRUIT & VEGETABLES OTHER-PROVISIONS,MISCELLANEOUS FOOD STORES & CONVENIENCE STORES (5499)
15 Jul 2014,WP-THIS NAMED COMP,CHILDRENS SERVICES,"ELDON STREET, WALSALL",11.50,FURNITURE & EQUIPMENT,"OFFICE, SCHOOL SUPPLY, AND STATIONERY STORES (5943)"
15 Jul 2014,WP-THIS NAMED COMP,CHILDRENS SERVICES,"ELDON STREET, WALSALL",57.50,FURNITURE & EQUIPMENT,"OFFICE, SCHOOL SUPPLY, AND STATIONERY STORES (5943)"
15 Jul 2014,HEARTS AND FLOWERS BLO,REGENERATION,BLOXWICH DISTRICT CENTRE,10.00,MISCELLANEOUS SUPPLIES,FLORISTS (5992)
15 Jul 2014,ARTHUR BRETT CATER,NEIGHBOURHOOD SERVICES,CA OLD HALL SPECIAL SCHOOL,6.78,FRUIT & VEGETABLES OTHER-PROVISIONS,MISCELLANEOUS FOOD STORES & CONVENIENCE STORES (5499)
15 Jul 2014,TESCO STORES 6161,CHILDRENS SERVICES,FOOD TECH,28.77,GENERAL MATERIALS,GROCERY STORES AND SUPERMARKETS (5411)
15 Jul 2014,AMAZON EU,CHILDRENS SERVICES,GENERAL RESOURCES & MISC,4.79,GENERAL MATERIALS,OTHER DIRECT MARKETING-OTHER DIRECT MARKETERS (5969)
15 Jul 2014,ASDA STORES 7134,NEIGHBOURHOOD SERVICES,AP FINANCE & RESOURCES STAFF DEVELOPMENT,78.66,CATERING,GROCERY STORES AND SUPERMARKETS (5411)
15 Jul 2014,ASDA STORES 7134,NEIGHBOURHOOD SERVICES,AP FINANCE & RESOURCES STAFF DEVELOPMENT,3.00,CATERING,GROCERY STORES AND SUPERMARKETS (5411)
15 Jul 2014,ASDA STORES 7134,NEIGHBOURHOOD SERVICES,AP FINANCE & RESOURCES STAFF DEVELOPMENT,23.19,CATERING,GROCERY STORES AND SUPERMARKETS (5411)
15 Jul 2014,ASDA STORES,CHILDRENS SERVICES,CLUSTER 5 DARLASTON,44.08,FOOD AND BEVERAGES-PROVISIONS,GROCERY STORES AND SUPERMARKETS (5411)
15 Jul 2014,ARTHUR BRETT CATER,NEIGHBOURHOOD SERVICES,CA ABBEY PRIMARY SCHOOL,27.47,FOOD AND BEVERAGES-PROVISIONS,MISCELLANEOUS FOOD STORES & CONVENIENCE STORES (5499)
15 Jul 2014,ARTHUR BRETT CATER,NEIGHBOURHOOD SERVICES,TOWN HALL RESTAURANT BISTRO,30.22,FRUIT & VEGETABLES OTHER-PROVISIONS,MISCELLANEOUS FOOD STORES & CONVENIENCE STORES (5499)
15 Jul 2014,ARTHUR BRETT CATER,NEIGHBOURHOOD SERVICES,CA BUSILL JONES PRIMARY SCHOOL,99.28,FRUIT & VEGETABLES OTHER-PROVISIONS,MISCELLANEOUS FOOD STORES & CONVENIENCE STORES (5499)
15 Jul 2014,OFFICE DEPOT,RESOURCES,LAW LIBRARY,68.40,GENERAL MATERIALS,"STATIONERY, OFFICE SUPPLIES AND WRITING PAPER (5111)"
15 Jul 2014,WWW.DVLA.GOV.UK,NEIGHBOURHOOD SERVICES,FLEET,227.50,LICENCES-TRANSPORT RUN COSTS,GOVERNMENT SERVICES (9399)
15 Jul 2014,ARTHUR BRETT CATER,NEIGHBOURHOOD SERVICES,CA ST MICHAELS C.E. PRIMARY SCHOOL,12.25,FRUIT & VEGETABLES OTHER-PROVISIONS,MISCELLANEOUS FOOD STORES & CONVENIENCE STORES (5499)
15 Jul 2014,ARTHUR BRETT CATER,NEIGHBOURHOOD SERVICES,CA LITTLE BLOXWICH CE PRIMARY SCHOOL,37.47,FRUIT & VEGETABLES OTHER-PROVISIONS,MISCELLANEOUS FOOD STORES & CONVENIENCE STORES (5499)
15 Jul 2014,WWW.DVLA.GOV.UK,NEIGHBOURHOOD SERVICES,FLEET,227.50,LICENCES-TRANSPORT RUN COSTS,GOVERNMENT SERVICES (9399)
15 Jul 2014,AMAZON *MKTPLCE EU-UK,CHILDRENS SERVICES,ADOPTION TEAM,34.76,LIBRARY BOOKS,BOOK STORES (5942)
15 Jul 2014,ARTHUR BRETT CATER,NEIGHBOURHOOD SERVICES,CA LEAMORE PRIMARY SCHOOL,15.98,FRUIT & VEGETABLES OTHER-PROVISIONS,MISCELLANEOUS FOOD STORES & CONVENIENCE STORES (5499)
15 Jul 2014,AMAZON *MKTPLCE EU-UK,CHILDRENS SERVICES,ADOPTION TEAM,62.71,LIBRARY BOOKS,BOOK STORES (5942)
15 Jul 2014,WILKINSON,RESOURCES,WALSALL CRISIS SUPPORT SCHEME,11.96,CRISIS SUPPORT PAYMENTS,HOUSEHOLD APPLIANCE STORES (5722)
15 Jul 2014,RELKOGROUP,NEIGHBOURHOOD SERVICES,POOLFITTERS,21.78,CLOTHING & LAUNDRY,MISCELLANEOUS ACCESSORY AND APPAREL STORES (5699)
15 Jul 2014,WWW.DVLA.GOV.UK,NEIGHBOURHOOD SERVICES,FLEET,227.50,LICENCES-TRANSPORT RUN COSTS,GOVERNMENT SERVICES (9399)
15 Jul 2014,OFFICE DEPOT,CHILDRENS SERVICES,UNIVERSAL EDUCATION CLIENT UNIT,176.94,STATIONERY & GENERAL SUPPLIES-OFFICE EXP,"STATIONERY, OFFICE SUPPLIES AND WRITING PAPER (5111)"
15 Jul 2014,TRAINLINE.COM,NEIGHBOURHOOD SERVICES,NAG - EXTERNALLY FUNDED PROJECTS,49.21,OFFICER/STAFF-PUBLIC TRANSPORT,PASSENGER RAILWAYS (4112)
15 Jul 2014,ARTHUR BRETT CATER,NEIGHBOURHOOD SERVICES,CA BEACON PRIMARY SCHOOL,63.71,FRUIT & VEGETABLES OTHER-PROVISIONS,MISCELLANEOUS FOOD STORES & CONVENIENCE STORES (5499)
15 Jul 2014,AMAZON EU,CHILDRENS SERVICES,ADMINISTRATIVE SUPPLIES,40.53,STATIONERY & GENERAL SUPPLIES-OFFICE EXP,OTHER DIRECT MARKETING-OTHER DIRECT MARKETERS (5969)
15 Jul 2014,AVIS INVERNESS APT GB,CHILDRENS SERVICES,SAFEGUARDING & FAMILY SUPPORT,99.02,HIRE OF VEHICLES,AVIS RENT-A-CAR (3389)
15 Jul 2014,STAPLES UK,RESOURCES,TENANCY SERVICE,63.96,STATIONERY & GENERAL SUPPLIES-OFFICE EXP,"OFFICE, SCHOOL SUPPLY, AND STATIONERY STORES (5943)"
15 Jul 2014,STONEBRIDGE ASSC COOL,CHILDRENS SERVICES,NEW LEAF PUPIL REFERRAL UNIT,82.49,EXTERNAL TRAINING,"COLLEGES, UNIVERSITIES, PROFESSIONAL SCHOOLS (8220)"
15 Jul 2014,WWW.GIROFOOD.COM,NEIGHBOURHOOD SERVICES,TOWN HALL RESTAURANT BISTRO,274.35,DISPOSABLES-PROVISIONS,WHOLESALE CLUBS (5300)
15 Jul 2014,WWW.GIROFOOD.COM,NEIGHBOURHOOD SERVICES,CA CASTLEFORT JMI SCHOOL,90.53,DISPOSABLES-PROVISIONS,WHOLESALE CLUBS (5300)
16 Jul 2014,CRAZY HOUSE (BROWNHILL,RESOURCES,WALSALL CRISIS SUPPORT SCHEME,60.00,CRISIS SUPPORT PAYMENTS,"EQUIPMENT, FURNITURE, AND HOME FURNISHINGS STORES  (5712)"
16 Jul 2014,BLAKEMORE FOODSERVICE,NEIGHBOURHOOD SERVICES,CA RADLEYS PRIMARY SCHOOL,92.03,FROZEN FOODS-PROVISIONS,CATERERS (5811)
16 Jul 2014,BLAKEMORE FOODSERVICE,NEIGHBOURHOOD SERVICES,CA BLUE COAT C OF E PERFORMING ARTS COLLEGE,45.70,DRY FOODS-PROVISIONS,CATERERS (5811)
16 Jul 2014,BLAKEMORE FOODSERVICE,NEIGHBOURHOOD SERVICES,CA BLUE COAT C OF E PERFORMING ARTS COLLEGE,51.25,DRY FOODS-PROVISIONS,CATERERS (5811)
16 Jul 2014,VIRGINTRAINS.CO.UK,CHILDRENS SERVICES,ADOPTION TEAM,217.00,OFFICER/STAFF-PUBLIC TRANSPORT,PASSENGER RAILWAYS (4112)
16 Jul 2014,REGISTRATION SERVICES,CHILDRENS SERVICES,LOOKED AFTER CHILDRENS SOCIAL WORK TEAM,42.00,SUPPORT UNDER SECTION 23 OF THE CHILDRENS ACT,OTHER RECREATION SERVICES (7999)
16 Jul 2014,AMAZON *MKTPLCE EU-UK,CHILDRENS SERVICES,ADOPTION TEAM,28.77,LIBRARY BOOKS,BOOK STORES (5942)
16 Jul 2014,VIRGIN MEDIA PYMTS,CHILDRENS SERVICES,57 LICHFIELD ROAD,30.00,RESIDENTS PERSONAL EXPENSES-ALLOWANCES TO S/S CLIENTS,TELECOMMUNICATION SERVICES (4814)
16 Jul 2014,ARGOS RETAIL GROUP,CHILDRENS SERVICES,REDRUTH ROAD,83.94,TRANSFER PAYMENTS - SOCIAL SERVICES CLIENTS,DISCOUNT STORES (5310)
16 Jul 2014,SNOWDOME LTD,CHILDRENS SERVICES,PSHE,318.00,GENERAL MATERIALS,"CLUBS COUNTRY CLUBS, MEMBERSHIP (7997)"
16 Jul 2014,CRAZY HOUSE (BROWNHILL,RESOURCES,WALSALL CRISIS SUPPORT SCHEME,165.00,CRISIS SUPPORT PAYMENTS,"EQUIPMENT, FURNITURE, AND HOME FURNISHINGS STORES  (5712)"
16 Jul 2014,BLAKEMORE FOODSERVICE,NEIGHBOURHOOD SERVICES,CA ST MICHAELS C.E. PRIMARY SCHOOL,65.80,FROZEN FOODS-PROVISIONS,CATERERS (5811)
16 Jul 2014,BLAKEMORE FOODSERVICE,NEIGHBOURHOOD SERVICES,CA ST MICHAELS C.E. PRIMARY SCHOOL,18.11,FROZEN FOODS-PROVISIONS,CATERERS (5811)
16 Jul 2014,COSTA COFFEE,NEIGHBOURHOOD SERVICES,NAG - TEMPORARY EXHIBITIONS,8.05,MISC DAIRY PRODUCTS-PROVISIONS,"EATING PLACES, RESTAURANTS (5812)"
16 Jul 2014,W M MORRISON PLC,CHILDRENS SERVICES,ROSEDALE C.E. PRIMARY SCHOOL,8.43,BREAD-GENERAL-PROVISIONS,GROCERY STORES AND SUPERMARKETS (5411)
16 Jul 2014,NOBISCO LTD,NEIGHBOURHOOD SERVICES,CA BEACON PRIMARY SCHOOL,239.42,DISPOSABLES-PROVISIONS,"CLEANING AND MAINTENANCE, JANITORIAL SERVICES (7349)"
16 Jul 2014,WELSH BROS FOODS LTD,NEIGHBOURHOOD SERVICES,CA BUSILL JONES PRIMARY SCHOOL,218.23,MEAT-PROVISIONS,FREEZER AND LOCKER MEAT PROVISIONERS (5422)
16 Jul 2014,WELSH BROS FOODS LTD,NEIGHBOURHOOD SERVICES,CA MEADOW VIEW JMI PRIMARY SCHOOL,-20.20,MEAT-PROVISIONS,FREEZER AND LOCKER MEAT PROVISIONERS (5422)
16 Jul 2014,BLAKEMORE FOODSERVICE,NEIGHBOURHOOD SERVICES,CA ST JOHNS C.E. PRIMARY SCHOOL,14.20,FROZEN FOODS-PROVISIONS,CATERERS (5811)
16 Jul 2014,BORSHCH ELECTRIC,RESOURCES,WALSALL CRISIS SUPPORT SCHEME,325.00,CRISIS SUPPORT PAYMENTS,HOUSEHOLD APPLIANCE STORES (5722)
16 Jul 2014,LONDON MIDLAND TIC,CHILDRENS SERVICES,TRANSITION AND LEAVING CARE,137.80,OFFICER/STAFF-PUBLIC TRANSPORT,PASSENGER RAILWAYS (4112)
16 Jul 2014,AMAZON *MKTPLCE EU-UK,CHILDRENS SERVICES,ADOPTION TEAM,1.98,LIBRARY BOOKS,BOOK STORES (5942)
16 Jul 2014,BLAKEMORE FOODSERVICE,NEIGHBOURHOOD SERVICES,CA WATLING STREET PRIMARY SCHOOL,46.16,DRY FOODS-PROVISIONS,CATERERS (5811)
16 Jul 2014,WM MORRISONS,CHILDRENS SERVICES,57 LICHFIELD ROAD,12.93,RESIDENTS PERSONAL EXPENSES-ALLOWANCES TO S/S CLIENTS,GROCERY STORES AND SUPERMARKETS (5411)
16 Jul 2014,BLAKEMORE FOODSERVICE,NEIGHBOURHOOD SERVICES,CA BUSILL JONES PRIMARY SCHOOL,172.67,DRY FOODS-PROVISIONS,CATERERS (5811)
16 Jul 2014,BLAKEMORE FOODSERVICE,NEIGHBOURHOOD SERVICES,CA BUSILL JONES PRIMARY SCHOOL,28.16,DRY FOODS-PROVISIONS,CATERERS (5811)
16 Jul 2014,OFFICE DEPOT,CHILDRENS SERVICES,FAMILY PLACEMENTS,157.28,STATIONERY & GENERAL SUPPLIES-OFFICE EXP,"STATIONERY, OFFICE SUPPLIES AND WRITING PAPER (5111)"
16 Jul 2014,ASDA,CHILDRENS SERVICES,"43A HILTON ROAD, WILLENHALL",7.74,FOOD AND BEVERAGES-PROVISIONS,GROCERY STORES AND SUPERMARKETS (5411)
16 Jul 2014,WWW.CARTRIDGESAVE.CO.U,NEIGHBOURHOOD SERVICES,RESOURCE MANAGEMENT,118.66,STATIONERY & GENERAL SUPPLIES-OFFICE EXP,"OFFICE, SCHOOL SUPPLY, AND STATIONERY STORES (5943)"
16 Jul 2014,WORLDSTORES LTD,CHILDRENS SERVICES,REDRUTH ROAD,52.99,FURNITURE & EQUIPMENT,MISCELLANEOUS HOUSE FURNISHING SPECIALTY SHOPS (5719)
16 Jul 2014,REGISTRATION SERVICES,CHILDRENS SERVICES,SUPPORT UNDER SECT 23 OF THE CHILDRENS ACT,20.00,SUPPORT UNDER SECTION 23 OF THE CHILDRENS ACT,OTHER RECREATION SERVICES (7999)
16 Jul 2014,THE TRAINLINE.COM,NEIGHBOURHOOD SERVICES,POLLUTION DIVISION,190.23,OTHER-TRAVEL ALLOWANCES,PASSENGER RAILWAYS (4112)
16 Jul 2014,BORSHCH ELECTRIC,RESOURCES,WALSALL CRISIS SUPPORT SCHEME,185.00,CRISIS SUPPORT PAYMENTS,HOUSEHOLD APPLIANCE STORES (5722)
16 Jul 2014,BLAKEMORE FOODSERVICE,NEIGHBOURHOOD SERVICES,CA FIBBERSLEY PARK PRIMARY SCHOOL,123.39,FROZEN FOODS-PROVISIONS,CATERERS (5811)
16 Jul 2014,BLAKEMORE FOODSERVICE,NEIGHBOURHOOD SERVICES,CA FIBBERSLEY PARK PRIMARY SCHOOL,15.36,FROZEN FOODS-PROVISIONS,CATERERS (5811)
16 Jul 2014,BLAKEMORE FOODSERVICE,NEIGHBOURHOOD SERVICES,CA ELMWOOD SPECIAL SCHOOL,12.06,DRY FOODS-PROVISIONS,CATERERS (5811)
16 Jul 2014,BLAKEMORE FOODSERVICE,NEIGHBOURHOOD SERVICES,CA BUSILL JONES PRIMARY SCHOOL,84.03,DRY FOODS-PROVISIONS,CATERERS (5811)
16 Jul 2014,BLAKEMORE FOODSERVICE,NEIGHBOURHOOD SERVICES,CA BEACON PRIMARY SCHOOL,14.91,DRY FOODS-PROVISIONS,CATERERS (5811)
16 Jul 2014,BLAKEMORE FOODSERVICE,NEIGHBOURHOOD SERVICES,CA BLUE COAT C.E. JUNIOR SCHOOL,87.72,DRY FOODS-PROVISIONS,CATERERS (5811)
16 Jul 2014,BORSHCH ELECTRIC,RESOURCES,WALSALL CRISIS SUPPORT SCHEME,270.00,CRISIS SUPPORT PAYMENTS,HOUSEHOLD APPLIANCE STORES (5722)
16 Jul 2014,BLAKEMORE FOODSERVICE,NEIGHBOURHOOD SERVICES,CA BROWNHILLS WEST PRIMARY SCHOOL,33.97,DRY FOODS-PROVISIONS,CATERERS (5811)
16 Jul 2014,EATSO,NEIGHBOURHOOD SERVICES,LIBRARY DEVELOPMENT 2,6.70,GENERAL MATERIALS,"EATING PLACES, RESTAURANTS (5812)"
16 Jul 2014,ASDA,CHILDRENS SERVICES,"43A HILTON ROAD, WILLENHALL",3.00,FOOD AND BEVERAGES-PROVISIONS,GROCERY STORES AND SUPERMARKETS (5411)
16 Jul 2014,POUNDLAND LTD 1427,CHILDRENS SERVICES,57 LICHFIELD ROAD,26.00,RESIDENTS PERSONAL EXPENSES-ALLOWANCES TO S/S CLIENTS,DISCOUNT STORES (5310)
16 Jul 2014,BLAKEMORE FOODSERVICE,NEIGHBOURHOOD SERVICES,CA LEIGHSWOOD PRIMARY SCHOOL,16.05,FROZEN FOODS-PROVISIONS,CATERERS (5811)
16 Jul 2014,NOBISCO LTD,NEIGHBOURHOOD SERVICES,CA LEIGHSWOOD PRIMARY SCHOOL,24.58,DISPOSABLES-PROVISIONS,"CLEANING AND MAINTENANCE, JANITORIAL SERVICES (7349)"
16 Jul 2014,ARGOS,NEIGHBOURHOOD SERVICES,OAK PARK,143.67,NEW-FURNITURE & EQUIPMENT,DISCOUNT STORES (5310)
16 Jul 2014,BORSHCH ELECTRIC,RESOURCES,WALSALL CRISIS SUPPORT SCHEME,325.00,CRISIS SUPPORT PAYMENTS,HOUSEHOLD APPLIANCE STORES (5722)
16 Jul 2014,WELSH BROS FOODS LTD,NEIGHBOURHOOD SERVICES,CA GREEN ROCK PRIMARY,53.42,MEAT-PROVISIONS,FREEZER AND LOCKER MEAT PROVISIONERS (5422)
16 Jul 2014,ASDA STORES,CHILDRENS SERVICES,LOOKED AFTER CHILDRENS SOCIAL WORK TEAM,2.14,TRANSFER PAYMENTS - SOCIAL SERVICES CLIENTS,GROCERY STORES AND SUPERMARKETS (5411)
16 Jul 2014,ASDA STORES,CHILDRENS SERVICES,LOOKED AFTER CHILDRENS SOCIAL WORK TEAM,4.69,TRANSFER PAYMENTS - SOCIAL SERVICES CLIENTS,GROCERY STORES AND SUPERMARKETS (5411)
16 Jul 2014,NOBISCO LTD,NEIGHBOURHOOD SERVICES,CA FIBBERSLEY PARK PRIMARY SCHOOL,43.46,DISPOSABLES-PROVISIONS,"CLEANING AND MAINTENANCE, JANITORIAL SERVICES (7349)"
16 Jul 2014,BLAKEMORE FOODSERVICE,NEIGHBOURHOOD SERVICES,CA ELMWOOD SPECIAL SCHOOL,31.86,DRY FOODS-PROVISIONS,CATERERS (5811)
16 Jul 2014,TESCO STORES 6161,CHILDRENS SERVICES,FOOD TECHNOLOGY,10.00,GENERAL MATERIALS,GROCERY STORES AND SUPERMARKETS (5411)
16 Jul 2014,BLAKEMORE FOODSERVICE,NEIGHBOURHOOD SERVICES,CA LEIGHSWOOD PRIMARY SCHOOL,132.26,FROZEN FOODS-PROVISIONS,CATERERS (5811)
16 Jul 2014,BORSHCH ELECTRIC,RESOURCES,WALSALL CRISIS SUPPORT SCHEME,140.00,CRISIS SUPPORT PAYMENTS,HOUSEHOLD APPLIANCE STORES (5722)
16 Jul 2014,BLAKEMORE FOODSERVICE,NEIGHBOURHOOD SERVICES,CA BEACON PRIMARY SCHOOL,240.46,DRY FOODS-PROVISIONS,CATERERS (5811)
16 Jul 2014,BLAKEMORE FOODSERVICE,NEIGHBOURHOOD SERVICES,CA BEACON PRIMARY SCHOOL,78.84,DRY FOODS-PROVISIONS,CATERERS (5811)
16 Jul 2014,WELSH BROS FOODS LTD,NEIGHBOURHOOD SERVICES,CA BEACON PRIMARY SCHOOL,198.62,MEAT-PROVISIONS,FREEZER AND LOCKER MEAT PROVISIONERS (5422)
16 Jul 2014,123-REG.CO.UK,CHILDRENS SERVICES,YOUTH OPINIONS UNITE,8.38,COMPUTER EQUIPMENT AND SUPPLIES,COMPUTER NETWORK/INFORMATION SERVICES (4816)
16 Jul 2014,WM MORRISONS,CHILDRENS SERVICES,57 LICHFIELD ROAD,3.24,GENERAL PROVISIONS-PROVISIONS,GROCERY STORES AND SUPERMARKETS (5411)
16 Jul 2014,NOBISCO LTD,NEIGHBOURHOOD SERVICES,CA JANE LANE SPECIAL SCHOOL,16.18,DISPOSABLES-PROVISIONS,"CLEANING AND MAINTENANCE, JANITORIAL SERVICES (7349)"
16 Jul 2014,BORSHCH ELECTRIC,RESOURCES,WALSALL CRISIS SUPPORT SCHEME,580.00,CRISIS SUPPORT PAYMENTS,HOUSEHOLD APPLIANCE STORES (5722)
16 Jul 2014,BLAKEMORE FOODSERVICE,NEIGHBOURHOOD SERVICES,CA BEACON PRIMARY SCHOOL,82.99,FROZEN FOODS-PROVISIONS,CATERERS (5811)
16 Jul 2014,BLAKEMORE FOODSERVICE,NEIGHBOURHOOD SERVICES,CA BEACON PRIMARY SCHOOL,29.10,DRY FOODS-PROVISIONS,CATERERS (5811)
16 Jul 2014,THE TRAINLINE.COM,REGENERATION,GRANTS-BLACK COUNTRY INVEST TEAM,19.13,OFFICER/STAFF-PUBLIC TRANSPORT,PASSENGER RAILWAYS (4112)
16 Jul 2014,RUSHALL PROTECTIVE CLO,SOCIAL CARE & INCLUSION,EMPLOYMENT LINKS TO WORK,-20.80,GENERAL MATERIALS,"MEN'S, WOMEN'S, AND CHILDREN'S UNIFORMS (5137)"
16 Jul 2014,BLAKEMORE FOODSERVICE,NEIGHBOURHOOD SERVICES,CA BLUE COAT C OF E PERFORMING ARTS COLLEGE,127.46,DRY FOODS-PROVISIONS,CATERERS (5811)
16 Jul 2014,BLAKEMORE FOODSERVICE,NEIGHBOURHOOD SERVICES,CA ST MICHAELS C.E. PRIMARY SCHOOL,21.85,DRY FOODS-PROVISIONS,CATERERS (5811)
16 Jul 2014,BLAKEMORE FOODSERVICE,NEIGHBOURHOOD SERVICES,CA BLACKWOOD PRIMARY SCHOOL,92.28,DRY FOODS-PROVISIONS,CATERERS (5811)
16 Jul 2014,BLAKEMORE FOODSERVICE,NEIGHBOURHOOD SERVICES,CA ELMORE GREEN PRIMARY SCHOOL,161.16,FROZEN FOODS-PROVISIONS,CATERERS (5811)
16 Jul 2014,BLAKEMORE FOODSERVICE,NEIGHBOURHOOD SERVICES,CA ELMORE GREEN PRIMARY SCHOOL,20.86,FROZEN FOODS-PROVISIONS,CATERERS (5811)
16 Jul 2014,TP WALSALL,NEIGHBOURHOOD SERVICES,DARLASTON LEISURE CENTRE,151.25,GENERAL MATERIALS,LUMBER & BUILDING MATERIALS STORES (5211)
16 Jul 2014,AMAZON *MKTPLCE EU-UK,CHILDRENS SERVICES,ADOPTION TEAM,35.11,LIBRARY BOOKS,BOOK STORES (5942)
16 Jul 2014,GRO HM PASSPORT OFFICE,CHILDRENS SERVICES,LOOKED AFTER CHILDRENS SOCIAL WORK TEAM,9.25,SUPPORT UNDER SECTION 23 OF THE CHILDRENS ACT,GOVERNMENT SERVICES (9399)
16 Jul 2014,WWW.NEOPOST.CO.UK,CHILDRENS SERVICES,UNIVERSAL EDUCATION CLIENT UNIT,800.00,POSTAGES AND COURIER SERVICES,"STATIONERY, OFFICE SUPPLIES AND WRITING PAPER (5111)"
16 Jul 2014,WWW.NEOPOST.CO.UK,CHILDRENS SERVICES,UNIVERSAL EDUCATION CLIENT UNIT,24.00,POSTAGES AND COURIER SERVICES,"STATIONERY, OFFICE SUPPLIES AND WRITING PAPER (5111)"
16 Jul 2014,OFFICE DEPOT,NEIGHBOURHOOD SERVICES,BLOXWICH LEISURE CENTRE,64.24,STATIONERY & GENERAL SUPPLIES-OFFICE EXP,"STATIONERY, OFFICE SUPPLIES AND WRITING PAPER (5111)"
16 Jul 2014,AMAZON *MKTPLCE EU-UK,NEIGHBOURHOOD SERVICES,FOREST ARTS CENTRE,29.40,GENERAL MATERIALS,BOOK STORES (5942)
16 Jul 2014,BLAKEMORE FOODSERVICE,NEIGHBOURHOOD SERVICES,CA OLD HALL SPECIAL SCHOOL,9.70,DRY FOODS-PROVISIONS,CATERERS (5811)
16 Jul 2014,BLAKEMORE FOODSERVICE,NEIGHBOURHOOD SERVICES,CA OLD HALL SPECIAL SCHOOL,104.73,DRY FOODS-PROVISIONS,CATERERS (5811)
16 Jul 2014,BLAKEMORE FOODSERVICE,NEIGHBOURHOOD SERVICES,CA BLUE COAT C.E. JUNIOR SCHOOL,184.78,FROZEN FOODS-PROVISIONS,CATERERS (5811)
16 Jul 2014,BLAKEMORE FOODSERVICE,NEIGHBOURHOOD SERVICES,CA BLUE COAT C.E. JUNIOR SCHOOL,25.79,FROZEN FOODS-PROVISIONS,CATERERS (5811)
16 Jul 2014,OFFICE DEPOT,NEIGHBOURHOOD SERVICES,STREETLY CREMATORIUM,93.60,STATIONERY & GENERAL SUPPLIES-OFFICE EXP,"STATIONERY, OFFICE SUPPLIES AND WRITING PAPER (5111)"
16 Jul 2014,BLAKEMORE FOODSERVICE,NEIGHBOURHOOD SERVICES,CA ST JOHNS C.E. PRIMARY SCHOOL,85.46,FROZEN FOODS-PROVISIONS,CATERERS (5811)
16 Jul 2014,BLAKEMORE FOODSERVICE,NEIGHBOURHOOD SERVICES,CA ST JOHNS C.E. PRIMARY SCHOOL,30.72,FROZEN FOODS-PROVISIONS,CATERERS (5811)
16 Jul 2014,CRAZY HOUSE (BROWNHILL,RESOURCES,WALSALL CRISIS SUPPORT SCHEME,55.00,CRISIS SUPPORT PAYMENTS,"EQUIPMENT, FURNITURE, AND HOME FURNISHINGS STORES  (5712)"
16 Jul 2014,NOBISCO LTD,NEIGHBOURHOOD SERVICES,CA WATLING STREET PRIMARY SCHOOL,25.36,DISPOSABLES-PROVISIONS,"CLEANING AND MAINTENANCE, JANITORIAL SERVICES (7349)"
16 Jul 2014,B & Q,NEIGHBOURHOOD SERVICES,DARLASTON LEISURE CENTRE,26.92,GENERAL MATERIALS,LUMBER & BUILDING MATERIALS STORES (5211)
16 Jul 2014,WWW.NICK-GRAY.CO.UK,CHILDRENS SERVICES,OUTDOOR EDUCATION,67.80,GENERAL MATERIALS,MISCELLANEOUS AND SPECIALTY RETAIL STORES (5999)
16 Jul 2014,IZ *WELCOME CARPET,RESOURCES,LINK SERVICE,210.00,MISCELLANEOUS SUPPLIES,MISCELLANEOUS AND SPECIALTY RETAIL STORES (5999)
16 Jul 2014,GRO HM PASSPORT OFFICE,CHILDRENS SERVICES,SUPPORT UNDER SECT 23 OF THE CHILDRENS ACT,-9.25,SUPPORT UNDER SECTION 23 OF THE CHILDRENS ACT,GOVERNMENT SERVICES (9399)
